Workbook

Sheet Instructions
D6: Instructions:
D8: 1. Insert YTD actual data in yellow shaded area of YTD_Actual_Data sheet for each tax type and tax collectorate
D9: 2. Select charts for Page 1 using cell B2 to B5 and for Page 2 using cell B78 to B85 in Charts sheet
D10: 3. Pick a historical year other than previous year using cell B10 to compare against
D11: 4. Enter the flagging level in cell B11 to indicate if actual is lower than the target by entered level.
D12: 5. Enter the date in cell B12 of Charts sheet at which the actual data is extracted from either AFMIS or RMIS.
D13: 6. Finally, enter the source of data (AFMIS or RMIS)
D15: Remarks: This report should be compiled using data from both AFMIS and RMIS, and the source should be identified in cell B13 of Charts sheet.

Sheet FY1398_YTD_Actual
A1: =Targets!C97 -> Actual | B1: M1 | C1: M2 | D1: M3 | E1: M4 | F1: M5 | G1: M6 | H1: M7 | I1: M8 | J1: M9 | K1: M10 | L1: M11 | M1: M12 | N1: Total
A3: =Targets!B3 -> Customs Department | B3: =SUM(B4:B9) -> 7123.081076 | C3: =SUM(C4:C9) -> 6626.573266 | D3: =SUM(D4:D9) -> 6314.756981 | E3: =SUM(E4:E9) -> 6445.062042 | F3: =SUM(F4:F9) -> 7098.882671 | G3: =SUM(G4:G9) -> 5924.786089 | H3: =SUM(H4:H9) -> 7041.885336 | I3: =SUM(I4:I9) -> 5530.614535 | J3: =SUM(J4:J9) -> 6318.446016 | K3: =SUM(K4:K9) -> 5822.358075 | L3: =SUM(L4:L9) -> 5744.83069 | M3: =SUM(M4:M9) -> 0 | N3: =SUM(N4:N9) -> 69991.27678
A4: =Targets!B4 -> Herat Customs Office | B4: 1669.959583 | C4: 1522.535612 | D4: 1639.108452 | E4: 1327.363441 | F4: 1551.811893 | G4: 1535.73312 | H4: 1733.299742 | I4: 1321.997578 | J4: 1433.418012 | K4: 1401.325681 | L4: 1036.75 | N4: =SUM(B4:M4) -> 16173.30311
A5: =Targets!B5 -> Nangarhar Customs Office | B5: 1416.589154 | C5: 1338.922474 | D5: 1287.971107 | E5: 1511.775045 | F5: 1562.188742 | G5: 1312.323695 | H5: 1806.793566 | I5: 1284.900657 | J5: 1367.58651 | K5: 1148.300297 | L5: 1526.563446 | N5: 15563.91469
A6: =Targets!B6 -> Balkh Customs Office | B6: 1004.925283 | C6: 933.342203 | D6: 640.956549 | E6: 859.621079 | F6: 753.634922 | G6: 826.192129 | H6: 686.919117 | I6: 692.389078 | J6: 810.139083 | K6: 710.695515 | L6: 945.602159 | N6: 8864.417117
A7: =Targets!B7 -> Kandahar Customs Office | B7: 1090.621171 | C7: 994.10088 | D7: 825.191678 | E7: 900.816593 | F7: 1037.931151 | G7: 744.327969 | H7: 964.129408 | I7: 710.606813 | J7: 904.972241 | K7: 983.867476 | L7: 864.5674 | N7: 10021.13278
A8: =Targets!B8 -> Nimroz Customs Office | B8: 700.634586 | C8: 743.74491 | D8: 644.876308 | E8: 509.046626 | F8: 701.497256 | G8: 468.37038 | H8: 655.098274 | I8: 435.392594 | J8: 561.275275 | K8: 528.045862 | L8: 512.735663 | N8: 6460.717734
A9: =Targets!B9 -> Other Customs Offices | B9: 1240.351299 | C9: 1093.927187 | D9: 1276.652887 | E9: 1336.439258 | F9: 1491.818707 | G9: 1037.838796 | H9: 1195.645229 | I9: 1085.327815 | J9: 1241.054895 | K9: 1050.123244 | L9: 858.612022 | M9: 0 | N9: 12907.79134
A10: =Targets!B10 -> Afghanistan Revenue Department | B10: =SUM(B11:B15) -> 7355.137811 | C10: =SUM(C11:C15) -> 6885.980895 | D10: 7914.57488 | E10: 9076.615353 | F10: 15080.34019 | G10: 7341.411216 | H10: 8841.789197 | I10: 5703.122535 | J10: 8747.881808 | K10: 13894.0056 | L10: 5100.015522 | M10: 0 | N10: 95940.87501
A11: =Targets!B11 -> Mustofiats | B11: 1183.541652 | C11: 1432.990067 | D11: 1635.023441 | E11: 1496.717101 | F11: 1371.695607 | G11: 1442.247643 | H11: 1629.211319 | I11: 1441.004059 | J11: 1530.771899 | K11: 1641.318572 | L11: 849.968385 | N11: 15654.48975
A12: =Targets!B12 -> LTO | B12: 2757.395804 | C12: 1665.116948 | D12: 1709.504585 | E12: 2889.147523 | F12: 1401.835546 | G12: 2559.948049 | H12: 2486.043823 | I12: 940.9853993 | J12: 2271.690229 | K12: 4131.951392 | L12: 1835.219881 | N12: 24648.83918
A13: =Targets!B13 -> MTO | B13: 1046.534685 | C13: 1056.175829 | D13: 1362.792479 | E13: 1444.229951 | F13: 1138.777265 | G13: 1355.381423 | H13: 1489.05382 | I13: 1061.489204 | J13: 868.2777498 | K13: 1545.295044 | L13: 740.0254792 | N13: 13108.03293
A14: =Targets!B14 -> STO | B14: 181.331598 | C14: 166.095397 | D14: 420.232954 | E14: 404.80215 | F14: 226.774294 | G14: 196.335392 | H14: 234.88208 | I14: 197.203236 | J14: 261.720703 | K14: 338.837406 | L14: 235 | M14: 0 | N14: 2863.21521
A15: =Targets!B15 -> Ministries | B15: 2186.334072 | C15: 2565.602654 | D15: 2787.021421 | E15: 2841.718628 | F15: 10941.25748 | G15: 1787.498709 | H15: 3002.598154 | I15: 2062.440637 | J15: 3815.421228 | K15: 6236.603185 | L15: 1439.801777 | N15: 39666.29795
A16: =Targets!B16 -> Total Revenues | B16: =B10+B3 -> 14478.21889 | C16: =C10+C3 -> 13512.55416 | D16: =D10+D3 -> 14229.33186 | E16: =E10+E3 -> 15521.6774 | F16: =F10+F3 -> 22179.22286 | G16: =G10+G3 -> 13266.19731 | H16: 15883.67453 | I16: 11233.73707 | J16: 15066.32782 | K16: 19716.36368 | L16: 10844.84621 | M16: 0 | N16: 165932.1518
A17: =Targets!B17 -> Tax Revenues | B17: 7586.45833 | C17: 6170.501384 | D17: 6540.326604 | E17: 7896.147871 | F17: 6316.270906 | G17: 7178.289319 | H17: 7906.627872 | I17: 5113.076954 | J17: 5491.512538 | K17: 8845.695374 | L17: 5241.726557 | N17: =SUM(B17:M17) -> 74286.63371
A18: =Targets!B18 -> Customs Revenues | B18: 3320.437993 | C18: 3053.049711 | D18: 3110.951708 | E18: 3138.886413 | F18: 3439.346534 | G18: 2813.229445 | H18: 3484.116377 | I18: 2497.439034 | J18: 2884.889948 | K18: 2610.427206 | L18: 2653.498448 | N18: 33006.27282
A19: =Targets!B19 -> Non-tax Revenues | B19: 3571.322564 | C19: 4289.003067 | D19: 4578.053549 | E19: 4486.643111 | F19: 12423.60542 | G19: 3274.678541 | H19: 4492.930284 | I19: 3623.221082 | J19: 6689.925339 | K19: 8260.241095 | L19: 2949.621207 | N19: 58639.24526
A20: =Targets!B20 -> Total Revenues | B20: =SUM(B17:B19) -> 14478.21889 | C20: =SUM(C17:C19) -> 13512.55416 | D20: 14229.33186 | E20: 15521.6774 | F20: 22179.22286 | G20: 13266.19731 | H20: 15883.67453 | I20: 11233.73707 | J20: 15066.32782 | K20: 19716.36368 | L20: 10844.84621 | M20: 0 | N20: 165932.1518
A22: Check | B22: =B16-B20 -> 0 | C22: =C16-C20 -> 0 | D22: 0 | E22: 0 | F22: 0 | G22: 0 | H22: 0 | I22: 0 | J22: 0 | K22: 0 | L22: 0 | M22: 0 | N22: 0
A24: AFMIS | B24: =B1 -> M1 | C24: =C1 -> M2 | D24: M3 | E24: M4 | F24: M5 | G24: M6 | H24: M7 | I24: M8 | J24: M9 | K24: M10 | L24: M11 | M24: M12
A25: Total Revenues | B25: 14490 | C25: 13660 | D25: 14270 | E25: 15550 | F25: 22270 | G25: 13390 | H25: 15790 | I25: 11390 | J25: 15230 | K25: 20160 | L25: 11650 | N25: =SUM(B25:M25) -> 167850 | P25: =IF(B25=0,#N/A,(SUM($B$25:B25))) -> 14490 | Q25: =IF(C25=0,#N/A,(SUM($B$25:C25))) -> 28150 | R25: =IF(D25=0,#N/A,(SUM($B$25:D25))) -> 42420 | S25: =IF(E25=0,#N/A,(SUM($B$25:E25))) -> 57970 | T25: =IF(F25=0,#N/A,(SUM($B$25:F25))) -> 80240 | U25: =IF(G25=0,#N/A,(SUM($B$25:G25))) -> 93630 | V25: =IF(H25=0,#N/A,(SUM($B$25:H25))) -> 109420 | W25: =IF(I25=0,#N/A,(SUM($B$25:I25))) -> 120810 | X25: =IF(J25=0,#N/A,(SUM($B$25:J25))) -> 136040 | Y25: =IF(K25=0,#N/A,(SUM($B$25:K25))) -> 156200 | Z25: =IF(L25=0,#N/A,(SUM($B$25:L25))) -> 167850 | AA25: =IF(M25=0,#N/A,(SUM($B$25:M25))) -> 
A28: Note:

Sheet Charts
A1: Select charts for page 1: | D1: Ministry of Finance | AE1: M1 | AF1: M2 | AG1: M3 | AH1: M4 | AI1: M5 | AJ1: M6 | AK1: M7 | AL1: M8 | AM1: M9 | AN1: M10 | AO1: M11 | AP1: M12
A2: Figure 1: | B2: Total Revenues | C2: =A2&" "&B2 -> Figure 1: Total Revenues | AC2: =A2 -> Figure 1: | AD2: =FY1398_YTD_Actual!$A$1 -> Actual | AE2: =IF(INDEX(FY1398_YTD_Actual!B$3:B$19,MATCH($B$2,FY1398_YTD_Actual!$A$3:$A$19,0))=0,#N/A,INDEX(FY1398_YTD_Actual!B$3:B$19,MATCH($B$2,FY1398_YTD_Actual!$A$3:$A$19,0))) -> 14478.21889 | AF2: =IF(INDEX(FY1398_YTD_Actual!C$3:C$19,MATCH($B$2,FY1398_YTD_Actual!$A$3:$A$19,0))=0,#N/A,INDEX(FY1398_YTD_Actual!C$3:C$19,MATCH($B$2,FY1398_YTD_Actual!$A$3:$A$19,0))) -> 13512.55416 | AG2: =IF(INDEX(FY1398_YTD_Actual!D$3:D$19,MATCH($B$2,FY1398_YTD_Actual!$A$3:$A$19,0))=0,#N/A,INDEX(FY1398_YTD_Actual!D$3:D$19,MATCH($B$2,FY1398_YTD_Actual!$A$3:$A$19,0))) -> 14229.33186 | AH2: =IF(INDEX(FY1398_YTD_Actual!E$3:E$19,MATCH($B$2,FY1398_YTD_Actual!$A$3:$A$19,0))=0,#N/A,INDEX(FY1398_YTD_Actual!E$3:E$19,MATCH($B$2,FY1398_YTD_Actual!$A$3:$A$19,0))) -> 15521.6774 | AI2: =IF(INDEX(FY1398_YTD_Actual!F$3:F$19,MATCH($B$2,FY1398_YTD_Actual!$A$3:$A$19,0))=0,#N/A,INDEX(FY1398_YTD_Actual!F$3:F$19,MATCH($B$2,FY1398_YTD_Actual!$A$3:$A$19,0))) -> 22179.22286 | AJ2: =IF(INDEX(FY1398_YTD_Actual!G$3:G$19,MATCH($B$2,FY1398_YTD_Actual!$A$3:$A$19,0))=0,#N/A,INDEX(FY1398_YTD_Actual!G$3:G$19,MATCH($B$2,FY1398_YTD_Actual!$A$3:$A$19,0))) -> 13266.19731 | AK2: =IF(INDEX(FY1398_YTD_Actual!H$3:H$19,MATCH($B$2,FY1398_YTD_Actual!$A$3:$A$19,0))=0,#N/A,INDEX(FY1398_YTD_Actual!H$3:H$19,MATCH($B$2,FY1398_YTD_Actual!$A$3:$A$19,0))) -> 15883.67453 | AL2: =IF(INDEX(FY1398_YTD_Actual!I$3:I$19,MATCH($B$2,FY1398_YTD_Actual!$A$3:$A$19,0))=0,#N/A,INDEX(FY1398_YTD_Actual!I$3:I$19,MATCH($B$2,FY1398_YTD_Actual!$A$3:$A$19,0))) -> 11233.73707 | AM2: =IF(INDEX(FY1398_YTD_Actual!J$3:J$19,MATCH($B$2,FY1398_YTD_Actual!$A$3:$A$19,0))=0,#N/A,INDEX(FY1398_YTD_Actual!J$3:J$19,MATCH($B$2,FY1398_YTD_Actual!$A$3:$A$19,0))) -> 15066.32782 | AN2: =IF(INDEX(FY1398_YTD_Actual!K$3:K$19,MATCH($B$2,FY1398_YTD_Actual!$A$3:$A$19,0))=0,#N/A,INDEX(FY1398_YTD_Actual!K$3:K$19,MATCH($B$2,FY1398_YTD_Actual!$A$3:$A$19,0))) -> 19716.36368 | AO2: =IF(INDEX(FY1398_YTD_Actual!L$3:L$19,MATCH($B$2,FY1398_YTD_Actual!$A$3:$A$19,0))=0,#N/A,INDEX(FY1398_YTD_Actual!L$3:L$19,MATCH($B$2,FY1398_YTD_Actual!$A$3:$A$19,0))) -> 10844.84621 | AP2: =IF(INDEX(FY1398_YTD_Actual!M$3:M$19,MATCH($B$2,FY1398_YTD_Actual!$A$3:$A$19,0))=0,#N/A,INDEX(FY1398_YTD_Actual!M$3:M$19,MATCH($B$2,FY1398_YTD_Actual!$A$3:$A$19,0))) -> 
A3: Figure 2: | B3: Tax Revenues | C3: =A3&" "&B3 -> Figure 2: Tax Revenues | AC3: =AD3&$B$2 -> 2019 TargetTotal Revenues | AD3: =Targets!$C$94 -> 2019 Target | AE3: =INDEX(Targets!C$3:C$41,MATCH(Charts!$AC3,Targets!$A$3:$A$41,0)) -> 13787.15165 | AF3: =INDEX(Targets!D$3:D$41,MATCH(Charts!$AC3,Targets!$A$3:$A$41,0)) -> 13787.15165 | AG3: =INDEX(Targets!E$3:E$41,MATCH(Charts!$AC3,Targets!$A$3:$A$41,0)) -> 13787.15165 | AH3: =INDEX(Targets!F$3:F$41,MATCH(Charts!$AC3,Targets!$A$3:$A$41,0)) -> 14413.84036 | AI3: =INDEX(Targets!G$3:G$41,MATCH(Charts!$AC3,Targets!$A$3:$A$41,0)) -> 14413.84036 | AJ3: =INDEX(Targets!H$3:H$41,MATCH(Charts!$AC3,Targets!$A$3:$A$41,0)) -> 14413.84036 | AK3: =INDEX(Targets!I$3:I$41,MATCH(Charts!$AC3,Targets!$A$3:$A$41,0)) -> 15667.21779 | AL3: =INDEX(Targets!J$3:J$41,MATCH(Charts!$AC3,Targets!$A$3:$A$41,0)) -> 15667.21779 | AM3: =INDEX(Targets!K$3:K$41,MATCH(Charts!$AC3,Targets!$A$3:$A$41,0)) -> 15667.21779 | AN3: =INDEX(Targets!L$3:L$41,MATCH(Charts!$AC3,Targets!$A$3:$A$41,0)) -> 18800.66134 | AO3: =INDEX(Targets!M$3:M$41,MATCH(Charts!$AC3,Targets!$A$3:$A$41,0)) -> 18800.66134 | AP3: =INDEX(Targets!N$3:N$41,MATCH(Charts!$AC3,Targets!$A$3:$A$41,0)) -> 18800.66134
A4: Figure 3: | B4: Customs Revenues | C4: Figure 3: Customs Revenues | D4: YTD Revenue | AB4: 1397 | AC4: =AD4&$B$2 -> Previous Year performanceTotal Revenues | AD4: =Targets!$C$95 -> Previous Year performance | AE4: =INDEX(Targets!C$3:C$41,MATCH(Charts!$AC4,Targets!$A$3:$A$41,0)) -> 13348.76694 | AF4: =INDEX(Targets!D$3:D$41,MATCH(Charts!$AC4,Targets!$A$3:$A$41,0)) -> 10999.24323 | AG4: =INDEX(Targets!E$3:E$41,MATCH(Charts!$AC4,Targets!$A$3:$A$41,0)) -> 13650.59374 | AH4: =INDEX(Targets!F$3:F$41,MATCH(Charts!$AC4,Targets!$A$3:$A$41,0)) -> 14686.66936 | AI4: =INDEX(Targets!G$3:G$41,MATCH(Charts!$AC4,Targets!$A$3:$A$41,0)) -> 12807.16674 | AJ4: =INDEX(Targets!H$3:H$41,MATCH(Charts!$AC4,Targets!$A$3:$A$41,0)) -> 14782.17076 | AK4: =INDEX(Targets!I$3:I$41,MATCH(Charts!$AC4,Targets!$A$3:$A$41,0)) -> 15668.38505 | AL4: =INDEX(Targets!J$3:J$41,MATCH(Charts!$AC4,Targets!$A$3:$A$41,0)) -> 13039.18172 | AM4: =INDEX(Targets!K$3:K$41,MATCH(Charts!$AC4,Targets!$A$3:$A$41,0)) -> 17418.14081 | AN4: =INDEX(Targets!L$3:L$41,MATCH(Charts!$AC4,Targets!$A$3:$A$41,0)) -> 16627.18051 | AO4: =INDEX(Targets!M$3:M$41,MATCH(Charts!$AC4,Targets!$A$3:$A$41,0)) -> 23474.57939 | AP4: =INDEX(Targets!N$3:N$41,MATCH(Charts!$AC4,Targets!$A$3:$A$41,0)) -> 23059.69546
A5: Figure 4: | B5: Non-tax Revenues | C5: Figure 4: Non-tax Revenues | D5: Date: | E5: =B12 -> 2019-11-17 | Q5: Source: | R5: RMIS | AD5: Cummulative
C6: =#REF!&" "&#REF! ->  | AD6: =AD2 -> Actual | AE6: 14478.21889 | AF6: =SUM($AE2:AF2) -> 27990.77305 | AG6: =SUM($AE2:AG2) -> 42220.10491 | AH6: =SUM($AE2:AH2) -> 57741.7823 | AI6: =SUM($AE2:AI2) -> 79921.00517 | AJ6: =SUM($AE2:AJ2) -> 93187.20247 | AK6: =SUM($AE2:AK2) -> 109070.877 | AL6: =SUM($AE2:AL2) -> 120304.6141 | AM6: =SUM($AE2:AM2) -> 135370.9419 | AN6: =SUM($AE2:AN2) -> 155087.3056 | AO6: =SUM($AE2:AO2) -> 165932.1518 | AP6: =SUM($AE2:AP2) ->  | AQ6: Flag if any | AR6: =IF((1-AE6/AE7)>$B$11,AE6,#N/A) -> 
C7: =A5&" "&B5 -> Figure 4: Non-tax Revenues | AD7: 2019 Target | AE7: 13787.15165 | AF7: =SUM($AE3:AF3) -> 27574.3033 | AG7: =SUM($AE3:AG3) -> 41361.45495 | AH7: =SUM($AE3:AH3) -> 55775.29532 | AI7: =SUM($AE3:AI3) -> 70189.13568 | AJ7: =SUM($AE3:AJ3) -> 84602.97604 | AK7: =SUM($AE3:AK3) -> 100270.1938 | AL7: =SUM($AE3:AL3) -> 115937.4116 | AM7: =SUM($AE3:AM3) -> 131604.6294 | AN7: =SUM($AE3:AN3) -> 150405.2907 | AO7: =SUM($AE3:AO3) -> 169205.9521 | AP7: =SUM($AE3:AP3) -> 188006.6134 | AQ7: Historical Year Performance | AR7: =INDEX(Targets!Q$49:Q$88,MATCH(Charts!$AQ8,Targets!$A$49:$A$88,0)) -> 10450 | AS7: =INDEX(Targets!R$49:R$88,MATCH(Charts!$AQ8,Targets!$A$49:$A$88,0)) -> 20620 | AT7: =INDEX(Targets!S$49:S$88,MATCH(Charts!$AQ8,Targets!$A$49:$A$88,0)) -> 32249 | AU7: =INDEX(Targets!T$49:T$88,MATCH(Charts!$AQ8,Targets!$A$49:$A$88,0)) -> 45155 | AV7: =INDEX(Targets!U$49:U$88,MATCH(Charts!$AQ8,Targets!$A$49:$A$88,0)) -> 56611 | AW7: =INDEX(Targets!V$49:V$88,MATCH(Charts!$AQ8,Targets!$A$49:$A$88,0)) -> 80027 | AX7: =INDEX(Targets!W$49:W$88,MATCH(Charts!$AQ8,Targets!$A$49:$A$88,0)) -> 91418 | AY7: =INDEX(Targets!X$49:X$88,MATCH(Charts!$AQ8,Targets!$A$49:$A$88,0)) -> 104859 | AZ7: =INDEX(Targets!Y$49:Y$88,MATCH(Charts!$AQ8,Targets!$A$49:$A$88,0)) -> 114426 | BA7: =INDEX(Targets!Z$49:Z$88,MATCH(Charts!$AQ8,Targets!$A$49:$A$88,0)) -> 125355 | BB7: =INDEX(Targets!AA$49:AA$88,MATCH(Charts!$AQ8,Targets!$A$49:$A$88,0)) -> 139116 | BC7: =INDEX(Targets!AB$49:AB$88,MATCH(Charts!$AQ8,Targets!$A$49:$A$88,0)) -> 153496
C8: =#REF!&" "&#REF! ->  | AD8: Previous Year performance | AE8: 13348.76694 | AF8: =SUM($AE4:AF4) -> 24348.01017 | AG8: =SUM($AE4:AG4) -> 37998.60391 | AH8: =SUM($AE4:AH4) -> 52685.27327 | AI8: =SUM($AE4:AI4) -> 65492.44001 | AJ8: =SUM($AE4:AJ4) -> 80274.61077 | AK8: =SUM($AE4:AK4) -> 95942.99582 | AL8: =SUM($AE4:AL4) -> 108982.1775 | AM8: =SUM($AE4:AM4) -> 126400.3183 | AN8: =SUM($AE4:AN4) -> 143027.4988 | AO8: =SUM($AE4:AO4) -> 166502.0782 | AP8: =SUM($AE4:AP4) -> 189561.7737 | AQ8: =$B$10&$B$2 -> FY1395Total Revenues
AC9: =#REF! ->  | AD9: =FY1398_YTD_Actual!$A$1 -> Actual | AE9: =IF(INDEX(FY1398_YTD_Actual!B$3:B$19,MATCH($B$3,FY1398_YTD_Actual!$A$3:$A$19,0))=0,#N/A,INDEX(FY1398_YTD_Actual!B$3:B$19,MATCH($B$3,FY1398_YTD_Actual!$A$3:$A$19,0))) -> 7586.45833 | AF9: =IF(INDEX(FY1398_YTD_Actual!C$3:C$19,MATCH($B$2,FY1398_YTD_Actual!$A$3:$A$19,0))=0,#N/A,INDEX(FY1398_YTD_Actual!C$3:C$19,MATCH($B$2,FY1398_YTD_Actual!$A$3:$A$19,0))) -> 13512.55416 | AG9: =IF(INDEX(FY1398_YTD_Actual!D$3:D$19,MATCH($B$2,FY1398_YTD_Actual!$A$3:$A$19,0))=0,#N/A,INDEX(FY1398_YTD_Actual!D$3:D$19,MATCH($B$2,FY1398_YTD_Actual!$A$3:$A$19,0))) -> 14229.33186 | AH9: =IF(INDEX(FY1398_YTD_Actual!E$3:E$19,MATCH($B$2,FY1398_YTD_Actual!$A$3:$A$19,0))=0,#N/A,INDEX(FY1398_YTD_Actual!E$3:E$19,MATCH($B$2,FY1398_YTD_Actual!$A$3:$A$19,0))) -> 15521.6774 | AI9: =IF(INDEX(FY1398_YTD_Actual!F$3:F$19,MATCH($B$2,FY1398_YTD_Actual!$A$3:$A$19,0))=0,#N/A,INDEX(FY1398_YTD_Actual!F$3:F$19,MATCH($B$2,FY1398_YTD_Actual!$A$3:$A$19,0))) -> 22179.22286 | AJ9: =IF(INDEX(FY1398_YTD_Actual!G$3:G$19,MATCH($B$2,FY1398_YTD_Actual!$A$3:$A$19,0))=0,#N/A,INDEX(FY1398_YTD_Actual!G$3:G$19,MATCH($B$2,FY1398_YTD_Actual!$A$3:$A$19,0))) -> 13266.19731 | AK9: =IF(INDEX(FY1398_YTD_Actual!H$3:H$19,MATCH($B$2,FY1398_YTD_Actual!$A$3:$A$19,0))=0,#N/A,INDEX(FY1398_YTD_Actual!H$3:H$19,MATCH($B$2,FY1398_YTD_Actual!$A$3:$A$19,0))) -> 15883.67453 | AL9: =IF(INDEX(FY1398_YTD_Actual!I$3:I$19,MATCH($B$2,FY1398_YTD_Actual!$A$3:$A$19,0))=0,#N/A,INDEX(FY1398_YTD_Actual!I$3:I$19,MATCH($B$2,FY1398_YTD_Actual!$A$3:$A$19,0))) -> 11233.73707 | AM9: =IF(INDEX(FY1398_YTD_Actual!J$3:J$19,MATCH($B$2,FY1398_YTD_Actual!$A$3:$A$19,0))=0,#N/A,INDEX(FY1398_YTD_Actual!J$3:J$19,MATCH($B$2,FY1398_YTD_Actual!$A$3:$A$19,0))) -> 15066.32782 | AN9: =IF(INDEX(FY1398_YTD_Actual!K$3:K$19,MATCH($B$2,FY1398_YTD_Actual!$A$3:$A$19,0))=0,#N/A,INDEX(FY1398_YTD_Actual!K$3:K$19,MATCH($B$2,FY1398_YTD_Actual!$A$3:$A$19,0))) -> 19716.36368 | AO9: =IF(INDEX(FY1398_YTD_Actual!L$3:L$19,MATCH($B$2,FY1398_YTD_Actual!$A$3:$A$19,0))=0,#N/A,INDEX(FY1398_YTD_Actual!L$3:L$19,MATCH($B$2,FY1398_YTD_Actual!$A$3:$A$19,0))) -> 10844.84621 | AP9: =IF(INDEX(FY1398_YTD_Actual!M$3:M$19,MATCH($B$2,FY1398_YTD_Actual!$A$3:$A$19,0))=0,#N/A,INDEX(FY1398_YTD_Actual!M$3:M$19,MATCH($B$2,FY1398_YTD_Actual!$A$3:$A$19,0))) ->  | AQ9: =IFERROR(IF(AR9="#N/A","","AFMIS"),"") -> AFMIS | AR9: =INDEX(FY1398_YTD_Actual!P25,MATCH(Charts!$B$2,FY1398_YTD_Actual!$A$25,0)) -> 14490 | AS9: =INDEX(FY1398_YTD_Actual!Q25,MATCH(Charts!$B$2,FY1398_YTD_Actual!$A$25,0)) -> 28150 | AT9: =INDEX(FY1398_YTD_Actual!R25,MATCH(Charts!$B$2,FY1398_YTD_Actual!$A$25,0)) -> 42420 | AU9: =INDEX(FY1398_YTD_Actual!S25,MATCH(Charts!$B$2,FY1398_YTD_Actual!$A$25,0)) -> 57970 | AV9: =INDEX(FY1398_YTD_Actual!T25,MATCH(Charts!$B$2,FY1398_YTD_Actual!$A$25,0)) -> 80240 | AW9: =INDEX(FY1398_YTD_Actual!U25,MATCH(Charts!$B$2,FY1398_YTD_Actual!$A$25,0)) -> 93630 | AX9: =INDEX(FY1398_YTD_Actual!V25,MATCH(Charts!$B$2,FY1398_YTD_Actual!$A$25,0)) -> 109420 | AY9: =INDEX(FY1398_YTD_Actual!W25,MATCH(Charts!$B$2,FY1398_YTD_Actual!$A$25,0)) -> 120810 | AZ9: =INDEX(FY1398_YTD_Actual!X25,MATCH(Charts!$B$2,FY1398_YTD_Actual!$A$25,0)) -> 136040 | BA9: =INDEX(FY1398_YTD_Actual!Y25,MATCH(Charts!$B$2,FY1398_YTD_Actual!$A$25,0)) -> 156200 | BB9: =INDEX(FY1398_YTD_Actual!Z25,MATCH(Charts!$B$2,FY1398_YTD_Actual!$A$25,0)) -> 167850 | BC9: =INDEX(FY1398_YTD_Actual!AA25,MATCH(Charts!$B$2,FY1398_YTD_Actual!$A$25,0)) -> 
A10: Historical Year Comparison | B10: FY1395 | AC10: =AD10&#REF! ->  | AD10: =Targets!$C$94 -> 2019 Target | AE10: =INDEX(Targets!C$3:C$41,MATCH(Charts!$AC10,Targets!$A$3:$A$41,0)) ->  | AF10: =INDEX(Targets!D$3:D$41,MATCH(Charts!$AC10,Targets!$A$3:$A$41,0)) ->  | AG10: =INDEX(Targets!E$3:E$41,MATCH(Charts!$AC10,Targets!$A$3:$A$41,0)) ->  | AH10: =INDEX(Targets!F$3:F$41,MATCH(Charts!$AC10,Targets!$A$3:$A$41,0)) ->  | AI10: =INDEX(Targets!G$3:G$41,MATCH(Charts!$AC10,Targets!$A$3:$A$41,0)) ->  | AJ10: =INDEX(Targets!H$3:H$41,MATCH(Charts!$AC10,Targets!$A$3:$A$41,0)) ->  | AK10: =INDEX(Targets!I$3:I$41,MATCH(Charts!$AC10,Targets!$A$3:$A$41,0)) ->  | AL10: =INDEX(Targets!J$3:J$41,MATCH(Charts!$AC10,Targets!$A$3:$A$41,0)) ->  | AM10: =INDEX(Targets!K$3:K$41,MATCH(Charts!$AC10,Targets!$A$3:$A$41,0)) ->  | AN10: =INDEX(Targets!L$3:L$41,MATCH(Charts!$AC10,Targets!$A$3:$A$41,0)) ->  | AO10: =INDEX(Targets!M$3:M$41,MATCH(Charts!$AC10,Targets!$A$3:$A$41,0)) ->  | AP10: =INDEX(Targets!N$3:N$41,MATCH(Charts!$AC10,Targets!$A$3:$A$41,0)) -> 
A11: Flag if actual is lower by: | B11: 0.1 | AC11: =AD11&#REF! ->  | AD11: =Targets!$C$95 -> Previous Year performance | AE11: =INDEX(Targets!C$3:C$41,MATCH(Charts!$AC11,Targets!$A$3:$A$41,0)) ->  | AF11: =INDEX(Targets!D$3:D$41,MATCH(Charts!$AC11,Targets!$A$3:$A$41,0)) ->  | AG11: =INDEX(Targets!E$3:E$41,MATCH(Charts!$AC11,Targets!$A$3:$A$41,0)) ->  | AH11: =INDEX(Targets!F$3:F$41,MATCH(Charts!$AC11,Targets!$A$3:$A$41,0)) ->  | AI11: =INDEX(Targets!G$3:G$41,MATCH(Charts!$AC11,Targets!$A$3:$A$41,0)) ->  | AJ11: =INDEX(Targets!H$3:H$41,MATCH(Charts!$AC11,Targets!$A$3:$A$41,0)) ->  | AK11: =INDEX(Targets!I$3:I$41,MATCH(Charts!$AC11,Targets!$A$3:$A$41,0)) ->  | AL11: =INDEX(Targets!J$3:J$41,MATCH(Charts!$AC11,Targets!$A$3:$A$41,0)) ->  | AM11: =INDEX(Targets!K$3:K$41,MATCH(Charts!$AC11,Targets!$A$3:$A$41,0)) ->  | AN11: =INDEX(Targets!L$3:L$41,MATCH(Charts!$AC11,Targets!$A$3:$A$41,0)) ->  | AO11: =INDEX(Targets!M$3:M$41,MATCH(Charts!$AC11,Targets!$A$3:$A$41,0)) ->  | AP11: =INDEX(Targets!N$3:N$41,MATCH(Charts!$AC11,Targets!$A$3:$A$41,0)) -> 
A12: Date: | B12: 2019-11-17 | AD12: Cummulative
AD13: =AD9 -> Actual | AE13: 7586.45833 | AF13: =SUM($AE9:AF9) -> 21099.01249 | AG13: =SUM($AE9:AG9) -> 35328.34435 | AH13: =SUM($AE9:AH9) -> 50850.02175 | AI13: =SUM($AE9:AI9) -> 73029.24461 | AJ13: =SUM($AE9:AJ9) -> 86295.44192 | AK13: =SUM($AE9:AK9) -> 102179.1164 | AL13: =SUM($AE9:AL9) -> 113412.8535 | AM13: =SUM($AE9:AM9) -> 128479.1813 | AN13: =SUM($AE9:AN9) -> 148195.545 | AO13: =SUM($AE9:AO9) -> 159040.3912 | AP13: =SUM($AE9:AP9) ->  | AQ13: =AQ6 -> Flag if any | AR13: =IF((1-AE13/AE14)>$B$11,AE13,#N/A) -> 
AD14: 2019 Target | AF14: =SUM($AE10:AF10) ->  | AG14: =SUM($AE10:AG10) ->  | AH14: =SUM($AE10:AH10) ->  | AI14: =SUM($AE10:AI10) ->  | AJ14: =SUM($AE10:AJ10) ->  | AK14: =SUM($AE10:AK10) ->  | AL14: =SUM($AE10:AL10) ->  | AM14: =SUM($AE10:AM10) ->  | AN14: =SUM($AE10:AN10) ->  | AO14: =SUM($AE10:AO10) ->  | AP14: =SUM($AE10:AP10) -> 
AD15: Previous Year performance | AF15: =SUM($AE11:AF11) ->  | AG15: =SUM($AE11:AG11) ->  | AH15: =SUM($AE11:AH11) ->  | AI15: =SUM($AE11:AI11) ->  | AJ15: =SUM($AE11:AJ11) ->  | AK15: =SUM($AE11:AK11) ->  | AL15: =SUM($AE11:AL11) ->  | AM15: =SUM($AE11:AM11) ->  | AN15: =SUM($AE11:AN11) ->  | AO15: =SUM($AE11:AO11) ->  | AP15: =SUM($AE11:AP11) -> 
AC16: =A3 -> Figure 2: | AD16: =FY1398_YTD_Actual!$A$1 -> Actual | AE16: =IF(INDEX(FY1398_YTD_Actual!B$3:B$19,MATCH($B$3,FY1398_YTD_Actual!$A$3:$A$19,0))=0,#N/A,INDEX(FY1398_YTD_Actual!B$3:B$19,MATCH($B$3,FY1398_YTD_Actual!$A$3:$A$19,0))) -> 7586.45833 | AF16: =IF(INDEX(FY1398_YTD_Actual!C$3:C$19,MATCH($B$3,FY1398_YTD_Actual!$A$3:$A$19,0))=0,#N/A,INDEX(FY1398_YTD_Actual!C$3:C$19,MATCH($B$3,FY1398_YTD_Actual!$A$3:$A$19,0))) -> 6170.501384 | AG16: =IF(INDEX(FY1398_YTD_Actual!D$3:D$19,MATCH($B$3,FY1398_YTD_Actual!$A$3:$A$19,0))=0,#N/A,INDEX(FY1398_YTD_Actual!D$3:D$19,MATCH($B$3,FY1398_YTD_Actual!$A$3:$A$19,0))) -> 6540.326604 | AH16: =IF(INDEX(FY1398_YTD_Actual!E$3:E$19,MATCH($B$3,FY1398_YTD_Actual!$A$3:$A$19,0))=0,#N/A,INDEX(FY1398_YTD_Actual!E$3:E$19,MATCH($B$3,FY1398_YTD_Actual!$A$3:$A$19,0))) -> 7896.147871 | AI16: =IF(INDEX(FY1398_YTD_Actual!F$3:F$19,MATCH($B$3,FY1398_YTD_Actual!$A$3:$A$19,0))=0,#N/A,INDEX(FY1398_YTD_Actual!F$3:F$19,MATCH($B$3,FY1398_YTD_Actual!$A$3:$A$19,0))) -> 6316.270906 | AJ16: =IF(INDEX(FY1398_YTD_Actual!G$3:G$19,MATCH($B$3,FY1398_YTD_Actual!$A$3:$A$19,0))=0,#N/A,INDEX(FY1398_YTD_Actual!G$3:G$19,MATCH($B$3,FY1398_YTD_Actual!$A$3:$A$19,0))) -> 7178.289319 | AK16: =IF(INDEX(FY1398_YTD_Actual!H$3:H$19,MATCH($B$3,FY1398_YTD_Actual!$A$3:$A$19,0))=0,#N/A,INDEX(FY1398_YTD_Actual!H$3:H$19,MATCH($B$3,FY1398_YTD_Actual!$A$3:$A$19,0))) -> 7906.627872 | AL16: =IF(INDEX(FY1398_YTD_Actual!I$3:I$19,MATCH($B$3,FY1398_YTD_Actual!$A$3:$A$19,0))=0,#N/A,INDEX(FY1398_YTD_Actual!I$3:I$19,MATCH($B$3,FY1398_YTD_Actual!$A$3:$A$19,0))) -> 5113.076954 | AM16: =IF(INDEX(FY1398_YTD_Actual!J$3:J$19,MATCH($B$3,FY1398_YTD_Actual!$A$3:$A$19,0))=0,#N/A,INDEX(FY1398_YTD_Actual!J$3:J$19,MATCH($B$3,FY1398_YTD_Actual!$A$3:$A$19,0))) -> 5491.512538 | AN16: =IF(INDEX(FY1398_YTD_Actual!K$3:K$19,MATCH($B$3,FY1398_YTD_Actual!$A$3:$A$19,0))=0,#N/A,INDEX(FY1398_YTD_Actual!K$3:K$19,MATCH($B$3,FY1398_YTD_Actual!$A$3:$A$19,0))) -> 8845.695374 | AO16: =IF(INDEX(FY1398_YTD_Actual!L$3:L$19,MATCH($B$3,FY1398_YTD_Actual!$A$3:$A$19,0))=0,#N/A,INDEX(FY1398_YTD_Actual!L$3:L$19,MATCH($B$3,FY1398_YTD_Actual!$A$3:$A$19,0))) -> 5241.726557 | AP16: =IF(INDEX(FY1398_YTD_Actual!M$3:M$19,MATCH($B$3,FY1398_YTD_Actual!$A$3:$A$19,0))=0,#N/A,INDEX(FY1398_YTD_Actual!M$3:M$19,MATCH($B$3,FY1398_YTD_Actual!$A$3:$A$19,0))) -> 
AC17: =AD17&$B$3 -> 2019 TargetTax Revenues | AD17: =Targets!$C$94 -> 2019 Target | AE17: =INDEX(Targets!C$3:C$41,MATCH(Charts!$AC17,Targets!$A$3:$A$41,0)) -> 6071.980265 | AF17: =INDEX(Targets!D$3:D$41,MATCH(Charts!$AC17,Targets!$A$3:$A$41,0)) -> 6071.980265 | AG17: =INDEX(Targets!E$3:E$41,MATCH(Charts!$AC17,Targets!$A$3:$A$41,0)) -> 6071.980265 | AH17: =INDEX(Targets!F$3:F$41,MATCH(Charts!$AC17,Targets!$A$3:$A$41,0)) -> 6347.979368 | AI17: =INDEX(Targets!G$3:G$41,MATCH(Charts!$AC17,Targets!$A$3:$A$41,0)) -> 6347.979368 | AJ17: =INDEX(Targets!H$3:H$41,MATCH(Charts!$AC17,Targets!$A$3:$A$41,0)) -> 6347.979368 | AK17: =INDEX(Targets!I$3:I$41,MATCH(Charts!$AC17,Targets!$A$3:$A$41,0)) -> 6899.977574 | AL17: =INDEX(Targets!J$3:J$41,MATCH(Charts!$AC17,Targets!$A$3:$A$41,0)) -> 6899.977574 | AM17: =INDEX(Targets!K$3:K$41,MATCH(Charts!$AC17,Targets!$A$3:$A$41,0)) -> 6899.977574 | AN17: =INDEX(Targets!L$3:L$41,MATCH(Charts!$AC17,Targets!$A$3:$A$41,0)) -> 8279.973088 | AO17: =INDEX(Targets!M$3:M$41,MATCH(Charts!$AC17,Targets!$A$3:$A$41,0)) -> 8279.973088 | AP17: =INDEX(Targets!N$3:N$41,MATCH(Charts!$AC17,Targets!$A$3:$A$41,0)) -> 8279.973088
AC18: =AD18&$B$3 -> Previous Year performanceTax Revenues | AD18: =Targets!$C$95 -> Previous Year performance | AE18: =INDEX(Targets!C$3:C$41,MATCH(Charts!$AC18,Targets!$A$3:$A$41,0)) -> 7276.370557 | AF18: =INDEX(Targets!D$3:D$41,MATCH(Charts!$AC18,Targets!$A$3:$A$41,0)) -> 4537.255813 | AG18: =INDEX(Targets!E$3:E$41,MATCH(Charts!$AC18,Targets!$A$3:$A$41,0)) -> 6193.796967 | AH18: =INDEX(Targets!F$3:F$41,MATCH(Charts!$AC18,Targets!$A$3:$A$41,0)) -> 6975.289812 | AI18: =INDEX(Targets!G$3:G$41,MATCH(Charts!$AC18,Targets!$A$3:$A$41,0)) -> 5079.682374 | AJ18: =INDEX(Targets!H$3:H$41,MATCH(Charts!$AC18,Targets!$A$3:$A$41,0)) -> 7126.997264 | AK18: =INDEX(Targets!I$3:I$41,MATCH(Charts!$AC18,Targets!$A$3:$A$41,0)) -> 7308.975625 | AL18: =INDEX(Targets!J$3:J$41,MATCH(Charts!$AC18,Targets!$A$3:$A$41,0)) -> 5616.289003 | AM18: =INDEX(Targets!K$3:K$41,MATCH(Charts!$AC18,Targets!$A$3:$A$41,0)) -> 6442.2178 | AN18: =INDEX(Targets!L$3:L$41,MATCH(Charts!$AC18,Targets!$A$3:$A$41,0)) -> 8720.222202 | AO18: =INDEX(Targets!M$3:M$41,MATCH(Charts!$AC18,Targets!$A$3:$A$41,0)) -> 9552.850289 | AP18: =INDEX(Targets!N$3:N$41,MATCH(Charts!$AC18,Targets!$A$3:$A$41,0)) -> 8654.68915
AD19: Cummulative
AD20: =AD16 -> Actual | AE20: 7586.45833 | AF20: =SUM($AE16:AF16) -> 13756.95971 | AG20: =SUM($AE16:AG16) -> 20297.28632 | AH20: =SUM($AE16:AH16) -> 28193.43419 | AI20: =SUM($AE16:AI16) -> 34509.70509 | AJ20: =SUM($AE16:AJ16) -> 41687.99441 | AK20: =SUM($AE16:AK16) -> 49594.62229 | AL20: =SUM($AE16:AL16) -> 54707.69924 | AM20: =SUM($AE16:AM16) -> 60199.21178 | AN20: =SUM($AE16:AN16) -> 69044.90715 | AO20: =SUM($AE16:AO16) -> 74286.63371 | AP20: =SUM($AE16:AP16) ->  | AQ20: =AQ13 -> Flag if any | AR20: =IF((1-AE20/AE21)>$B$11,AE20,#N/A) -> 
AD21: 2019 Target | AE21: 6071.980265 | AF21: =SUM($AE17:AF17) -> 12143.96053 | AG21: =SUM($AE17:AG17) -> 18215.94079 | AH21: =SUM($AE17:AH17) -> 24563.92016 | AI21: =SUM($AE17:AI17) -> 30911.89953 | AJ21: =SUM($AE17:AJ17) -> 37259.8789 | AK21: =SUM($AE17:AK17) -> 44159.85647 | AL21: =SUM($AE17:AL17) -> 51059.83405 | AM21: =SUM($AE17:AM17) -> 57959.81162 | AN21: =SUM($AE17:AN17) -> 66239.78471 | AO21: =SUM($AE17:AO17) -> 74519.7578 | AP21: =SUM($AE17:AP17) -> 82799.73088 | AQ21: Historical Year Performance | AR21: =INDEX(Targets!Q$49:Q$88,MATCH(Charts!$AQ22,Targets!$A$49:$A$88,0)) -> 5377 | AS21: =INDEX(Targets!R$49:R$88,MATCH(Charts!$AQ22,Targets!$A$49:$A$88,0)) -> 9985 | AT21: =INDEX(Targets!S$49:S$88,MATCH(Charts!$AQ22,Targets!$A$49:$A$88,0)) -> 15331 | AU21: =INDEX(Targets!T$49:T$88,MATCH(Charts!$AQ22,Targets!$A$49:$A$88,0)) -> 21774 | AV21: =INDEX(Targets!U$49:U$88,MATCH(Charts!$AQ22,Targets!$A$49:$A$88,0)) -> 26926 | AW21: =INDEX(Targets!V$49:V$88,MATCH(Charts!$AQ22,Targets!$A$49:$A$88,0)) -> 31792 | AX21: =INDEX(Targets!W$49:W$88,MATCH(Charts!$AQ22,Targets!$A$49:$A$88,0)) -> 37870 | AY21: =INDEX(Targets!X$49:X$88,MATCH(Charts!$AQ22,Targets!$A$49:$A$88,0)) -> 43732 | AZ21: =INDEX(Targets!Y$49:Y$88,MATCH(Charts!$AQ22,Targets!$A$49:$A$88,0)) -> 48007 | BA21: =INDEX(Targets!Z$49:Z$88,MATCH(Charts!$AQ22,Targets!$A$49:$A$88,0)) -> 55020 | BB21: =INDEX(Targets!AA$49:AA$88,MATCH(Charts!$AQ22,Targets!$A$49:$A$88,0)) -> 61403 | BC21: =INDEX(Targets!AB$49:AB$88,MATCH(Charts!$AQ22,Targets!$A$49:$A$88,0)) -> 69498
AD22: Previous Year performance | AE22: 7276.370557 | AF22: =SUM($AE18:AF18) -> 11813.62637 | AG22: =SUM($AE18:AG18) -> 18007.42334 | AH22: =SUM($AE18:AH18) -> 24982.71315 | AI22: =SUM($AE18:AI18) -> 30062.39552 | AJ22: =SUM($AE18:AJ18) -> 37189.39279 | AK22: =SUM($AE18:AK18) -> 44498.36841 | AL22: =SUM($AE18:AL18) -> 50114.65742 | AM22: =SUM($AE18:AM18) -> 56556.87522 | AN22: =SUM($AE18:AN18) -> 65277.09742 | AO22: =SUM($AE18:AO18) -> 74829.94771 | AP22: =SUM($AE18:AP18) -> 83484.63686 | AQ22: =$B$10&$B$3 -> FY1395Tax Revenues
AC23: =#REF! ->  | AD23: =FY1398_YTD_Actual!$A$1 -> Actual | AE23: =IF(INDEX(FY1398_YTD_Actual!B$3:B$19,MATCH($B$2,FY1398_YTD_Actual!$A$3:$A$19,0))=0,#N/A,INDEX(FY1398_YTD_Actual!B$3:B$19,MATCH($B$2,FY1398_YTD_Actual!$A$3:$A$19,0))) -> 14478.21889 | AF23: =IF(INDEX(FY1398_YTD_Actual!C$3:C$19,MATCH($B$2,FY1398_YTD_Actual!$A$3:$A$19,0))=0,#N/A,INDEX(FY1398_YTD_Actual!C$3:C$19,MATCH($B$2,FY1398_YTD_Actual!$A$3:$A$19,0))) -> 13512.55416 | AG23: =IF(INDEX(FY1398_YTD_Actual!D$3:D$19,MATCH($B$2,FY1398_YTD_Actual!$A$3:$A$19,0))=0,#N/A,INDEX(FY1398_YTD_Actual!D$3:D$19,MATCH($B$2,FY1398_YTD_Actual!$A$3:$A$19,0))) -> 14229.33186 | AH23: =IF(INDEX(FY1398_YTD_Actual!E$3:E$19,MATCH($B$2,FY1398_YTD_Actual!$A$3:$A$19,0))=0,#N/A,INDEX(FY1398_YTD_Actual!E$3:E$19,MATCH($B$2,FY1398_YTD_Actual!$A$3:$A$19,0))) -> 15521.6774 | AI23: =IF(INDEX(FY1398_YTD_Actual!F$3:F$19,MATCH($B$2,FY1398_YTD_Actual!$A$3:$A$19,0))=0,#N/A,INDEX(FY1398_YTD_Actual!F$3:F$19,MATCH($B$2,FY1398_YTD_Actual!$A$3:$A$19,0))) -> 22179.22286 | AJ23: =IF(INDEX(FY1398_YTD_Actual!G$3:G$19,MATCH($B$2,FY1398_YTD_Actual!$A$3:$A$19,0))=0,#N/A,INDEX(FY1398_YTD_Actual!G$3:G$19,MATCH($B$2,FY1398_YTD_Actual!$A$3:$A$19,0))) -> 13266.19731 | AK23: =IF(INDEX(FY1398_YTD_Actual!H$3:H$19,MATCH($B$2,FY1398_YTD_Actual!$A$3:$A$19,0))=0,#N/A,INDEX(FY1398_YTD_Actual!H$3:H$19,MATCH($B$2,FY1398_YTD_Actual!$A$3:$A$19,0))) -> 15883.67453 | AL23: =IF(INDEX(FY1398_YTD_Actual!I$3:I$19,MATCH($B$2,FY1398_YTD_Actual!$A$3:$A$19,0))=0,#N/A,INDEX(FY1398_YTD_Actual!I$3:I$19,MATCH($B$2,FY1398_YTD_Actual!$A$3:$A$19,0))) -> 11233.73707 | AM23: =IF(INDEX(FY1398_YTD_Actual!J$3:J$19,MATCH($B$2,FY1398_YTD_Actual!$A$3:$A$19,0))=0,#N/A,INDEX(FY1398_YTD_Actual!J$3:J$19,MATCH($B$2,FY1398_YTD_Actual!$A$3:$A$19,0))) -> 15066.32782 | AN23: =IF(INDEX(FY1398_YTD_Actual!K$3:K$19,MATCH($B$2,FY1398_YTD_Actual!$A$3:$A$19,0))=0,#N/A,INDEX(FY1398_YTD_Actual!K$3:K$19,MATCH($B$2,FY1398_YTD_Actual!$A$3:$A$19,0))) -> 19716.36368 | AO23: =IF(INDEX(FY1398_YTD_Actual!L$3:L$19,MATCH($B$2,FY1398_YTD_Actual!$A$3:$A$19,0))=0,#N/A,INDEX(FY1398_YTD_Actual!L$3:L$19,MATCH($B$2,FY1398_YTD_Actual!$A$3:$A$19,0))) -> 10844.84621 | AP23: =IF(INDEX(FY1398_YTD_Actual!M$3:M$19,MATCH($B$2,FY1398_YTD_Actual!$A$3:$A$19,0))=0,#N/A,INDEX(FY1398_YTD_Actual!M$3:M$19,MATCH($B$2,FY1398_YTD_Actual!$A$3:$A$19,0))) -> 
AC24: =AD24&#REF! ->  | AD24: =Targets!$C$94 -> 2019 Target | AE24: =INDEX(Targets!C$3:C$41,MATCH(Charts!$AC24,Targets!$A$3:$A$41,0)) ->  | AF24: =INDEX(Targets!D$3:D$41,MATCH(Charts!$AC24,Targets!$A$3:$A$41,0)) ->  | AG24: =INDEX(Targets!E$3:E$41,MATCH(Charts!$AC24,Targets!$A$3:$A$41,0)) ->  | AH24: =INDEX(Targets!F$3:F$41,MATCH(Charts!$AC24,Targets!$A$3:$A$41,0)) ->  | AI24: =INDEX(Targets!G$3:G$41,MATCH(Charts!$AC24,Targets!$A$3:$A$41,0)) ->  | AJ24: =INDEX(Targets!H$3:H$41,MATCH(Charts!$AC24,Targets!$A$3:$A$41,0)) ->  | AK24: =INDEX(Targets!I$3:I$41,MATCH(Charts!$AC24,Targets!$A$3:$A$41,0)) ->  | AL24: =INDEX(Targets!J$3:J$41,MATCH(Charts!$AC24,Targets!$A$3:$A$41,0)) ->  | AM24: =INDEX(Targets!K$3:K$41,MATCH(Charts!$AC24,Targets!$A$3:$A$41,0)) ->  | AN24: =INDEX(Targets!L$3:L$41,MATCH(Charts!$AC24,Targets!$A$3:$A$41,0)) ->  | AO24: =INDEX(Targets!M$3:M$41,MATCH(Charts!$AC24,Targets!$A$3:$A$41,0)) ->  | AP24: =INDEX(Targets!N$3:N$41,MATCH(Charts!$AC24,Targets!$A$3:$A$41,0)) -> 
AC25: =AD25&#REF! ->  | AD25: =Targets!$C$95 -> Previous Year performance | AE25: =INDEX(Targets!C$3:C$41,MATCH(Charts!$AC25,Targets!$A$3:$A$41,0)) ->  | AF25: =INDEX(Targets!D$3:D$41,MATCH(Charts!$AC25,Targets!$A$3:$A$41,0)) ->  | AG25: =INDEX(Targets!E$3:E$41,MATCH(Charts!$AC25,Targets!$A$3:$A$41,0)) ->  | AH25: =INDEX(Targets!F$3:F$41,MATCH(Charts!$AC25,Targets!$A$3:$A$41,0)) ->  | AI25: =INDEX(Targets!G$3:G$41,MATCH(Charts!$AC25,Targets!$A$3:$A$41,0)) ->  | AJ25: =INDEX(Targets!H$3:H$41,MATCH(Charts!$AC25,Targets!$A$3:$A$41,0)) ->  | AK25: =INDEX(Targets!I$3:I$41,MATCH(Charts!$AC25,Targets!$A$3:$A$41,0)) ->  | AL25: =INDEX(Targets!J$3:J$41,MATCH(Charts!$AC25,Targets!$A$3:$A$41,0)) ->  | AM25: =INDEX(Targets!K$3:K$41,MATCH(Charts!$AC25,Targets!$A$3:$A$41,0)) ->  | AN25: =INDEX(Targets!L$3:L$41,MATCH(Charts!$AC25,Targets!$A$3:$A$41,0)) ->  | AO25: =INDEX(Targets!M$3:M$41,MATCH(Charts!$AC25,Targets!$A$3:$A$41,0)) ->  | AP25: =INDEX(Targets!N$3:N$41,MATCH(Charts!$AC25,Targets!$A$3:$A$41,0)) -> 
AD26: Cummulative
AD27: =AD23 -> Actual | AE27: 14478.21889 | AF27: =SUM($AE23:AF23) -> 27990.77305 | AG27: =SUM($AE23:AG23) -> 42220.10491 | AH27: =SUM($AE23:AH23) -> 57741.7823 | AI27: =SUM($AE23:AI23) -> 79921.00517 | AJ27: =SUM($AE23:AJ23) -> 93187.20247 | AK27: =SUM($AE23:AK23) -> 109070.877 | AL27: =SUM($AE23:AL23) -> 120304.6141 | AM27: =SUM($AE23:AM23) -> 135370.9419 | AN27: =SUM($AE23:AN23) -> 155087.3056 | AO27: =SUM($AE23:AO23) -> 165932.1518 | AP27: =SUM($AE23:AP23) ->  | AQ27: =AQ20 -> Flag if any | AR27: =IF((1-AE27/AE28)>$B$11,AE27,#N/A) -> 
AD28: 2019 Target | AF28: =SUM($AE24:AF24) ->  | AG28: =SUM($AE24:AG24) ->  | AH28: =SUM($AE24:AH24) ->  | AI28: =SUM($AE24:AI24) ->  | AJ28: =SUM($AE24:AJ24) ->  | AK28: =SUM($AE24:AK24) ->  | AL28: =SUM($AE24:AL24) ->  | AM28: =SUM($AE24:AM24) ->  | AN28: =SUM($AE24:AN24) ->  | AO28: =SUM($AE24:AO24) ->  | AP28: =SUM($AE24:AP24) -> 
AD29: Previous Year performance | AF29: =SUM($AE25:AF25) ->  | AG29: =SUM($AE25:AG25) ->  | AH29: =SUM($AE25:AH25) ->  | AI29: =SUM($AE25:AI25) ->  | AJ29: =SUM($AE25:AJ25) ->  | AK29: =SUM($AE25:AK25) ->  | AL29: =SUM($AE25:AL25) ->  | AM29: =SUM($AE25:AM25) ->  | AN29: =SUM($AE25:AN25) ->  | AO29: =SUM($AE25:AO25) ->  | AP29: =SUM($AE25:AP25) -> 
AC30: =A4 -> Figure 3: | AD30: =FY1398_YTD_Actual!$A$1 -> Actual | AE30: =IF(INDEX(FY1398_YTD_Actual!B$3:B$19,MATCH($B$4,FY1398_YTD_Actual!$A$3:$A$19,0))=0,#N/A,INDEX(FY1398_YTD_Actual!B$3:B$19,MATCH($B$4,FY1398_YTD_Actual!$A$3:$A$19,0))) -> 3320.437993 | AF30: =IF(INDEX(FY1398_YTD_Actual!C$3:C$19,MATCH($B$4,FY1398_YTD_Actual!$A$3:$A$19,0))=0,#N/A,INDEX(FY1398_YTD_Actual!C$3:C$19,MATCH($B$4,FY1398_YTD_Actual!$A$3:$A$19,0))) -> 3053.049711 | AG30: =IF(INDEX(FY1398_YTD_Actual!D$3:D$19,MATCH($B$4,FY1398_YTD_Actual!$A$3:$A$19,0))=0,#N/A,INDEX(FY1398_YTD_Actual!D$3:D$19,MATCH($B$4,FY1398_YTD_Actual!$A$3:$A$19,0))) -> 3110.951708 | AH30: =IF(INDEX(FY1398_YTD_Actual!E$3:E$19,MATCH($B$4,FY1398_YTD_Actual!$A$3:$A$19,0))=0,#N/A,INDEX(FY1398_YTD_Actual!E$3:E$19,MATCH($B$4,FY1398_YTD_Actual!$A$3:$A$19,0))) -> 3138.886413 | AI30: =IF(INDEX(FY1398_YTD_Actual!F$3:F$19,MATCH($B$4,FY1398_YTD_Actual!$A$3:$A$19,0))=0,#N/A,INDEX(FY1398_YTD_Actual!F$3:F$19,MATCH($B$4,FY1398_YTD_Actual!$A$3:$A$19,0))) -> 3439.346534 | AJ30: =IF(INDEX(FY1398_YTD_Actual!G$3:G$19,MATCH($B$4,FY1398_YTD_Actual!$A$3:$A$19,0))=0,#N/A,INDEX(FY1398_YTD_Actual!G$3:G$19,MATCH($B$4,FY1398_YTD_Actual!$A$3:$A$19,0))) -> 2813.229445 | AK30: =IF(INDEX(FY1398_YTD_Actual!H$3:H$19,MATCH($B$4,FY1398_YTD_Actual!$A$3:$A$19,0))=0,#N/A,INDEX(FY1398_YTD_Actual!H$3:H$19,MATCH($B$4,FY1398_YTD_Actual!$A$3:$A$19,0))) -> 3484.116377 | AL30: =IF(INDEX(FY1398_YTD_Actual!I$3:I$19,MATCH($B$4,FY1398_YTD_Actual!$A$3:$A$19,0))=0,#N/A,INDEX(FY1398_YTD_Actual!I$3:I$19,MATCH($B$4,FY1398_YTD_Actual!$A$3:$A$19,0))) -> 2497.439034 | AM30: =IF(INDEX(FY1398_YTD_Actual!J$3:J$19,MATCH($B$4,FY1398_YTD_Actual!$A$3:$A$19,0))=0,#N/A,INDEX(FY1398_YTD_Actual!J$3:J$19,MATCH($B$4,FY1398_YTD_Actual!$A$3:$A$19,0))) -> 2884.889948 | AN30: =IF(INDEX(FY1398_YTD_Actual!K$3:K$19,MATCH($B$4,FY1398_YTD_Actual!$A$3:$A$19,0))=0,#N/A,INDEX(FY1398_YTD_Actual!K$3:K$19,MATCH($B$4,FY1398_YTD_Actual!$A$3:$A$19,0))) -> 2610.427206 | AO30: =IF(INDEX(FY1398_YTD_Actual!L$3:L$19,MATCH($B$4,FY1398_YTD_Actual!$A$3:$A$19,0))=0,#N/A,INDEX(FY1398_YTD_Actual!L$3:L$19,MATCH($B$4,FY1398_YTD_Actual!$A$3:$A$19,0))) -> 2653.498448 | AP30: =IF(INDEX(FY1398_YTD_Actual!M$3:M$19,MATCH($B$4,FY1398_YTD_Actual!$A$3:$A$19,0))=0,#N/A,INDEX(FY1398_YTD_Actual!M$3:M$19,MATCH($B$4,FY1398_YTD_Actual!$A$3:$A$19,0))) -> 
AC31: =AD31&$B$4 -> 2019 TargetCustoms Revenues | AD31: =Targets!$C$94 -> 2019 Target | AE31: =INDEX(Targets!C$3:C$41,MATCH(Charts!$AC31,Targets!$A$3:$A$41,0)) -> 2559.586264 | AF31: =INDEX(Targets!D$3:D$41,MATCH(Charts!$AC31,Targets!$A$3:$A$41,0)) -> 2559.586264 | AG31: =INDEX(Targets!E$3:E$41,MATCH(Charts!$AC31,Targets!$A$3:$A$41,0)) -> 2559.586264 | AH31: =INDEX(Targets!F$3:F$41,MATCH(Charts!$AC31,Targets!$A$3:$A$41,0)) -> 2675.931095 | AI31: =INDEX(Targets!G$3:G$41,MATCH(Charts!$AC31,Targets!$A$3:$A$41,0)) -> 2675.931095 | AJ31: =INDEX(Targets!H$3:H$41,MATCH(Charts!$AC31,Targets!$A$3:$A$41,0)) -> 2675.931095 | AK31: =INDEX(Targets!I$3:I$41,MATCH(Charts!$AC31,Targets!$A$3:$A$41,0)) -> 2908.620755 | AL31: =INDEX(Targets!J$3:J$41,MATCH(Charts!$AC31,Targets!$A$3:$A$41,0)) -> 2908.620755 | AM31: =INDEX(Targets!K$3:K$41,MATCH(Charts!$AC31,Targets!$A$3:$A$41,0)) -> 2908.620755 | AN31: =INDEX(Targets!L$3:L$41,MATCH(Charts!$AC31,Targets!$A$3:$A$41,0)) -> 3490.344906 | AO31: =INDEX(Targets!M$3:M$41,MATCH(Charts!$AC31,Targets!$A$3:$A$41,0)) -> 3490.344906 | AP31: =INDEX(Targets!N$3:N$41,MATCH(Charts!$AC31,Targets!$A$3:$A$41,0)) -> 3490.344906
AC32: =AD32&$B$4 -> Previous Year performanceCustoms Revenues | AD32: =Targets!$C$95 -> Previous Year performance | AE32: =INDEX(Targets!C$3:C$41,MATCH(Charts!$AC32,Targets!$A$3:$A$41,0)) -> 2767.147681 | AF32: =INDEX(Targets!D$3:D$41,MATCH(Charts!$AC32,Targets!$A$3:$A$41,0)) -> 2745.11485 | AG32: =INDEX(Targets!E$3:E$41,MATCH(Charts!$AC32,Targets!$A$3:$A$41,0)) -> 2852.411152 | AH32: =INDEX(Targets!F$3:F$41,MATCH(Charts!$AC32,Targets!$A$3:$A$41,0)) -> 2650.673459 | AI32: =INDEX(Targets!G$3:G$41,MATCH(Charts!$AC32,Targets!$A$3:$A$41,0)) -> 3065.464372 | AJ32: =INDEX(Targets!H$3:H$41,MATCH(Charts!$AC32,Targets!$A$3:$A$41,0)) -> 2690.8434 | AK32: =INDEX(Targets!I$3:I$41,MATCH(Charts!$AC32,Targets!$A$3:$A$41,0)) -> 3127.610377 | AL32: =INDEX(Targets!J$3:J$41,MATCH(Charts!$AC32,Targets!$A$3:$A$41,0)) -> 3097.243378 | AM32: =INDEX(Targets!K$3:K$41,MATCH(Charts!$AC32,Targets!$A$3:$A$41,0)) -> 2529.925416 | AN32: =INDEX(Targets!L$3:L$41,MATCH(Charts!$AC32,Targets!$A$3:$A$41,0)) -> 2881.704204 | AO32: =INDEX(Targets!M$3:M$41,MATCH(Charts!$AC32,Targets!$A$3:$A$41,0)) -> 3301.100888 | AP32: =INDEX(Targets!N$3:N$41,MATCH(Charts!$AC32,Targets!$A$3:$A$41,0)) -> 3482.925564
AD33: Cummulative
AD34: =AD30 -> Actual | AE34: 3320.437993 | AF34: =SUM($AE30:AF30) -> 6373.487704 | AG34: =SUM($AE30:AG30) -> 9484.439412 | AH34: =SUM($AE30:AH30) -> 12623.32582 | AI34: =SUM($AE30:AI30) -> 16062.67236 | AJ34: =SUM($AE30:AJ30) -> 18875.9018 | AK34: =SUM($AE30:AK30) -> 22360.01818 | AL34: =SUM($AE30:AL30) -> 24857.45721 | AM34: =SUM($AE30:AM30) -> 27742.34716 | AN34: =SUM($AE30:AN30) -> 30352.77437 | AO34: =SUM($AE30:AO30) -> 33006.27282 | AP34: =SUM($AE30:AP30) ->  | AQ34: =AQ27 -> Flag if any | AR34: =IF((1-AE34/AE35)>$B$11,AE34,#N/A) -> 
AD35: 2019 Target | AE35: 2559.586264 | AF35: =SUM($AE31:AF31) -> 5119.172529 | AG35: =SUM($AE31:AG31) -> 7678.758793 | AH35: =SUM($AE31:AH31) -> 10354.68989 | AI35: =SUM($AE31:AI31) -> 13030.62098 | AJ35: =SUM($AE31:AJ31) -> 15706.55208 | AK35: =SUM($AE31:AK31) -> 18615.17283 | AL35: =SUM($AE31:AL31) -> 21523.79359 | AM35: =SUM($AE31:AM31) -> 24432.41434 | AN35: =SUM($AE31:AN31) -> 27922.75925 | AO35: =SUM($AE31:AO31) -> 31413.10415 | AP35: =SUM($AE31:AP31) -> 34903.44906 | AQ35: Historical Year Performance | AR35: =INDEX(Targets!Q$49:Q$88,MATCH(Charts!$AQ36,Targets!$A$49:$A$88,0)) -> 2512 | AS35: =INDEX(Targets!R$49:R$88,MATCH(Charts!$AQ36,Targets!$A$49:$A$88,0)) -> 5059 | AT35: =INDEX(Targets!S$49:S$88,MATCH(Charts!$AQ36,Targets!$A$49:$A$88,0)) -> 7765 | AU35: =INDEX(Targets!T$49:T$88,MATCH(Charts!$AQ36,Targets!$A$49:$A$88,0)) -> 10285 | AV35: =INDEX(Targets!U$49:U$88,MATCH(Charts!$AQ36,Targets!$A$49:$A$88,0)) -> 13154 | AW35: =INDEX(Targets!V$49:V$88,MATCH(Charts!$AQ36,Targets!$A$49:$A$88,0)) -> 15801 | AX35: =INDEX(Targets!W$49:W$88,MATCH(Charts!$AQ36,Targets!$A$49:$A$88,0)) -> 18023 | AY35: =INDEX(Targets!X$49:X$88,MATCH(Charts!$AQ36,Targets!$A$49:$A$88,0)) -> 20658 | AZ35: =INDEX(Targets!Y$49:Y$88,MATCH(Charts!$AQ36,Targets!$A$49:$A$88,0)) -> 23082 | BA35: =INDEX(Targets!Z$49:Z$88,MATCH(Charts!$AQ36,Targets!$A$49:$A$88,0)) -> 25813 | BB35: =INDEX(Targets!AA$49:AA$88,MATCH(Charts!$AQ36,Targets!$A$49:$A$88,0)) -> 28771 | BC35: =INDEX(Targets!AB$49:AB$88,MATCH(Charts!$AQ36,Targets!$A$49:$A$88,0)) -> 31266
AD36: Previous Year performance | AE36: 2767.147681 | AF36: =SUM($AE32:AF32) -> 5512.262531 | AG36: =SUM($AE32:AG32) -> 8364.673683 | AH36: =SUM($AE32:AH32) -> 11015.34714 | AI36: =SUM($AE32:AI32) -> 14080.81151 | AJ36: =SUM($AE32:AJ32) -> 16771.65491 | AK36: =SUM($AE32:AK32) -> 19899.26529 | AL36: =SUM($AE32:AL32) -> 22996.50867 | AM36: =SUM($AE32:AM32) -> 25526.43409 | AN36: =SUM($AE32:AN32) -> 28408.13829 | AO36: =SUM($AE32:AO32) -> 31709.23918 | AP36: =SUM($AE32:AP32) -> 35192.16474 | AQ36: =$B$10&$B$4 -> FY1395Customs Revenues
AC37: =#REF! ->  | AD37: =FY1398_YTD_Actual!$A$1 -> Actual | AE37: =IF(INDEX(FY1398_YTD_Actual!B$3:B$19,MATCH($B$2,FY1398_YTD_Actual!$A$3:$A$19,0))=0,#N/A,INDEX(FY1398_YTD_Actual!B$3:B$19,MATCH($B$2,FY1398_YTD_Actual!$A$3:$A$19,0))) -> 14478.21889 | AF37: =IF(INDEX(FY1398_YTD_Actual!C$3:C$19,MATCH($B$2,FY1398_YTD_Actual!$A$3:$A$19,0))=0,#N/A,INDEX(FY1398_YTD_Actual!C$3:C$19,MATCH($B$2,FY1398_YTD_Actual!$A$3:$A$19,0))) -> 13512.55416 | AG37: =IF(INDEX(FY1398_YTD_Actual!D$3:D$19,MATCH($B$2,FY1398_YTD_Actual!$A$3:$A$19,0))=0,#N/A,INDEX(FY1398_YTD_Actual!D$3:D$19,MATCH($B$2,FY1398_YTD_Actual!$A$3:$A$19,0))) -> 14229.33186 | AH37: =IF(INDEX(FY1398_YTD_Actual!E$3:E$19,MATCH($B$2,FY1398_YTD_Actual!$A$3:$A$19,0))=0,#N/A,INDEX(FY1398_YTD_Actual!E$3:E$19,MATCH($B$2,FY1398_YTD_Actual!$A$3:$A$19,0))) -> 15521.6774 | AI37: =IF(INDEX(FY1398_YTD_Actual!F$3:F$19,MATCH($B$2,FY1398_YTD_Actual!$A$3:$A$19,0))=0,#N/A,INDEX(FY1398_YTD_Actual!F$3:F$19,MATCH($B$2,FY1398_YTD_Actual!$A$3:$A$19,0))) -> 22179.22286 | AJ37: =IF(INDEX(FY1398_YTD_Actual!G$3:G$19,MATCH($B$2,FY1398_YTD_Actual!$A$3:$A$19,0))=0,#N/A,INDEX(FY1398_YTD_Actual!G$3:G$19,MATCH($B$2,FY1398_YTD_Actual!$A$3:$A$19,0))) -> 13266.19731 | AK37: =IF(INDEX(FY1398_YTD_Actual!H$3:H$19,MATCH($B$2,FY1398_YTD_Actual!$A$3:$A$19,0))=0,#N/A,INDEX(FY1398_YTD_Actual!H$3:H$19,MATCH($B$2,FY1398_YTD_Actual!$A$3:$A$19,0))) -> 15883.67453 | AL37: =IF(INDEX(FY1398_YTD_Actual!I$3:I$19,MATCH($B$2,FY1398_YTD_Actual!$A$3:$A$19,0))=0,#N/A,INDEX(FY1398_YTD_Actual!I$3:I$19,MATCH($B$2,FY1398_YTD_Actual!$A$3:$A$19,0))) -> 11233.73707 | AM37: =IF(INDEX(FY1398_YTD_Actual!J$3:J$19,MATCH($B$2,FY1398_YTD_Actual!$A$3:$A$19,0))=0,#N/A,INDEX(FY1398_YTD_Actual!J$3:J$19,MATCH($B$2,FY1398_YTD_Actual!$A$3:$A$19,0))) -> 15066.32782 | AN37: =IF(INDEX(FY1398_YTD_Actual!K$3:K$19,MATCH($B$2,FY1398_YTD_Actual!$A$3:$A$19,0))=0,#N/A,INDEX(FY1398_YTD_Actual!K$3:K$19,MATCH($B$2,FY1398_YTD_Actual!$A$3:$A$19,0))) -> 19716.36368 | AO37: =IF(INDEX(FY1398_YTD_Actual!L$3:L$19,MATCH($B$2,FY1398_YTD_Actual!$A$3:$A$19,0))=0,#N/A,INDEX(FY1398_YTD_Actual!L$3:L$19,MATCH($B$2,FY1398_YTD_Actual!$A$3:$A$19,0))) -> 10844.84621 | AP37: =IF(INDEX(FY1398_YTD_Actual!M$3:M$19,MATCH($B$2,FY1398_YTD_Actual!$A$3:$A$19,0))=0,#N/A,INDEX(FY1398_YTD_Actual!M$3:M$19,MATCH($B$2,FY1398_YTD_Actual!$A$3:$A$19,0))) -> 
AC38: =AD38&#REF! ->  | AD38: =Targets!$C$94 -> 2019 Target | AE38: =INDEX(Targets!C$3:C$41,MATCH(Charts!$AC38,Targets!$A$3:$A$41,0)) ->  | AF38: =INDEX(Targets!D$3:D$41,MATCH(Charts!$AC38,Targets!$A$3:$A$41,0)) ->  | AG38: =INDEX(Targets!E$3:E$41,MATCH(Charts!$AC38,Targets!$A$3:$A$41,0)) ->  | AH38: =INDEX(Targets!F$3:F$41,MATCH(Charts!$AC38,Targets!$A$3:$A$41,0)) ->  | AI38: =INDEX(Targets!G$3:G$41,MATCH(Charts!$AC38,Targets!$A$3:$A$41,0)) ->  | AJ38: =INDEX(Targets!H$3:H$41,MATCH(Charts!$AC38,Targets!$A$3:$A$41,0)) ->  | AK38: =INDEX(Targets!I$3:I$41,MATCH(Charts!$AC38,Targets!$A$3:$A$41,0)) ->  | AL38: =INDEX(Targets!J$3:J$41,MATCH(Charts!$AC38,Targets!$A$3:$A$41,0)) ->  | AM38: =INDEX(Targets!K$3:K$41,MATCH(Charts!$AC38,Targets!$A$3:$A$41,0)) ->  | AN38: =INDEX(Targets!L$3:L$41,MATCH(Charts!$AC38,Targets!$A$3:$A$41,0)) ->  | AO38: =INDEX(Targets!M$3:M$41,MATCH(Charts!$AC38,Targets!$A$3:$A$41,0)) ->  | AP38: =INDEX(Targets!N$3:N$41,MATCH(Charts!$AC38,Targets!$A$3:$A$41,0)) -> 
AC39: =AD39&#REF! ->  | AD39: =Targets!$C$95 -> Previous Year performance | AE39: =INDEX(Targets!C$3:C$41,MATCH(Charts!$AC39,Targets!$A$3:$A$41,0)) ->  | AF39: =INDEX(Targets!D$3:D$41,MATCH(Charts!$AC39,Targets!$A$3:$A$41,0)) ->  | AG39: =INDEX(Targets!E$3:E$41,MATCH(Charts!$AC39,Targets!$A$3:$A$41,0)) ->  | AH39: =INDEX(Targets!F$3:F$41,MATCH(Charts!$AC39,Targets!$A$3:$A$41,0)) ->  | AI39: =INDEX(Targets!G$3:G$41,MATCH(Charts!$AC39,Targets!$A$3:$A$41,0)) ->  | AJ39: =INDEX(Targets!H$3:H$41,MATCH(Charts!$AC39,Targets!$A$3:$A$41,0)) ->  | AK39: =INDEX(Targets!I$3:I$41,MATCH(Charts!$AC39,Targets!$A$3:$A$41,0)) ->  | AL39: =INDEX(Targets!J$3:J$41,MATCH(Charts!$AC39,Targets!$A$3:$A$41,0)) ->  | AM39: =INDEX(Targets!K$3:K$41,MATCH(Charts!$AC39,Targets!$A$3:$A$41,0)) ->  | AN39: =INDEX(Targets!L$3:L$41,MATCH(Charts!$AC39,Targets!$A$3:$A$41,0)) ->  | AO39: =INDEX(Targets!M$3:M$41,MATCH(Charts!$AC39,Targets!$A$3:$A$41,0)) ->  | AP39: =INDEX(Targets!N$3:N$41,MATCH(Charts!$AC39,Targets!$A$3:$A$41,0)) -> 
AD40: Cummulative
AD41: =AD37 -> Actual | AE41: 14478.21889 | AF41: =SUM($AE37:AF37) -> 27990.77305 | AG41: =SUM($AE37:AG37) -> 42220.10491 | AH41: =SUM($AE37:AH37) -> 57741.7823 | AI41: =SUM($AE37:AI37) -> 79921.00517 | AJ41: =SUM($AE37:AJ37) -> 93187.20247 | AK41: =SUM($AE37:AK37) -> 109070.877 | AL41: =SUM($AE37:AL37) -> 120304.6141 | AM41: =SUM($AE37:AM37) -> 135370.9419 | AN41: =SUM($AE37:AN37) -> 155087.3056 | AO41: =SUM($AE37:AO37) -> 165932.1518 | AP41: =SUM($AE37:AP37) ->  | AQ41: =AQ34 -> Flag if any | AR41: =IF((1-AE41/AE42)>$B$11,AE41,#N/A) -> 
AD42: 2019 Target | AF42: =SUM($AE38:AF38) ->  | AG42: =SUM($AE38:AG38) ->  | AH42: =SUM($AE38:AH38) ->  | AI42: =SUM($AE38:AI38) ->  | AJ42: =SUM($AE38:AJ38) ->  | AK42: =SUM($AE38:AK38) ->  | AL42: =SUM($AE38:AL38) ->  | AM42: =SUM($AE38:AM38) ->  | AN42: =SUM($AE38:AN38) ->  | AO42: =SUM($AE38:AO38) ->  | AP42: =SUM($AE38:AP38) -> 
AD43: Previous Year performance | AF43: =SUM($AE39:AF39) ->  | AG43: =SUM($AE39:AG39) ->  | AH43: =SUM($AE39:AH39) ->  | AI43: =SUM($AE39:AI39) ->  | AJ43: =SUM($AE39:AJ39) ->  | AK43: =SUM($AE39:AK39) ->  | AL43: =SUM($AE39:AL39) ->  | AM43: =SUM($AE39:AM39) ->  | AN43: =SUM($AE39:AN39) ->  | AO43: =SUM($AE39:AO39) ->  | AP43: =SUM($AE39:AP39) -> 
AC44: =A5 -> Figure 4: | AD44: =FY1398_YTD_Actual!$A$1 -> Actual | AE44: =IF(INDEX(FY1398_YTD_Actual!B$3:B$19,MATCH($B$5,FY1398_YTD_Actual!$A$3:$A$19,0))=0,#N/A,INDEX(FY1398_YTD_Actual!B$3:B$19,MATCH($B$5,FY1398_YTD_Actual!$A$3:$A$19,0))) -> 3571.322564 | AF44: =IF(INDEX(FY1398_YTD_Actual!C$3:C$19,MATCH($B$5,FY1398_YTD_Actual!$A$3:$A$19,0))=0,#N/A,INDEX(FY1398_YTD_Actual!C$3:C$19,MATCH($B$5,FY1398_YTD_Actual!$A$3:$A$19,0))) -> 4289.003067 | AG44: =IF(INDEX(FY1398_YTD_Actual!D$3:D$19,MATCH($B$5,FY1398_YTD_Actual!$A$3:$A$19,0))=0,#N/A,INDEX(FY1398_YTD_Actual!D$3:D$19,MATCH($B$5,FY1398_YTD_Actual!$A$3:$A$19,0))) -> 4578.053549 | AH44: =IF(INDEX(FY1398_YTD_Actual!E$3:E$19,MATCH($B$5,FY1398_YTD_Actual!$A$3:$A$19,0))=0,#N/A,INDEX(FY1398_YTD_Actual!E$3:E$19,MATCH($B$5,FY1398_YTD_Actual!$A$3:$A$19,0))) -> 4486.643111 | AI44: =IF(INDEX(FY1398_YTD_Actual!F$3:F$19,MATCH($B$5,FY1398_YTD_Actual!$A$3:$A$19,0))=0,#N/A,INDEX(FY1398_YTD_Actual!F$3:F$19,MATCH($B$5,FY1398_YTD_Actual!$A$3:$A$19,0))) -> 12423.60542 | AJ44: =IF(INDEX(FY1398_YTD_Actual!G$3:G$19,MATCH($B$5,FY1398_YTD_Actual!$A$3:$A$19,0))=0,#N/A,INDEX(FY1398_YTD_Actual!G$3:G$19,MATCH($B$5,FY1398_YTD_Actual!$A$3:$A$19,0))) -> 3274.678541 | AK44: =IF(INDEX(FY1398_YTD_Actual!H$3:H$19,MATCH($B$5,FY1398_YTD_Actual!$A$3:$A$19,0))=0,#N/A,INDEX(FY1398_YTD_Actual!H$3:H$19,MATCH($B$5,FY1398_YTD_Actual!$A$3:$A$19,0))) -> 4492.930284 | AL44: =IF(INDEX(FY1398_YTD_Actual!I$3:I$19,MATCH($B$5,FY1398_YTD_Actual!$A$3:$A$19,0))=0,#N/A,INDEX(FY1398_YTD_Actual!I$3:I$19,MATCH($B$5,FY1398_YTD_Actual!$A$3:$A$19,0))) -> 3623.221082 | AM44: =IF(INDEX(FY1398_YTD_Actual!J$3:J$19,MATCH($B$5,FY1398_YTD_Actual!$A$3:$A$19,0))=0,#N/A,INDEX(FY1398_YTD_Actual!J$3:J$19,MATCH($B$5,FY1398_YTD_Actual!$A$3:$A$19,0))) -> 6689.925339 | AN44: =IF(INDEX(FY1398_YTD_Actual!K$3:K$19,MATCH($B$5,FY1398_YTD_Actual!$A$3:$A$19,0))=0,#N/A,INDEX(FY1398_YTD_Actual!K$3:K$19,MATCH($B$5,FY1398_YTD_Actual!$A$3:$A$19,0))) -> 8260.241095 | AO44: =IF(INDEX(FY1398_YTD_Actual!L$3:L$19,MATCH($B$5,FY1398_YTD_Actual!$A$3:$A$19,0))=0,#N/A,INDEX(FY1398_YTD_Actual!L$3:L$19,MATCH($B$5,FY1398_YTD_Actual!$A$3:$A$19,0))) -> 2949.621207 | AP44: =IF(INDEX(FY1398_YTD_Actual!M$3:M$19,MATCH($B$5,FY1398_YTD_Actual!$A$3:$A$19,0))=0,#N/A,INDEX(FY1398_YTD_Actual!M$3:M$19,MATCH($B$5,FY1398_YTD_Actual!$A$3:$A$19,0))) -> 
AC45: =AD45&$B$5 -> 2019 TargetNon-tax Revenues | AD45: =Targets!$C$94 -> 2019 Target | AE45: =INDEX(Targets!C$3:C$41,MATCH(Charts!$AC45,Targets!$A$3:$A$41,0)) -> 5155.585122 | AF45: =INDEX(Targets!D$3:D$41,MATCH(Charts!$AC45,Targets!$A$3:$A$41,0)) -> 5155.585122 | AG45: =INDEX(Targets!E$3:E$41,MATCH(Charts!$AC45,Targets!$A$3:$A$41,0)) -> 5155.585122 | AH45: =INDEX(Targets!F$3:F$41,MATCH(Charts!$AC45,Targets!$A$3:$A$41,0)) -> 5389.9299 | AI45: =INDEX(Targets!G$3:G$41,MATCH(Charts!$AC45,Targets!$A$3:$A$41,0)) -> 5389.9299 | AJ45: =INDEX(Targets!H$3:H$41,MATCH(Charts!$AC45,Targets!$A$3:$A$41,0)) -> 5389.9299 | AK45: =INDEX(Targets!I$3:I$41,MATCH(Charts!$AC45,Targets!$A$3:$A$41,0)) -> 5858.619457 | AL45: =INDEX(Targets!J$3:J$41,MATCH(Charts!$AC45,Targets!$A$3:$A$41,0)) -> 5858.619457 | AM45: =INDEX(Targets!K$3:K$41,MATCH(Charts!$AC45,Targets!$A$3:$A$41,0)) -> 5858.619457 | AN45: =INDEX(Targets!L$3:L$41,MATCH(Charts!$AC45,Targets!$A$3:$A$41,0)) -> 7030.343348 | AO45: =INDEX(Targets!M$3:M$41,MATCH(Charts!$AC45,Targets!$A$3:$A$41,0)) -> 7030.343348 | AP45: =INDEX(Targets!N$3:N$41,MATCH(Charts!$AC45,Targets!$A$3:$A$41,0)) -> 7030.343348
AC46: =AD46&$B$5 -> Previous Year performanceNon-tax Revenues | AD46: =Targets!$C$95 -> Previous Year performance | AE46: =INDEX(Targets!C$3:C$41,MATCH(Charts!$AC46,Targets!$A$3:$A$41,0)) -> 3305.248701 | AF46: =INDEX(Targets!D$3:D$41,MATCH(Charts!$AC46,Targets!$A$3:$A$41,0)) -> 3716.872568 | AG46: =INDEX(Targets!E$3:E$41,MATCH(Charts!$AC46,Targets!$A$3:$A$41,0)) -> 4604.385623 | AH46: =INDEX(Targets!F$3:F$41,MATCH(Charts!$AC46,Targets!$A$3:$A$41,0)) -> 5060.706091 | AI46: =INDEX(Targets!G$3:G$41,MATCH(Charts!$AC46,Targets!$A$3:$A$41,0)) -> 4662.019993 | AJ46: =INDEX(Targets!H$3:H$41,MATCH(Charts!$AC46,Targets!$A$3:$A$41,0)) -> 4964.330095 | AK46: =INDEX(Targets!I$3:I$41,MATCH(Charts!$AC46,Targets!$A$3:$A$41,0)) -> 5231.799043 | AL46: =INDEX(Targets!J$3:J$41,MATCH(Charts!$AC46,Targets!$A$3:$A$41,0)) -> 4325.649334 | AM46: =INDEX(Targets!K$3:K$41,MATCH(Charts!$AC46,Targets!$A$3:$A$41,0)) -> 8445.997592 | AN46: =INDEX(Targets!L$3:L$41,MATCH(Charts!$AC46,Targets!$A$3:$A$41,0)) -> 5025.254103 | AO46: =INDEX(Targets!M$3:M$41,MATCH(Charts!$AC46,Targets!$A$3:$A$41,0)) -> 10620.62821 | AP46: =INDEX(Targets!N$3:N$41,MATCH(Charts!$AC46,Targets!$A$3:$A$41,0)) -> 10922.08075
AD47: Cummulative
AD48: =AD44 -> Actual | AE48: 3571.322564 | AF48: =SUM($AE44:AF44) -> 7860.32563 | AG48: =SUM($AE44:AG44) -> 12438.37918 | AH48: =SUM($AE44:AH44) -> 16925.02229 | AI48: =SUM($AE44:AI44) -> 29348.62771 | AJ48: =SUM($AE44:AJ44) -> 32623.30626 | AK48: =SUM($AE44:AK44) -> 37116.23654 | AL48: =SUM($AE44:AL44) -> 40739.45762 | AM48: =SUM($AE44:AM44) -> 47429.38296 | AN48: =SUM($AE44:AN44) -> 55689.62406 | AO48: =SUM($AE44:AO44) -> 58639.24526 | AP48: =SUM($AE44:AP44) ->  | AQ48: =AQ41 -> Flag if any | AR48: =IF((1-AE48/AE49)>$B$11,AE48,#N/A) -> 3571.322564 | AS48: 7860.32563 | AT48: 12438.37918 | AU48: 16925.02229
AD49: 2019 Target | AE49: 5155.585122 | AF49: =SUM($AE45:AF45) -> 10311.17024 | AG49: =SUM($AE45:AG45) -> 15466.75537 | AH49: =SUM($AE45:AH45) -> 20856.68527 | AI49: =SUM($AE45:AI45) -> 26246.61517 | AJ49: =SUM($AE45:AJ45) -> 31636.54507 | AK49: =SUM($AE45:AK45) -> 37495.16452 | AL49: =SUM($AE45:AL45) -> 43353.78398 | AM49: =SUM($AE45:AM45) -> 49212.40344 | AN49: =SUM($AE45:AN45) -> 56242.74679 | AO49: =SUM($AE45:AO45) -> 63273.09013 | AP49: =SUM($AE45:AP45) -> 70303.43348 | AQ49: Historical Year Performance | AR49: =INDEX(Targets!Q$49:Q$88,MATCH(Charts!$AQ50,Targets!$A$49:$A$88,0)) -> 2561 | AS49: =INDEX(Targets!R$49:R$88,MATCH(Charts!$AQ50,Targets!$A$49:$A$88,0)) -> 5576 | AT49: =INDEX(Targets!S$49:S$88,MATCH(Charts!$AQ50,Targets!$A$49:$A$88,0)) -> 9153 | AU49: =INDEX(Targets!T$49:T$88,MATCH(Charts!$AQ50,Targets!$A$49:$A$88,0)) -> 13096 | AV49: =INDEX(Targets!U$49:U$88,MATCH(Charts!$AQ50,Targets!$A$49:$A$88,0)) -> 16531 | AW49: =INDEX(Targets!V$49:V$88,MATCH(Charts!$AQ50,Targets!$A$49:$A$88,0)) -> 32434 | AX49: =INDEX(Targets!W$49:W$88,MATCH(Charts!$AQ50,Targets!$A$49:$A$88,0)) -> 35525 | AY49: =INDEX(Targets!X$49:X$88,MATCH(Charts!$AQ50,Targets!$A$49:$A$88,0)) -> 40469 | AZ49: =INDEX(Targets!Y$49:Y$88,MATCH(Charts!$AQ50,Targets!$A$49:$A$88,0)) -> 43337 | BA49: =INDEX(Targets!Z$49:Z$88,MATCH(Charts!$AQ50,Targets!$A$49:$A$88,0)) -> 44522 | BB49: =INDEX(Targets!AA$49:AA$88,MATCH(Charts!$AQ50,Targets!$A$49:$A$88,0)) -> 48942 | BC49: =INDEX(Targets!AB$49:AB$88,MATCH(Charts!$AQ50,Targets!$A$49:$A$88,0)) -> 52732
AD50: Previous Year performance | AE50: 3305.248701 | AF50: =SUM($AE46:AF46) -> 7022.121268 | AG50: =SUM($AE46:AG46) -> 11626.50689 | AH50: =SUM($AE46:AH46) -> 16687.21298 | AI50: =SUM($AE46:AI46) -> 21349.23297 | AJ50: =SUM($AE46:AJ46) -> 26313.56307 | AK50: =SUM($AE46:AK46) -> 31545.36211 | AL50: =SUM($AE46:AL46) -> 35871.01145 | AM50: =SUM($AE46:AM46) -> 44317.00904 | AN50: =SUM($AE46:AN46) -> 49342.26314 | AO50: =SUM($AE46:AO46) -> 59962.89135 | AP50: =SUM($AE46:AP46) -> 70884.9721 | AQ50: =$B$10&$B$5 -> FY1395Non-tax Revenues
AC51: =#REF! ->  | AD51: =FY1398_YTD_Actual!$A$1 -> Actual | AE51: =IF(INDEX(FY1398_YTD_Actual!B$3:B$19,MATCH($B$2,FY1398_YTD_Actual!$A$3:$A$19,0))=0,#N/A,INDEX(FY1398_YTD_Actual!B$3:B$19,MATCH($B$2,FY1398_YTD_Actual!$A$3:$A$19,0))) -> 14478.21889 | AF51: =IF(INDEX(FY1398_YTD_Actual!C$3:C$19,MATCH($B$2,FY1398_YTD_Actual!$A$3:$A$19,0))=0,#N/A,INDEX(FY1398_YTD_Actual!C$3:C$19,MATCH($B$2,FY1398_YTD_Actual!$A$3:$A$19,0))) -> 13512.55416 | AG51: =IF(INDEX(FY1398_YTD_Actual!D$3:D$19,MATCH($B$2,FY1398_YTD_Actual!$A$3:$A$19,0))=0,#N/A,INDEX(FY1398_YTD_Actual!D$3:D$19,MATCH($B$2,FY1398_YTD_Actual!$A$3:$A$19,0))) -> 14229.33186 | AH51: =IF(INDEX(FY1398_YTD_Actual!E$3:E$19,MATCH($B$2,FY1398_YTD_Actual!$A$3:$A$19,0))=0,#N/A,INDEX(FY1398_YTD_Actual!E$3:E$19,MATCH($B$2,FY1398_YTD_Actual!$A$3:$A$19,0))) -> 15521.6774 | AI51: =IF(INDEX(FY1398_YTD_Actual!F$3:F$19,MATCH($B$2,FY1398_YTD_Actual!$A$3:$A$19,0))=0,#N/A,INDEX(FY1398_YTD_Actual!F$3:F$19,MATCH($B$2,FY1398_YTD_Actual!$A$3:$A$19,0))) -> 22179.22286 | AJ51: =IF(INDEX(FY1398_YTD_Actual!G$3:G$19,MATCH($B$2,FY1398_YTD_Actual!$A$3:$A$19,0))=0,#N/A,INDEX(FY1398_YTD_Actual!G$3:G$19,MATCH($B$2,FY1398_YTD_Actual!$A$3:$A$19,0))) -> 13266.19731 | AK51: =IF(INDEX(FY1398_YTD_Actual!H$3:H$19,MATCH($B$2,FY1398_YTD_Actual!$A$3:$A$19,0))=0,#N/A,INDEX(FY1398_YTD_Actual!H$3:H$19,MATCH($B$2,FY1398_YTD_Actual!$A$3:$A$19,0))) -> 15883.67453 | AL51: =IF(INDEX(FY1398_YTD_Actual!I$3:I$19,MATCH($B$2,FY1398_YTD_Actual!$A$3:$A$19,0))=0,#N/A,INDEX(FY1398_YTD_Actual!I$3:I$19,MATCH($B$2,FY1398_YTD_Actual!$A$3:$A$19,0))) -> 11233.73707 | AM51: =IF(INDEX(FY1398_YTD_Actual!J$3:J$19,MATCH($B$2,FY1398_YTD_Actual!$A$3:$A$19,0))=0,#N/A,INDEX(FY1398_YTD_Actual!J$3:J$19,MATCH($B$2,FY1398_YTD_Actual!$A$3:$A$19,0))) -> 15066.32782 | AN51: =IF(INDEX(FY1398_YTD_Actual!K$3:K$19,MATCH($B$2,FY1398_YTD_Actual!$A$3:$A$19,0))=0,#N/A,INDEX(FY1398_YTD_Actual!K$3:K$19,MATCH($B$2,FY1398_YTD_Actual!$A$3:$A$19,0))) -> 19716.36368 | AO51: =IF(INDEX(FY1398_YTD_Actual!L$3:L$19,MATCH($B$2,FY1398_YTD_Actual!$A$3:$A$19,0))=0,#N/A,INDEX(FY1398_YTD_Actual!L$3:L$19,MATCH($B$2,FY1398_YTD_Actual!$A$3:$A$19,0))) -> 10844.84621 | AP51: =IF(INDEX(FY1398_YTD_Actual!M$3:M$19,MATCH($B$2,FY1398_YTD_Actual!$A$3:$A$19,0))=0,#N/A,INDEX(FY1398_YTD_Actual!M$3:M$19,MATCH($B$2,FY1398_YTD_Actual!$A$3:$A$19,0))) -> 
AC52: =AD52&#REF! ->  | AD52: =Targets!$C$94 -> 2019 Target | AE52: =INDEX(Targets!C$3:C$41,MATCH(Charts!$AC52,Targets!$A$3:$A$41,0)) ->  | AF52: =INDEX(Targets!D$3:D$41,MATCH(Charts!$AC52,Targets!$A$3:$A$41,0)) ->  | AG52: =INDEX(Targets!E$3:E$41,MATCH(Charts!$AC52,Targets!$A$3:$A$41,0)) ->  | AH52: =INDEX(Targets!F$3:F$41,MATCH(Charts!$AC52,Targets!$A$3:$A$41,0)) ->  | AI52: =INDEX(Targets!G$3:G$41,MATCH(Charts!$AC52,Targets!$A$3:$A$41,0)) ->  | AJ52: =INDEX(Targets!H$3:H$41,MATCH(Charts!$AC52,Targets!$A$3:$A$41,0)) ->  | AK52: =INDEX(Targets!I$3:I$41,MATCH(Charts!$AC52,Targets!$A$3:$A$41,0)) ->  | AL52: =INDEX(Targets!J$3:J$41,MATCH(Charts!$AC52,Targets!$A$3:$A$41,0)) ->  | AM52: =INDEX(Targets!K$3:K$41,MATCH(Charts!$AC52,Targets!$A$3:$A$41,0)) ->  | AN52: =INDEX(Targets!L$3:L$41,MATCH(Charts!$AC52,Targets!$A$3:$A$41,0)) ->  | AO52: =INDEX(Targets!M$3:M$41,MATCH(Charts!$AC52,Targets!$A$3:$A$41,0)) ->  | AP52: =INDEX(Targets!N$3:N$41,MATCH(Charts!$AC52,Targets!$A$3:$A$41,0)) -> 
AC53: =AD53&#REF! ->  | AD53: =Targets!$C$95 -> Previous Year performance | AE53: =INDEX(Targets!C$3:C$41,MATCH(Charts!$AC53,Targets!$A$3:$A$41,0)) ->  | AF53: =INDEX(Targets!D$3:D$41,MATCH(Charts!$AC53,Targets!$A$3:$A$41,0)) ->  | AG53: =INDEX(Targets!E$3:E$41,MATCH(Charts!$AC53,Targets!$A$3:$A$41,0)) ->  | AH53: =INDEX(Targets!F$3:F$41,MATCH(Charts!$AC53,Targets!$A$3:$A$41,0)) ->  | AI53: =INDEX(Targets!G$3:G$41,MATCH(Charts!$AC53,Targets!$A$3:$A$41,0)) ->  | AJ53: =INDEX(Targets!H$3:H$41,MATCH(Charts!$AC53,Targets!$A$3:$A$41,0)) ->  | AK53: =INDEX(Targets!I$3:I$41,MATCH(Charts!$AC53,Targets!$A$3:$A$41,0)) ->  | AL53: =INDEX(Targets!J$3:J$41,MATCH(Charts!$AC53,Targets!$A$3:$A$41,0)) ->  | AM53: =INDEX(Targets!K$3:K$41,MATCH(Charts!$AC53,Targets!$A$3:$A$41,0)) ->  | AN53: =INDEX(Targets!L$3:L$41,MATCH(Charts!$AC53,Targets!$A$3:$A$41,0)) ->  | AO53: =INDEX(Targets!M$3:M$41,MATCH(Charts!$AC53,Targets!$A$3:$A$41,0)) ->  | AP53: =INDEX(Targets!N$3:N$41,MATCH(Charts!$AC53,Targets!$A$3:$A$41,0)) -> 
AD54: Cummulative
AD55: =AD51 -> Actual | AE55: 14478.21889 | AF55: =SUM($AE51:AF51) -> 27990.77305 | AG55: =SUM($AE51:AG51) -> 42220.10491 | AH55: =SUM($AE51:AH51) -> 57741.7823 | AI55: =SUM($AE51:AI51) -> 79921.00517 | AJ55: =SUM($AE51:AJ51) -> 93187.20247 | AK55: =SUM($AE51:AK51) -> 109070.877 | AL55: =SUM($AE51:AL51) -> 120304.6141 | AM55: =SUM($AE51:AM51) -> 135370.9419 | AN55: =SUM($AE51:AN51) -> 155087.3056 | AO55: =SUM($AE51:AO51) -> 165932.1518 | AP55: =SUM($AE51:AP51) ->  | AQ55: =AQ48 -> Flag if any | AR55: =IF((1-AE55/AE56)>$B$11,AE55,#N/A) -> 
AD56: 2019 Target | AF56: =SUM($AE52:AF52) ->  | AG56: =SUM($AE52:AG52) ->  | AH56: =SUM($AE52:AH52) ->  | AI56: =SUM($AE52:AI52) ->  | AJ56: =SUM($AE52:AJ52) ->  | AK56: =SUM($AE52:AK52) ->  | AL56: =SUM($AE52:AL52) ->  | AM56: =SUM($AE52:AM52) ->  | AN56: =SUM($AE52:AN52) ->  | AO56: =SUM($AE52:AO52) ->  | AP56: =SUM($AE52:AP52) -> 
AD57: Previous Year performance | AF57: =SUM($AE53:AF53) ->  | AG57: =SUM($AE53:AG53) ->  | AH57: =SUM($AE53:AH53) ->  | AI57: =SUM($AE53:AI53) ->  | AJ57: =SUM($AE53:AJ53) ->  | AK57: =SUM($AE53:AK53) ->  | AL57: =SUM($AE53:AL53) ->  | AM57: =SUM($AE53:AM53) ->  | AN57: =SUM($AE53:AN53) ->  | AO57: =SUM($AE53:AO53) ->  | AP57: =SUM($AE53:AP53) -> 
AC58: =A78 -> Figure 5: | AD58: =FY1398_YTD_Actual!$A$1 -> Actual | AE58: =IF(INDEX(FY1398_YTD_Actual!B$3:B$19,MATCH($B$78,FY1398_YTD_Actual!$A$3:$A$19,0))=0,#N/A,INDEX(FY1398_YTD_Actual!B$3:B$19,MATCH($B$78,FY1398_YTD_Actual!$A$3:$A$19,0))) -> 7123.081076 | AF58: =IF(INDEX(FY1398_YTD_Actual!C$3:C$19,MATCH($B$78,FY1398_YTD_Actual!$A$3:$A$19,0))=0,#N/A,INDEX(FY1398_YTD_Actual!C$3:C$19,MATCH($B$78,FY1398_YTD_Actual!$A$3:$A$19,0))) -> 6626.573266 | AG58: =IF(INDEX(FY1398_YTD_Actual!D$3:D$19,MATCH($B$78,FY1398_YTD_Actual!$A$3:$A$19,0))=0,#N/A,INDEX(FY1398_YTD_Actual!D$3:D$19,MATCH($B$78,FY1398_YTD_Actual!$A$3:$A$19,0))) -> 6314.756981 | AH58: =IF(INDEX(FY1398_YTD_Actual!E$3:E$19,MATCH($B$78,FY1398_YTD_Actual!$A$3:$A$19,0))=0,#N/A,INDEX(FY1398_YTD_Actual!E$3:E$19,MATCH($B$78,FY1398_YTD_Actual!$A$3:$A$19,0))) -> 6445.062042 | AI58: =IF(INDEX(FY1398_YTD_Actual!F$3:F$19,MATCH($B$78,FY1398_YTD_Actual!$A$3:$A$19,0))=0,#N/A,INDEX(FY1398_YTD_Actual!F$3:F$19,MATCH($B$78,FY1398_YTD_Actual!$A$3:$A$19,0))) -> 7098.882671 | AJ58: =IF(INDEX(FY1398_YTD_Actual!G$3:G$19,MATCH($B$78,FY1398_YTD_Actual!$A$3:$A$19,0))=0,#N/A,INDEX(FY1398_YTD_Actual!G$3:G$19,MATCH($B$78,FY1398_YTD_Actual!$A$3:$A$19,0))) -> 5924.786089 | AK58: =IF(INDEX(FY1398_YTD_Actual!H$3:H$19,MATCH($B$78,FY1398_YTD_Actual!$A$3:$A$19,0))=0,#N/A,INDEX(FY1398_YTD_Actual!H$3:H$19,MATCH($B$78,FY1398_YTD_Actual!$A$3:$A$19,0))) -> 7041.885336 | AL58: =IF(INDEX(FY1398_YTD_Actual!I$3:I$19,MATCH($B$78,FY1398_YTD_Actual!$A$3:$A$19,0))=0,#N/A,INDEX(FY1398_YTD_Actual!I$3:I$19,MATCH($B$78,FY1398_YTD_Actual!$A$3:$A$19,0))) -> 5530.614535 | AM58: =IF(INDEX(FY1398_YTD_Actual!J$3:J$19,MATCH($B$78,FY1398_YTD_Actual!$A$3:$A$19,0))=0,#N/A,INDEX(FY1398_YTD_Actual!J$3:J$19,MATCH($B$78,FY1398_YTD_Actual!$A$3:$A$19,0))) -> 6318.446016 | AN58: =IF(INDEX(FY1398_YTD_Actual!K$3:K$19,MATCH($B$78,FY1398_YTD_Actual!$A$3:$A$19,0))=0,#N/A,INDEX(FY1398_YTD_Actual!K$3:K$19,MATCH($B$78,FY1398_YTD_Actual!$A$3:$A$19,0))) -> 5822.358075 | AO58: =IF(INDEX(FY1398_YTD_Actual!L$3:L$19,MATCH($B$78,FY1398_YTD_Actual!$A$3:$A$19,0))=0,#N/A,INDEX(FY1398_YTD_Actual!L$3:L$19,MATCH($B$78,FY1398_YTD_Actual!$A$3:$A$19,0))) -> 5744.83069 | AP58: =IF(INDEX(FY1398_YTD_Actual!M$3:M$19,MATCH($B$78,FY1398_YTD_Actual!$A$3:$A$19,0))=0,#N/A,INDEX(FY1398_YTD_Actual!M$3:M$19,MATCH($B$78,FY1398_YTD_Actual!$A$3:$A$19,0))) -> 
AC59: =AD59&$B$78 -> 2019 TargetCustoms Department | AD59: =Targets!$C$94 -> 2019 Target | AE59: =INDEX(Targets!C$3:C$41,MATCH(Charts!$AC59,Targets!$A$3:$A$41,0)) -> 5896.932688 | AF59: =INDEX(Targets!D$3:D$41,MATCH(Charts!$AC59,Targets!$A$3:$A$41,0)) -> 5896.932688 | AG59: =INDEX(Targets!E$3:E$41,MATCH(Charts!$AC59,Targets!$A$3:$A$41,0)) -> 5896.932688 | AH59: =INDEX(Targets!F$3:F$41,MATCH(Charts!$AC59,Targets!$A$3:$A$41,0)) -> 6164.975083 | AI59: =INDEX(Targets!G$3:G$41,MATCH(Charts!$AC59,Targets!$A$3:$A$41,0)) -> 6164.975083 | AJ59: =INDEX(Targets!H$3:H$41,MATCH(Charts!$AC59,Targets!$A$3:$A$41,0)) -> 6164.975083 | AK59: =INDEX(Targets!I$3:I$41,MATCH(Charts!$AC59,Targets!$A$3:$A$41,0)) -> 6701.059873 | AL59: =INDEX(Targets!J$3:J$41,MATCH(Charts!$AC59,Targets!$A$3:$A$41,0)) -> 6701.059873 | AM59: =INDEX(Targets!K$3:K$41,MATCH(Charts!$AC59,Targets!$A$3:$A$41,0)) -> 6701.059873 | AN59: =INDEX(Targets!L$3:L$41,MATCH(Charts!$AC59,Targets!$A$3:$A$41,0)) -> 8041.271847 | AO59: =INDEX(Targets!M$3:M$41,MATCH(Charts!$AC59,Targets!$A$3:$A$41,0)) -> 8041.271847 | AP59: =INDEX(Targets!N$3:N$41,MATCH(Charts!$AC59,Targets!$A$3:$A$41,0)) -> 8041.271847
AC60: =AD60&$B$78 -> Previous Year performanceCustoms Department | AD60: =Targets!$C$95 -> Previous Year performance | AE60: =INDEX(Targets!C$3:C$41,MATCH(Charts!$AC60,Targets!$A$3:$A$41,0)) -> 6140.413238 | AF60: =INDEX(Targets!D$3:D$41,MATCH(Charts!$AC60,Targets!$A$3:$A$41,0)) -> 5913.22327 | AG60: =INDEX(Targets!E$3:E$41,MATCH(Charts!$AC60,Targets!$A$3:$A$41,0)) -> 6053.092942 | AH60: =INDEX(Targets!F$3:F$41,MATCH(Charts!$AC60,Targets!$A$3:$A$41,0)) -> 5286.745736 | AI60: =INDEX(Targets!G$3:G$41,MATCH(Charts!$AC60,Targets!$A$3:$A$41,0)) -> 6298.255079 | AJ60: =INDEX(Targets!H$3:H$41,MATCH(Charts!$AC60,Targets!$A$3:$A$41,0)) -> 5888.72474 | AK60: =INDEX(Targets!I$3:I$41,MATCH(Charts!$AC60,Targets!$A$3:$A$41,0)) -> 4975.888846 | AL60: =INDEX(Targets!J$3:J$41,MATCH(Charts!$AC60,Targets!$A$3:$A$41,0)) -> 6347.029213 | AM60: =INDEX(Targets!K$3:K$41,MATCH(Charts!$AC60,Targets!$A$3:$A$41,0)) -> 6641.710773 | AN60: =INDEX(Targets!L$3:L$41,MATCH(Charts!$AC60,Targets!$A$3:$A$41,0)) -> 6059.101046 | AO60: =INDEX(Targets!M$3:M$41,MATCH(Charts!$AC60,Targets!$A$3:$A$41,0)) -> 7031.291373 | AP60: =INDEX(Targets!N$3:N$41,MATCH(Charts!$AC60,Targets!$A$3:$A$41,0)) -> 7309.40952
AD61: Cummulative
AD62: =AD58 -> Actual | AE62: 7123.081076 | AF62: =SUM($AE58:AF58) -> 13749.65434 | AG62: =SUM($AE58:AG58) -> 20064.41132 | AH62: =SUM($AE58:AH58) -> 26509.47337 | AI62: =SUM($AE58:AI58) -> 33608.35604 | AJ62: =SUM($AE58:AJ58) -> 39533.14212 | AK62: =SUM($AE58:AK58) -> 46575.02746 | AL62: =SUM($AE58:AL58) -> 52105.642 | AM62: =SUM($AE58:AM58) -> 58424.08801 | AN62: =SUM($AE58:AN58) -> 64246.44609 | AO62: =SUM($AE58:AO58) -> 69991.27678 | AP62: =SUM($AE58:AP58) ->  | AQ62: =AQ55 -> Flag if any | AR62: =IF((1-AE62/AE63)>$B$11,AE62,#N/A) -> 
AD63: 2019 Target | AE63: 5896.932688 | AF63: =SUM($AE59:AF59) -> 11793.86538 | AG63: =SUM($AE59:AG59) -> 17690.79806 | AH63: =SUM($AE59:AH59) -> 23855.77315 | AI63: =SUM($AE59:AI59) -> 30020.74823 | AJ63: =SUM($AE59:AJ59) -> 36185.72331 | AK63: =SUM($AE59:AK59) -> 42886.78318 | AL63: =SUM($AE59:AL59) -> 49587.84306 | AM63: =SUM($AE59:AM59) -> 56288.90293 | AN63: =SUM($AE59:AN59) -> 64330.17478 | AO63: =SUM($AE59:AO59) -> 72371.44662 | AP63: =SUM($AE59:AP59) -> 80412.71847 | AQ63: Historical Year Performance | AR63: =INDEX(Targets!Q$49:Q$88,MATCH(Charts!$AQ64,Targets!$A$49:$A$88,0)) -> 5263 | AS63: =INDEX(Targets!R$49:R$88,MATCH(Charts!$AQ64,Targets!$A$49:$A$88,0)) -> 10707 | AT63: =INDEX(Targets!S$49:S$88,MATCH(Charts!$AQ64,Targets!$A$49:$A$88,0)) -> 16398 | AU63: =INDEX(Targets!T$49:T$88,MATCH(Charts!$AQ64,Targets!$A$49:$A$88,0)) -> 21515 | AV63: =INDEX(Targets!U$49:U$88,MATCH(Charts!$AQ64,Targets!$A$49:$A$88,0)) -> 26946 | AW63: =INDEX(Targets!V$49:V$88,MATCH(Charts!$AQ64,Targets!$A$49:$A$88,0)) -> 32181 | AX63: =INDEX(Targets!W$49:W$88,MATCH(Charts!$AQ64,Targets!$A$49:$A$88,0)) -> 36714 | AY63: =INDEX(Targets!X$49:X$88,MATCH(Charts!$AQ64,Targets!$A$49:$A$88,0)) -> 42014 | AZ63: =INDEX(Targets!Y$49:Y$88,MATCH(Charts!$AQ64,Targets!$A$49:$A$88,0)) -> 46729 | BA63: =INDEX(Targets!Z$49:Z$88,MATCH(Charts!$AQ64,Targets!$A$49:$A$88,0)) -> 52077 | BB63: =INDEX(Targets!AA$49:AA$88,MATCH(Charts!$AQ64,Targets!$A$49:$A$88,0)) -> 58143 | BC63: =INDEX(Targets!AB$49:AB$88,MATCH(Charts!$AQ64,Targets!$A$49:$A$88,0)) -> 65313
AD64: Previous Year performance | AE64: 6140.413238 | AF64: =SUM($AE60:AF60) -> 12053.63651 | AG64: =SUM($AE60:AG60) -> 18106.72945 | AH64: =SUM($AE60:AH60) -> 23393.47519 | AI64: =SUM($AE60:AI60) -> 29691.73026 | AJ64: =SUM($AE60:AJ60) -> 35580.455 | AK64: =SUM($AE60:AK60) -> 40556.34385 | AL64: =SUM($AE60:AL60) -> 46903.37306 | AM64: =SUM($AE60:AM60) -> 53545.08384 | AN64: =SUM($AE60:AN60) -> 59604.18488 | AO64: =SUM($AE60:AO60) -> 66635.47626 | AP64: =SUM($AE60:AP60) -> 73944.88578 | AQ64: =$B$10&$B$78 -> FY1395Customs Department
AC65: =A79 -> Figure 6: | AD65: =FY1398_YTD_Actual!$A$1 -> Actual | AE65: =IF(INDEX(FY1398_YTD_Actual!B$3:B$19,MATCH($B$79,FY1398_YTD_Actual!$A$3:$A$19,0))=0,#N/A,INDEX(FY1398_YTD_Actual!B$3:B$19,MATCH($B$79,FY1398_YTD_Actual!$A$3:$A$19,0))) -> 1669.959583 | AF65: =IF(INDEX(FY1398_YTD_Actual!C$3:C$19,MATCH($B$79,FY1398_YTD_Actual!$A$3:$A$19,0))=0,#N/A,INDEX(FY1398_YTD_Actual!C$3:C$19,MATCH($B$79,FY1398_YTD_Actual!$A$3:$A$19,0))) -> 1522.535612 | AG65: =IF(INDEX(FY1398_YTD_Actual!D$3:D$19,MATCH($B$79,FY1398_YTD_Actual!$A$3:$A$19,0))=0,#N/A,INDEX(FY1398_YTD_Actual!D$3:D$19,MATCH($B$79,FY1398_YTD_Actual!$A$3:$A$19,0))) -> 1639.108452 | AH65: =IF(INDEX(FY1398_YTD_Actual!E$3:E$19,MATCH($B$79,FY1398_YTD_Actual!$A$3:$A$19,0))=0,#N/A,INDEX(FY1398_YTD_Actual!E$3:E$19,MATCH($B$79,FY1398_YTD_Actual!$A$3:$A$19,0))) -> 1327.363441 | AI65: =IF(INDEX(FY1398_YTD_Actual!F$3:F$19,MATCH($B$79,FY1398_YTD_Actual!$A$3:$A$19,0))=0,#N/A,INDEX(FY1398_YTD_Actual!F$3:F$19,MATCH($B$79,FY1398_YTD_Actual!$A$3:$A$19,0))) -> 1551.811893 | AJ65: =IF(INDEX(FY1398_YTD_Actual!G$3:G$19,MATCH($B$79,FY1398_YTD_Actual!$A$3:$A$19,0))=0,#N/A,INDEX(FY1398_YTD_Actual!G$3:G$19,MATCH($B$79,FY1398_YTD_Actual!$A$3:$A$19,0))) -> 1535.73312 | AK65: =IF(INDEX(FY1398_YTD_Actual!H$3:H$19,MATCH($B$79,FY1398_YTD_Actual!$A$3:$A$19,0))=0,#N/A,INDEX(FY1398_YTD_Actual!H$3:H$19,MATCH($B$79,FY1398_YTD_Actual!$A$3:$A$19,0))) -> 1733.299742 | AL65: =IF(INDEX(FY1398_YTD_Actual!I$3:I$19,MATCH($B$79,FY1398_YTD_Actual!$A$3:$A$19,0))=0,#N/A,INDEX(FY1398_YTD_Actual!I$3:I$19,MATCH($B$79,FY1398_YTD_Actual!$A$3:$A$19,0))) -> 1321.997578 | AM65: =IF(INDEX(FY1398_YTD_Actual!J$3:J$19,MATCH($B$79,FY1398_YTD_Actual!$A$3:$A$19,0))=0,#N/A,INDEX(FY1398_YTD_Actual!J$3:J$19,MATCH($B$79,FY1398_YTD_Actual!$A$3:$A$19,0))) -> 1433.418012 | AN65: =IF(INDEX(FY1398_YTD_Actual!K$3:K$19,MATCH($B$79,FY1398_YTD_Actual!$A$3:$A$19,0))=0,#N/A,INDEX(FY1398_YTD_Actual!K$3:K$19,MATCH($B$79,FY1398_YTD_Actual!$A$3:$A$19,0))) -> 1401.325681 | AO65: =IF(INDEX(FY1398_YTD_Actual!L$3:L$19,MATCH($B$79,FY1398_YTD_Actual!$A$3:$A$19,0))=0,#N/A,INDEX(FY1398_YTD_Actual!L$3:L$19,MATCH($B$79,FY1398_YTD_Actual!$A$3:$A$19,0))) -> 1036.75 | AP65: =IF(INDEX(FY1398_YTD_Actual!M$3:M$19,MATCH($B$79,FY1398_YTD_Actual!$A$3:$A$19,0))=0,#N/A,INDEX(FY1398_YTD_Actual!M$3:M$19,MATCH($B$79,FY1398_YTD_Actual!$A$3:$A$19,0))) -> 
AC66: =AD66&$B$79 -> 2019 TargetHerat Customs Office | AD66: =Targets!$C$94 -> 2019 Target | AE66: =INDEX(Targets!C$3:C$41,MATCH(Charts!$AC66,Targets!$A$3:$A$41,0)) -> 1600.362429 | AF66: =INDEX(Targets!D$3:D$41,MATCH(Charts!$AC66,Targets!$A$3:$A$41,0)) -> 1600.362429 | AG66: =INDEX(Targets!E$3:E$41,MATCH(Charts!$AC66,Targets!$A$3:$A$41,0)) -> 1600.362429 | AH66: =INDEX(Targets!F$3:F$41,MATCH(Charts!$AC66,Targets!$A$3:$A$41,0)) -> 1673.106176 | AI66: =INDEX(Targets!G$3:G$41,MATCH(Charts!$AC66,Targets!$A$3:$A$41,0)) -> 1673.106176 | AJ66: =INDEX(Targets!H$3:H$41,MATCH(Charts!$AC66,Targets!$A$3:$A$41,0)) -> 1673.106176 | AK66: =INDEX(Targets!I$3:I$41,MATCH(Charts!$AC66,Targets!$A$3:$A$41,0)) -> 1818.593669 | AL66: =INDEX(Targets!J$3:J$41,MATCH(Charts!$AC66,Targets!$A$3:$A$41,0)) -> 1818.593669 | AM66: =INDEX(Targets!K$3:K$41,MATCH(Charts!$AC66,Targets!$A$3:$A$41,0)) -> 1818.593669 | AN66: =INDEX(Targets!L$3:L$41,MATCH(Charts!$AC66,Targets!$A$3:$A$41,0)) -> 2182.312403 | AO66: =INDEX(Targets!M$3:M$41,MATCH(Charts!$AC66,Targets!$A$3:$A$41,0)) -> 2182.312403 | AP66: =INDEX(Targets!N$3:N$41,MATCH(Charts!$AC66,Targets!$A$3:$A$41,0)) -> 2182.312403
AC67: =AD67&$B$79 -> Previous Year performanceHerat Customs Office | AD67: =Targets!$C$95 -> Previous Year performance | AE67: =INDEX(Targets!C$3:C$41,MATCH(Charts!$AC67,Targets!$A$3:$A$41,0)) -> 1633.915314 | AF67: =INDEX(Targets!D$3:D$41,MATCH(Charts!$AC67,Targets!$A$3:$A$41,0)) -> 1774.08312 | AG67: =INDEX(Targets!E$3:E$41,MATCH(Charts!$AC67,Targets!$A$3:$A$41,0)) -> 1355.560981 | AH67: =INDEX(Targets!F$3:F$41,MATCH(Charts!$AC67,Targets!$A$3:$A$41,0)) -> 1118.033342 | AI67: =INDEX(Targets!G$3:G$41,MATCH(Charts!$AC67,Targets!$A$3:$A$41,0)) -> 1716.169371 | AJ67: =INDEX(Targets!H$3:H$41,MATCH(Charts!$AC67,Targets!$A$3:$A$41,0)) -> 1760.612705 | AK67: =INDEX(Targets!I$3:I$41,MATCH(Charts!$AC67,Targets!$A$3:$A$41,0)) -> 2030.082532 | AL67: =INDEX(Targets!J$3:J$41,MATCH(Charts!$AC67,Targets!$A$3:$A$41,0)) -> 2000.715219 | AM67: =INDEX(Targets!K$3:K$41,MATCH(Charts!$AC67,Targets!$A$3:$A$41,0)) -> 1558.996058 | AN67: =INDEX(Targets!L$3:L$41,MATCH(Charts!$AC67,Targets!$A$3:$A$41,0)) -> 1556.687852 | AO67: =INDEX(Targets!M$3:M$41,MATCH(Charts!$AC67,Targets!$A$3:$A$41,0)) -> 2175.235004 | AP67: =INDEX(Targets!N$3:N$41,MATCH(Charts!$AC67,Targets!$A$3:$A$41,0)) -> 2105.208059
AD68: Cummulative
AD69: =AD65 -> Actual | AE69: 1669.959583 | AF69: =SUM($AE65:AF65) -> 3192.495195 | AG69: =SUM($AE65:AG65) -> 4831.603647 | AH69: =SUM($AE65:AH65) -> 6158.967088 | AI69: =SUM($AE65:AI65) -> 7710.778981 | AJ69: =SUM($AE65:AJ65) -> 9246.512101 | AK69: =SUM($AE65:AK65) -> 10979.81184 | AL69: =SUM($AE65:AL65) -> 12301.80942 | AM69: =SUM($AE65:AM65) -> 13735.22743 | AN69: =SUM($AE65:AN65) -> 15136.55311 | AO69: =SUM($AE65:AO65) -> 16173.30311 | AP69: =SUM($AE65:AP65) ->  | AQ69: =AQ62 -> Flag if any | AR69: =IF((1-AE69/AE70)>$B$11,AE69,#N/A) ->  | AZ69: 13735.22743 | BA69: 15136.55311 | BB69: 16173.30311
AD70: 2019 Target | AE70: 1600.362429 | AF70: =SUM($AE66:AF66) -> 3200.724858 | AG70: =SUM($AE66:AG66) -> 4801.087287 | AH70: =SUM($AE66:AH66) -> 6474.193462 | AI70: =SUM($AE66:AI66) -> 8147.299638 | AJ70: =SUM($AE66:AJ66) -> 9820.405814 | AK70: =SUM($AE66:AK66) -> 11638.99948 | AL70: =SUM($AE66:AL66) -> 13457.59315 | AM70: =SUM($AE66:AM66) -> 15276.18682 | AN70: =SUM($AE66:AN66) -> 17458.49922 | AO70: =SUM($AE66:AO66) -> 19640.81163 | AP70: =SUM($AE66:AP66) -> 21823.12403 | AQ70: Historical Year Performance | AR70: =INDEX(Targets!Q$49:Q$88,MATCH(Charts!$AQ71,Targets!$A$49:$A$88,0)) -> 1426 | AS70: =INDEX(Targets!R$49:R$88,MATCH(Charts!$AQ71,Targets!$A$49:$A$88,0)) -> 2890 | AT70: =INDEX(Targets!S$49:S$88,MATCH(Charts!$AQ71,Targets!$A$49:$A$88,0)) -> 4387 | AU70: =INDEX(Targets!T$49:T$88,MATCH(Charts!$AQ71,Targets!$A$49:$A$88,0)) -> 5530 | AV70: =INDEX(Targets!U$49:U$88,MATCH(Charts!$AQ71,Targets!$A$49:$A$88,0)) -> 6800 | AW70: =INDEX(Targets!V$49:V$88,MATCH(Charts!$AQ71,Targets!$A$49:$A$88,0)) -> 8125 | AX70: =INDEX(Targets!W$49:W$88,MATCH(Charts!$AQ71,Targets!$A$49:$A$88,0)) -> 9376 | AY70: =INDEX(Targets!X$49:X$88,MATCH(Charts!$AQ71,Targets!$A$49:$A$88,0)) -> 10798 | AZ70: =INDEX(Targets!Y$49:Y$88,MATCH(Charts!$AQ71,Targets!$A$49:$A$88,0)) -> 12037 | BA70: =INDEX(Targets!Z$49:Z$88,MATCH(Charts!$AQ71,Targets!$A$49:$A$88,0)) -> 13418 | BB70: =INDEX(Targets!AA$49:AA$88,MATCH(Charts!$AQ71,Targets!$A$49:$A$88,0)) -> 15328 | BC70: =INDEX(Targets!AB$49:AB$88,MATCH(Charts!$AQ71,Targets!$A$49:$A$88,0)) -> 17103
AD71: Previous Year performance | AE71: 1633.915314 | AF71: =SUM($AE67:AF67) -> 3407.998434 | AG71: =SUM($AE67:AG67) -> 4763.559415 | AH71: =SUM($AE67:AH67) -> 5881.592757 | AI71: =SUM($AE67:AI67) -> 7597.762128 | AJ71: =SUM($AE67:AJ67) -> 9358.374833 | AK71: =SUM($AE67:AK67) -> 11388.45737 | AL71: =SUM($AE67:AL67) -> 13389.17258 | AM71: =SUM($AE67:AM67) -> 14948.16864 | AN71: =SUM($AE67:AN67) -> 16504.85649 | AO71: =SUM($AE67:AO67) -> 18680.0915 | AP71: =SUM($AE67:AP67) -> 20785.29956 | AQ71: =$B$10&$B$79 -> FY1395Herat Customs Office
AC72: =A80 -> Figure 7: | AD72: =FY1398_YTD_Actual!$A$1 -> Actual | AE72: =IF(INDEX(FY1398_YTD_Actual!B$3:B$19,MATCH($B$80,FY1398_YTD_Actual!$A$3:$A$19,0))=0,#N/A,INDEX(FY1398_YTD_Actual!B$3:B$19,MATCH($B$80,FY1398_YTD_Actual!$A$3:$A$19,0))) -> 1416.589154 | AF72: =IF(INDEX(FY1398_YTD_Actual!C$3:C$19,MATCH($B$80,FY1398_YTD_Actual!$A$3:$A$19,0))=0,#N/A,INDEX(FY1398_YTD_Actual!C$3:C$19,MATCH($B$80,FY1398_YTD_Actual!$A$3:$A$19,0))) -> 1338.922474 | AG72: =IF(INDEX(FY1398_YTD_Actual!D$3:D$19,MATCH($B$80,FY1398_YTD_Actual!$A$3:$A$19,0))=0,#N/A,INDEX(FY1398_YTD_Actual!D$3:D$19,MATCH($B$80,FY1398_YTD_Actual!$A$3:$A$19,0))) -> 1287.971107 | AH72: =IF(INDEX(FY1398_YTD_Actual!E$3:E$19,MATCH($B$80,FY1398_YTD_Actual!$A$3:$A$19,0))=0,#N/A,INDEX(FY1398_YTD_Actual!E$3:E$19,MATCH($B$80,FY1398_YTD_Actual!$A$3:$A$19,0))) -> 1511.775045 | AI72: =IF(INDEX(FY1398_YTD_Actual!F$3:F$19,MATCH($B$80,FY1398_YTD_Actual!$A$3:$A$19,0))=0,#N/A,INDEX(FY1398_YTD_Actual!F$3:F$19,MATCH($B$80,FY1398_YTD_Actual!$A$3:$A$19,0))) -> 1562.188742 | AJ72: =IF(INDEX(FY1398_YTD_Actual!G$3:G$19,MATCH($B$80,FY1398_YTD_Actual!$A$3:$A$19,0))=0,#N/A,INDEX(FY1398_YTD_Actual!G$3:G$19,MATCH($B$80,FY1398_YTD_Actual!$A$3:$A$19,0))) -> 1312.323695 | AK72: =IF(INDEX(FY1398_YTD_Actual!H$3:H$19,MATCH($B$80,FY1398_YTD_Actual!$A$3:$A$19,0))=0,#N/A,INDEX(FY1398_YTD_Actual!H$3:H$19,MATCH($B$80,FY1398_YTD_Actual!$A$3:$A$19,0))) -> 1806.793566 | AL72: =IF(INDEX(FY1398_YTD_Actual!I$3:I$19,MATCH($B$80,FY1398_YTD_Actual!$A$3:$A$19,0))=0,#N/A,INDEX(FY1398_YTD_Actual!I$3:I$19,MATCH($B$80,FY1398_YTD_Actual!$A$3:$A$19,0))) -> 1284.900657 | AM72: =IF(INDEX(FY1398_YTD_Actual!J$3:J$19,MATCH($B$80,FY1398_YTD_Actual!$A$3:$A$19,0))=0,#N/A,INDEX(FY1398_YTD_Actual!J$3:J$19,MATCH($B$80,FY1398_YTD_Actual!$A$3:$A$19,0))) -> 1367.58651 | AN72: =IF(INDEX(FY1398_YTD_Actual!K$3:K$19,MATCH($B$80,FY1398_YTD_Actual!$A$3:$A$19,0))=0,#N/A,INDEX(FY1398_YTD_Actual!K$3:K$19,MATCH($B$80,FY1398_YTD_Actual!$A$3:$A$19,0))) -> 1148.300297 | AO72: =IF(INDEX(FY1398_YTD_Actual!L$3:L$19,MATCH($B$80,FY1398_YTD_Actual!$A$3:$A$19,0))=0,#N/A,INDEX(FY1398_YTD_Actual!L$3:L$19,MATCH($B$80,FY1398_YTD_Actual!$A$3:$A$19,0))) -> 1526.563446 | AP72: =IF(INDEX(FY1398_YTD_Actual!M$3:M$19,MATCH($B$80,FY1398_YTD_Actual!$A$3:$A$19,0))=0,#N/A,INDEX(FY1398_YTD_Actual!M$3:M$19,MATCH($B$80,FY1398_YTD_Actual!$A$3:$A$19,0))) -> 
AC73: =AD73&$B$80 -> 2019 TargetNangarhar Customs Office | AD73: =Targets!$C$94 -> 2019 Target | AE73: =INDEX(Targets!C$3:C$41,MATCH(Charts!$AC73,Targets!$A$3:$A$41,0)) -> 1271.852509 | AF73: =INDEX(Targets!D$3:D$41,MATCH(Charts!$AC73,Targets!$A$3:$A$41,0)) -> 1271.852509 | AG73: =INDEX(Targets!E$3:E$41,MATCH(Charts!$AC73,Targets!$A$3:$A$41,0)) -> 1271.852509 | AH73: =INDEX(Targets!F$3:F$41,MATCH(Charts!$AC73,Targets!$A$3:$A$41,0)) -> 1329.663986 | AI73: =INDEX(Targets!G$3:G$41,MATCH(Charts!$AC73,Targets!$A$3:$A$41,0)) -> 1329.663986 | AJ73: =INDEX(Targets!H$3:H$41,MATCH(Charts!$AC73,Targets!$A$3:$A$41,0)) -> 1329.663986 | AK73: =INDEX(Targets!I$3:I$41,MATCH(Charts!$AC73,Targets!$A$3:$A$41,0)) -> 1445.286942 | AL73: =INDEX(Targets!J$3:J$41,MATCH(Charts!$AC73,Targets!$A$3:$A$41,0)) -> 1445.286942 | AM73: =INDEX(Targets!K$3:K$41,MATCH(Charts!$AC73,Targets!$A$3:$A$41,0)) -> 1445.286942 | AN73: =INDEX(Targets!L$3:L$41,MATCH(Charts!$AC73,Targets!$A$3:$A$41,0)) -> 1734.34433 | AO73: =INDEX(Targets!M$3:M$41,MATCH(Charts!$AC73,Targets!$A$3:$A$41,0)) -> 1734.34433 | AP73: =INDEX(Targets!N$3:N$41,MATCH(Charts!$AC73,Targets!$A$3:$A$41,0)) -> 1734.34433
D74: Ministry of Finance | AC74: =AD74&$B$80 -> Previous Year performanceNangarhar Customs Office | AD74: =Targets!$C$95 -> Previous Year performance | AE74: =INDEX(Targets!C$3:C$41,MATCH(Charts!$AC74,Targets!$A$3:$A$41,0)) -> 1082.80051 | AF74: =INDEX(Targets!D$3:D$41,MATCH(Charts!$AC74,Targets!$A$3:$A$41,0)) -> 1136.998269 | AG74: =INDEX(Targets!E$3:E$41,MATCH(Charts!$AC74,Targets!$A$3:$A$41,0)) -> 1220.108724 | AH74: =INDEX(Targets!F$3:F$41,MATCH(Charts!$AC74,Targets!$A$3:$A$41,0)) -> 1288.295966 | AI74: =INDEX(Targets!G$3:G$41,MATCH(Charts!$AC74,Targets!$A$3:$A$41,0)) -> 1559.555858 | AJ74: =INDEX(Targets!H$3:H$41,MATCH(Charts!$AC74,Targets!$A$3:$A$41,0)) -> 1506.529001 | AK74: =INDEX(Targets!I$3:I$41,MATCH(Charts!$AC74,Targets!$A$3:$A$41,0)) -> 1462.75823 | AL74: =INDEX(Targets!J$3:J$41,MATCH(Charts!$AC74,Targets!$A$3:$A$41,0)) -> 1346.366633 | AM74: =INDEX(Targets!K$3:K$41,MATCH(Charts!$AC74,Targets!$A$3:$A$41,0)) -> 1242.180881 | AN74: =INDEX(Targets!L$3:L$41,MATCH(Charts!$AC74,Targets!$A$3:$A$41,0)) -> 1617.166052 | AO74: =INDEX(Targets!M$3:M$41,MATCH(Charts!$AC74,Targets!$A$3:$A$41,0)) -> 1344.05514 | AP74: =INDEX(Targets!N$3:N$41,MATCH(Charts!$AC74,Targets!$A$3:$A$41,0)) -> 1638.66228
AD75: Cummulative
AD76: =AD72 -> Actual | AE76: 1416.589154 | AF76: =SUM($AE72:AF72) -> 2755.511628 | AG76: =SUM($AE72:AG72) -> 4043.482735 | AH76: =SUM($AE72:AH72) -> 5555.25778 | AI76: =SUM($AE72:AI72) -> 7117.446522 | AJ76: =SUM($AE72:AJ72) -> 8429.770217 | AK76: =SUM($AE72:AK72) -> 10236.56378 | AL76: =SUM($AE72:AL72) -> 11521.46444 | AM76: =SUM($AE72:AM72) -> 12889.05095 | AN76: =SUM($AE72:AN72) -> 14037.35125 | AO76: =SUM($AE72:AO72) -> 15563.91469 | AP76: =SUM($AE72:AP72) ->  | AQ76: =AQ69 -> Flag if any | AR76: =IF((1-AE76/AE77)>$B$11,AE76,#N/A) -> 
A77: Select charts for page 2: | AD77: 2019 Target | AE77: 1271.852509 | AF77: =SUM($AE73:AF73) -> 2543.705017 | AG77: =SUM($AE73:AG73) -> 3815.557526 | AH77: =SUM($AE73:AH73) -> 5145.221512 | AI77: =SUM($AE73:AI73) -> 6474.885498 | AJ77: =SUM($AE73:AJ73) -> 7804.549485 | AK77: =SUM($AE73:AK73) -> 9249.836426 | AL77: =SUM($AE73:AL73) -> 10695.12337 | AM77: =SUM($AE73:AM73) -> 12140.41031 | AN77: =SUM($AE73:AN73) -> 13874.75464 | AO77: =SUM($AE73:AO73) -> 15609.09897 | AP77: =SUM($AE73:AP73) -> 17343.4433 | AQ77: Historical Year Performance | AR77: =INDEX(Targets!Q$49:Q$88,MATCH(Charts!$AQ78,Targets!$A$49:$A$88,0)) -> 913 | AS77: =INDEX(Targets!R$49:R$88,MATCH(Charts!$AQ78,Targets!$A$49:$A$88,0)) -> 2079 | AT77: =INDEX(Targets!S$49:S$88,MATCH(Charts!$AQ78,Targets!$A$49:$A$88,0)) -> 3213 | AU77: =INDEX(Targets!T$49:T$88,MATCH(Charts!$AQ78,Targets!$A$49:$A$88,0)) -> 4064 | AV77: =INDEX(Targets!U$49:U$88,MATCH(Charts!$AQ78,Targets!$A$49:$A$88,0)) -> 4945 | AW77: =INDEX(Targets!V$49:V$88,MATCH(Charts!$AQ78,Targets!$A$49:$A$88,0)) -> 5910 | AX77: =INDEX(Targets!W$49:W$88,MATCH(Charts!$AQ78,Targets!$A$49:$A$88,0)) -> 6901 | AY77: =INDEX(Targets!X$49:X$88,MATCH(Charts!$AQ78,Targets!$A$49:$A$88,0)) -> 8002 | AZ77: =INDEX(Targets!Y$49:Y$88,MATCH(Charts!$AQ78,Targets!$A$49:$A$88,0)) -> 9053 | BA77: =INDEX(Targets!Z$49:Z$88,MATCH(Charts!$AQ78,Targets!$A$49:$A$88,0)) -> 10125 | BB77: =INDEX(Targets!AA$49:AA$88,MATCH(Charts!$AQ78,Targets!$A$49:$A$88,0)) -> 11342 | BC77: =INDEX(Targets!AB$49:AB$88,MATCH(Charts!$AQ78,Targets!$A$49:$A$88,0)) -> 12334
A78: Figure 5: | B78: Customs Department | C78: =A78&" "&B78 -> Figure 5: Customs Department | AD78: Previous Year performance | AE78: 1082.80051 | AF78: =SUM($AE74:AF74) -> 2219.798779 | AG78: =SUM($AE74:AG74) -> 3439.907503 | AH78: =SUM($AE74:AH74) -> 4728.203469 | AI78: =SUM($AE74:AI74) -> 6287.759327 | AJ78: =SUM($AE74:AJ74) -> 7794.288328 | AK78: =SUM($AE74:AK74) -> 9257.046558 | AL78: =SUM($AE74:AL74) -> 10603.41319 | AM78: =SUM($AE74:AM74) -> 11845.59407 | AN78: =SUM($AE74:AN74) -> 13462.76012 | AO78: =SUM($AE74:AO74) -> 14806.81526 | AP78: =SUM($AE74:AP74) -> 16445.47754 | AQ78: =$B$10&$B$80 -> FY1395Nangarhar Customs Office
A79: Figure 6: | B79: Herat Customs Office | C79: =A79&" "&B79 -> Figure 6: Herat Customs Office | AC79: =A81 -> Figure 8: | AD79: =FY1398_YTD_Actual!$A$1 -> Actual | AE79: =IF(INDEX(FY1398_YTD_Actual!B$3:B$19,MATCH($B$81,FY1398_YTD_Actual!$A$3:$A$19,0))=0,#N/A,INDEX(FY1398_YTD_Actual!B$3:B$19,MATCH($B$81,FY1398_YTD_Actual!$A$3:$A$19,0))) -> 1004.925283 | AF79: =IF(INDEX(FY1398_YTD_Actual!C$3:C$19,MATCH($B$81,FY1398_YTD_Actual!$A$3:$A$19,0))=0,#N/A,INDEX(FY1398_YTD_Actual!C$3:C$19,MATCH($B$81,FY1398_YTD_Actual!$A$3:$A$19,0))) -> 933.342203 | AG79: =IF(INDEX(FY1398_YTD_Actual!D$3:D$19,MATCH($B$81,FY1398_YTD_Actual!$A$3:$A$19,0))=0,#N/A,INDEX(FY1398_YTD_Actual!D$3:D$19,MATCH($B$81,FY1398_YTD_Actual!$A$3:$A$19,0))) -> 640.956549 | AH79: =IF(INDEX(FY1398_YTD_Actual!E$3:E$19,MATCH($B$81,FY1398_YTD_Actual!$A$3:$A$19,0))=0,#N/A,INDEX(FY1398_YTD_Actual!E$3:E$19,MATCH($B$81,FY1398_YTD_Actual!$A$3:$A$19,0))) -> 859.621079 | AI79: =IF(INDEX(FY1398_YTD_Actual!F$3:F$19,MATCH($B$81,FY1398_YTD_Actual!$A$3:$A$19,0))=0,#N/A,INDEX(FY1398_YTD_Actual!F$3:F$19,MATCH($B$81,FY1398_YTD_Actual!$A$3:$A$19,0))) -> 753.634922 | AJ79: =IF(INDEX(FY1398_YTD_Actual!G$3:G$19,MATCH($B$81,FY1398_YTD_Actual!$A$3:$A$19,0))=0,#N/A,INDEX(FY1398_YTD_Actual!G$3:G$19,MATCH($B$81,FY1398_YTD_Actual!$A$3:$A$19,0))) -> 826.192129 | AK79: =IF(INDEX(FY1398_YTD_Actual!H$3:H$19,MATCH($B$81,FY1398_YTD_Actual!$A$3:$A$19,0))=0,#N/A,INDEX(FY1398_YTD_Actual!H$3:H$19,MATCH($B$81,FY1398_YTD_Actual!$A$3:$A$19,0))) -> 686.919117 | AL79: =IF(INDEX(FY1398_YTD_Actual!I$3:I$19,MATCH($B$81,FY1398_YTD_Actual!$A$3:$A$19,0))=0,#N/A,INDEX(FY1398_YTD_Actual!I$3:I$19,MATCH($B$81,FY1398_YTD_Actual!$A$3:$A$19,0))) -> 692.389078 | AM79: =IF(INDEX(FY1398_YTD_Actual!J$3:J$19,MATCH($B$81,FY1398_YTD_Actual!$A$3:$A$19,0))=0,#N/A,INDEX(FY1398_YTD_Actual!J$3:J$19,MATCH($B$81,FY1398_YTD_Actual!$A$3:$A$19,0))) -> 810.139083 | AN79: =IF(INDEX(FY1398_YTD_Actual!K$3:K$19,MATCH($B$81,FY1398_YTD_Actual!$A$3:$A$19,0))=0,#N/A,INDEX(FY1398_YTD_Actual!K$3:K$19,MATCH($B$81,FY1398_YTD_Actual!$A$3:$A$19,0))) -> 710.695515 | AO79: =IF(INDEX(FY1398_YTD_Actual!L$3:L$19,MATCH($B$81,FY1398_YTD_Actual!$A$3:$A$19,0))=0,#N/A,INDEX(FY1398_YTD_Actual!L$3:L$19,MATCH($B$81,FY1398_YTD_Actual!$A$3:$A$19,0))) -> 945.602159 | AP79: =IF(INDEX(FY1398_YTD_Actual!M$3:M$19,MATCH($B$81,FY1398_YTD_Actual!$A$3:$A$19,0))=0,#N/A,INDEX(FY1398_YTD_Actual!M$3:M$19,MATCH($B$81,FY1398_YTD_Actual!$A$3:$A$19,0))) -> 
A80: Figure 7: | B80: Nangarhar Customs Office | C80: Figure 7: Nangarhar Customs Office | AC80: =AD80&$B$81 -> 2019 TargetBalkh Customs Office | AD80: =Targets!$C$94 -> 2019 Target | AE80: =INDEX(Targets!C$3:C$41,MATCH(Charts!$AC80,Targets!$A$3:$A$41,0)) -> 923.2762158 | AF80: =INDEX(Targets!D$3:D$41,MATCH(Charts!$AC80,Targets!$A$3:$A$41,0)) -> 923.2762158 | AG80: =INDEX(Targets!E$3:E$41,MATCH(Charts!$AC80,Targets!$A$3:$A$41,0)) -> 923.2762158 | AH80: =INDEX(Targets!F$3:F$41,MATCH(Charts!$AC80,Targets!$A$3:$A$41,0)) -> 965.2433165 | AI80: =INDEX(Targets!G$3:G$41,MATCH(Charts!$AC80,Targets!$A$3:$A$41,0)) -> 965.2433165 | AJ80: =INDEX(Targets!H$3:H$41,MATCH(Charts!$AC80,Targets!$A$3:$A$41,0)) -> 965.2433165 | AK80: =INDEX(Targets!I$3:I$41,MATCH(Charts!$AC80,Targets!$A$3:$A$41,0)) -> 1049.177518 | AL80: =INDEX(Targets!J$3:J$41,MATCH(Charts!$AC80,Targets!$A$3:$A$41,0)) -> 1049.177518 | AM80: =INDEX(Targets!K$3:K$41,MATCH(Charts!$AC80,Targets!$A$3:$A$41,0)) -> 1049.177518 | AN80: =INDEX(Targets!L$3:L$41,MATCH(Charts!$AC80,Targets!$A$3:$A$41,0)) -> 1259.013022 | AO80: =INDEX(Targets!M$3:M$41,MATCH(Charts!$AC80,Targets!$A$3:$A$41,0)) -> 1259.013022 | AP80: =INDEX(Targets!N$3:N$41,MATCH(Charts!$AC80,Targets!$A$3:$A$41,0)) -> 1259.013022
A81: Figure 8: | B81: Balkh Customs Office | C81: Figure 8: Balkh Customs Office | AC81: =AD81&$B$81 -> Previous Year performanceBalkh Customs Office | AD81: =Targets!$C$95 -> Previous Year performance | AE81: =INDEX(Targets!C$3:C$41,MATCH(Charts!$AC81,Targets!$A$3:$A$41,0)) -> 1092.813065 | AF81: =INDEX(Targets!D$3:D$41,MATCH(Charts!$AC81,Targets!$A$3:$A$41,0)) -> 857.166936 | AG81: =INDEX(Targets!E$3:E$41,MATCH(Charts!$AC81,Targets!$A$3:$A$41,0)) -> 1310.432634 | AH81: =INDEX(Targets!F$3:F$41,MATCH(Charts!$AC81,Targets!$A$3:$A$41,0)) -> 1015.273751 | AI81: =INDEX(Targets!G$3:G$41,MATCH(Charts!$AC81,Targets!$A$3:$A$41,0)) -> 919.09435 | AJ81: =INDEX(Targets!H$3:H$41,MATCH(Charts!$AC81,Targets!$A$3:$A$41,0)) -> 824.273193 | AK81: =INDEX(Targets!I$3:I$41,MATCH(Charts!$AC81,Targets!$A$3:$A$41,0)) -> 713.06732 | AL81: =INDEX(Targets!J$3:J$41,MATCH(Charts!$AC81,Targets!$A$3:$A$41,0)) -> 1131.883166 | AM81: =INDEX(Targets!K$3:K$41,MATCH(Charts!$AC81,Targets!$A$3:$A$41,0)) -> 966.191288 | AN81: =INDEX(Targets!L$3:L$41,MATCH(Charts!$AC81,Targets!$A$3:$A$41,0)) -> 939.247103 | AO81: =INDEX(Targets!M$3:M$41,MATCH(Charts!$AC81,Targets!$A$3:$A$41,0)) -> 1156.912519 | AP81: =INDEX(Targets!N$3:N$41,MATCH(Charts!$AC81,Targets!$A$3:$A$41,0)) -> 1041.631525
A82: Figure 9: | B82: Afghanistan Revenue Department | C82: Figure 9: Afghanistan Revenue Department | AD82: Cummulative
A83: Figure 10: | B83: LTO | C83: Figure 10: LTO | AD83: =AD79 -> Actual | AE83: 1004.925283 | AF83: =SUM($AE79:AF79) -> 1938.267486 | AG83: =SUM($AE79:AG79) -> 2579.224035 | AH83: =SUM($AE79:AH79) -> 3438.845114 | AI83: =SUM($AE79:AI79) -> 4192.480036 | AJ83: =SUM($AE79:AJ79) -> 5018.672165 | AK83: =SUM($AE79:AK79) -> 5705.591282 | AL83: =SUM($AE79:AL79) -> 6397.98036 | AM83: =SUM($AE79:AM79) -> 7208.119443 | AN83: =SUM($AE79:AN79) -> 7918.814958 | AO83: =SUM($AE79:AO79) -> 8864.417117 | AP83: =SUM($AE79:AP79) ->  | AQ83: =AQ76 -> Flag if any | AR83: =IF((1-AE83/AE84)>$B$11,AE83,#N/A) ->  | AV83: 4192.480036 | AW83: 5018.672165 | AX83: 5705.591282 | AY83: 6397.98036 | AZ83: 7208.119443 | BA83: 7918.814958 | BB83: 8864.417117
A84: Figure 11: | B84: MTO | C84: Figure 11: MTO | AD84: 2019 Target | AE84: 923.2762158 | AF84: =SUM($AE80:AF80) -> 1846.552432 | AG84: =SUM($AE80:AG80) -> 2769.828647 | AH84: =SUM($AE80:AH80) -> 3735.071964 | AI84: =SUM($AE80:AI80) -> 4700.315281 | AJ84: =SUM($AE80:AJ80) -> 5665.558597 | AK84: =SUM($AE80:AK80) -> 6714.736115 | AL84: =SUM($AE80:AL80) -> 7763.913633 | AM84: =SUM($AE80:AM80) -> 8813.091151 | AN84: =SUM($AE80:AN80) -> 10072.10417 | AO84: =SUM($AE80:AO80) -> 11331.11719 | AP84: =SUM($AE80:AP80) -> 12590.13022 | AQ84: Historical Year Performance | AR84: =INDEX(Targets!Q$49:Q$88,MATCH(Charts!$AQ85,Targets!$A$49:$A$88,0)) -> 783 | AS84: =INDEX(Targets!R$49:R$88,MATCH(Charts!$AQ85,Targets!$A$49:$A$88,0)) -> 1625 | AT84: =INDEX(Targets!S$49:S$88,MATCH(Charts!$AQ85,Targets!$A$49:$A$88,0)) -> 2388 | AU84: =INDEX(Targets!T$49:T$88,MATCH(Charts!$AQ85,Targets!$A$49:$A$88,0)) -> 3478 | AV84: =INDEX(Targets!U$49:U$88,MATCH(Charts!$AQ85,Targets!$A$49:$A$88,0)) -> 4293 | AW84: =INDEX(Targets!V$49:V$88,MATCH(Charts!$AQ85,Targets!$A$49:$A$88,0)) -> 5136 | AX84: =INDEX(Targets!W$49:W$88,MATCH(Charts!$AQ85,Targets!$A$49:$A$88,0)) -> 5863 | AY84: =INDEX(Targets!X$49:X$88,MATCH(Charts!$AQ85,Targets!$A$49:$A$88,0)) -> 6601 | AZ84: =INDEX(Targets!Y$49:Y$88,MATCH(Charts!$AQ85,Targets!$A$49:$A$88,0)) -> 7184 | BA84: =INDEX(Targets!Z$49:Z$88,MATCH(Charts!$AQ85,Targets!$A$49:$A$88,0)) -> 8004 | BB84: =INDEX(Targets!AA$49:AA$88,MATCH(Charts!$AQ85,Targets!$A$49:$A$88,0)) -> 9165 | BC84: =INDEX(Targets!AB$49:AB$88,MATCH(Charts!$AQ85,Targets!$A$49:$A$88,0)) -> 10229
A85: Figure 12: | B85: STO | C85: Figure 12: STO | AD85: Previous Year performance | AE85: 1092.813065 | AF85: =SUM($AE81:AF81) -> 1949.980001 | AG85: =SUM($AE81:AG81) -> 3260.412635 | AH85: =SUM($AE81:AH81) -> 4275.686386 | AI85: =SUM($AE81:AI81) -> 5194.780736 | AJ85: =SUM($AE81:AJ81) -> 6019.053929 | AK85: =SUM($AE81:AK81) -> 6732.121249 | AL85: =SUM($AE81:AL81) -> 7864.004415 | AM85: =SUM($AE81:AM81) -> 8830.195703 | AN85: =SUM($AE81:AN81) -> 9769.442806 | AO85: =SUM($AE81:AO81) -> 10926.35532 | AP85: =SUM($AE81:AP81) -> 11967.98685 | AQ85: =$B$10&$B$81 -> FY1395Balkh Customs Office
C86: =A83&" "&B83 -> Figure 10: LTO | AC86: =A82 -> Figure 9: | AD86: =FY1398_YTD_Actual!$A$1 -> Actual | AE86: =IF(INDEX(FY1398_YTD_Actual!B$3:B$19,MATCH($B$82,FY1398_YTD_Actual!$A$3:$A$19,0))=0,#N/A,INDEX(FY1398_YTD_Actual!B$3:B$19,MATCH($B$82,FY1398_YTD_Actual!$A$3:$A$19,0))) -> 7355.137811 | AF86: =IF(INDEX(FY1398_YTD_Actual!C$3:C$19,MATCH($B$82,FY1398_YTD_Actual!$A$3:$A$19,0))=0,#N/A,INDEX(FY1398_YTD_Actual!C$3:C$19,MATCH($B$82,FY1398_YTD_Actual!$A$3:$A$19,0))) -> 6885.980895 | AG86: =IF(INDEX(FY1398_YTD_Actual!D$3:D$19,MATCH($B$82,FY1398_YTD_Actual!$A$3:$A$19,0))=0,#N/A,INDEX(FY1398_YTD_Actual!D$3:D$19,MATCH($B$82,FY1398_YTD_Actual!$A$3:$A$19,0))) -> 7914.57488 | AH86: =IF(INDEX(FY1398_YTD_Actual!E$3:E$19,MATCH($B$82,FY1398_YTD_Actual!$A$3:$A$19,0))=0,#N/A,INDEX(FY1398_YTD_Actual!E$3:E$19,MATCH($B$82,FY1398_YTD_Actual!$A$3:$A$19,0))) -> 9076.615353 | AI86: =IF(INDEX(FY1398_YTD_Actual!F$3:F$19,MATCH($B$82,FY1398_YTD_Actual!$A$3:$A$19,0))=0,#N/A,INDEX(FY1398_YTD_Actual!F$3:F$19,MATCH($B$82,FY1398_YTD_Actual!$A$3:$A$19,0))) -> 15080.34019 | AJ86: =IF(INDEX(FY1398_YTD_Actual!G$3:G$19,MATCH($B$82,FY1398_YTD_Actual!$A$3:$A$19,0))=0,#N/A,INDEX(FY1398_YTD_Actual!G$3:G$19,MATCH($B$82,FY1398_YTD_Actual!$A$3:$A$19,0))) -> 7341.411216 | AK86: =IF(INDEX(FY1398_YTD_Actual!H$3:H$19,MATCH($B$82,FY1398_YTD_Actual!$A$3:$A$19,0))=0,#N/A,INDEX(FY1398_YTD_Actual!H$3:H$19,MATCH($B$82,FY1398_YTD_Actual!$A$3:$A$19,0))) -> 8841.789197 | AL86: =IF(INDEX(FY1398_YTD_Actual!I$3:I$19,MATCH($B$82,FY1398_YTD_Actual!$A$3:$A$19,0))=0,#N/A,INDEX(FY1398_YTD_Actual!I$3:I$19,MATCH($B$82,FY1398_YTD_Actual!$A$3:$A$19,0))) -> 5703.122535 | AM86: =IF(INDEX(FY1398_YTD_Actual!J$3:J$19,MATCH($B$82,FY1398_YTD_Actual!$A$3:$A$19,0))=0,#N/A,INDEX(FY1398_YTD_Actual!J$3:J$19,MATCH($B$82,FY1398_YTD_Actual!$A$3:$A$19,0))) -> 8747.881808 | AN86: =IF(INDEX(FY1398_YTD_Actual!K$3:K$19,MATCH($B$82,FY1398_YTD_Actual!$A$3:$A$19,0))=0,#N/A,INDEX(FY1398_YTD_Actual!K$3:K$19,MATCH($B$82,FY1398_YTD_Actual!$A$3:$A$19,0))) -> 13894.0056 | AO86: =IF(INDEX(FY1398_YTD_Actual!L$3:L$19,MATCH($B$82,FY1398_YTD_Actual!$A$3:$A$19,0))=0,#N/A,INDEX(FY1398_YTD_Actual!L$3:L$19,MATCH($B$82,FY1398_YTD_Actual!$A$3:$A$19,0))) -> 5100.015522 | AP86: =IF(INDEX(FY1398_YTD_Actual!M$3:M$19,MATCH($B$82,FY1398_YTD_Actual!$A$3:$A$19,0))=0,#N/A,INDEX(FY1398_YTD_Actual!M$3:M$19,MATCH($B$82,FY1398_YTD_Actual!$A$3:$A$19,0))) -> 
C87: Figure 11: MTO | AC87: =AD87&$B$82 -> 2019 TargetAfghanistan Revenue Department | AD87: =Targets!$C$94 -> 2019 Target | AE87: =INDEX(Targets!C$3:C$41,MATCH(Charts!$AC87,Targets!$A$3:$A$41,0)) -> 7890.218963 | AF87: =INDEX(Targets!D$3:D$41,MATCH(Charts!$AC87,Targets!$A$3:$A$41,0)) -> 7890.218963 | AG87: =INDEX(Targets!E$3:E$41,MATCH(Charts!$AC87,Targets!$A$3:$A$41,0)) -> 7890.218963 | AH87: =INDEX(Targets!F$3:F$41,MATCH(Charts!$AC87,Targets!$A$3:$A$41,0)) -> 8248.86528 | AI87: =INDEX(Targets!G$3:G$41,MATCH(Charts!$AC87,Targets!$A$3:$A$41,0)) -> 8248.86528 | AJ87: =INDEX(Targets!H$3:H$41,MATCH(Charts!$AC87,Targets!$A$3:$A$41,0)) -> 8248.86528 | AK87: =INDEX(Targets!I$3:I$41,MATCH(Charts!$AC87,Targets!$A$3:$A$41,0)) -> 8966.157913 | AL87: =INDEX(Targets!J$3:J$41,MATCH(Charts!$AC87,Targets!$A$3:$A$41,0)) -> 8966.157913 | AM87: =INDEX(Targets!K$3:K$41,MATCH(Charts!$AC87,Targets!$A$3:$A$41,0)) -> 8966.157913 | AN87: =INDEX(Targets!L$3:L$41,MATCH(Charts!$AC87,Targets!$A$3:$A$41,0)) -> 10759.3895 | AO87: =INDEX(Targets!M$3:M$41,MATCH(Charts!$AC87,Targets!$A$3:$A$41,0)) -> 10759.3895 | AP87: =INDEX(Targets!N$3:N$41,MATCH(Charts!$AC87,Targets!$A$3:$A$41,0)) -> 10759.3895
C88: Figure 12: STO | AC88: =AD88&$B$82 -> Previous Year performanceAfghanistan Revenue Department | AD88: =Targets!$C$95 -> Previous Year performance | AE88: =INDEX(Targets!C$3:C$41,MATCH(Charts!$AC88,Targets!$A$3:$A$41,0)) -> 7208.353701 | AF88: =INDEX(Targets!D$3:D$41,MATCH(Charts!$AC88,Targets!$A$3:$A$41,0)) -> 5086.01996 | AG88: =INDEX(Targets!E$3:E$41,MATCH(Charts!$AC88,Targets!$A$3:$A$41,0)) -> 7597.5008 | AH88: =INDEX(Targets!F$3:F$41,MATCH(Charts!$AC88,Targets!$A$3:$A$41,0)) -> 9399.923626 | AI88: =INDEX(Targets!G$3:G$41,MATCH(Charts!$AC88,Targets!$A$3:$A$41,0)) -> 6508.91166 | AJ88: =INDEX(Targets!H$3:H$41,MATCH(Charts!$AC88,Targets!$A$3:$A$41,0)) -> 8893.446019 | AK88: =INDEX(Targets!I$3:I$41,MATCH(Charts!$AC88,Targets!$A$3:$A$41,0)) -> 10692.4962 | AL88: =INDEX(Targets!J$3:J$41,MATCH(Charts!$AC88,Targets!$A$3:$A$41,0)) -> 6692.152503 | AM88: =INDEX(Targets!K$3:K$41,MATCH(Charts!$AC88,Targets!$A$3:$A$41,0)) -> 10776.43003 | AN88: =INDEX(Targets!L$3:L$41,MATCH(Charts!$AC88,Targets!$A$3:$A$41,0)) -> 10568.07946 | AO88: =INDEX(Targets!M$3:M$41,MATCH(Charts!$AC88,Targets!$A$3:$A$41,0)) -> 16443.28802 | AP88: =INDEX(Targets!N$3:N$41,MATCH(Charts!$AC88,Targets!$A$3:$A$41,0)) -> 15750.28594
AD89: Cummulative
AD90: =AD86 -> Actual | AE90: 7355.137811 | AF90: =SUM($AE86:AF86) -> 14241.11871 | AG90: =SUM($AE86:AG86) -> 22155.69359 | AH90: =SUM($AE86:AH86) -> 31232.30894 | AI90: =SUM($AE86:AI86) -> 46312.64913 | AJ90: =SUM($AE86:AJ86) -> 53654.06035 | AK90: =SUM($AE86:AK86) -> 62495.84955 | AL90: =SUM($AE86:AL86) -> 68198.97208 | AM90: =SUM($AE86:AM86) -> 76946.85389 | AN90: =SUM($AE86:AN86) -> 90840.85949 | AO90: =SUM($AE86:AO86) -> 95940.87501 | AP90: =SUM($AE86:AP86) ->  | AQ90: =AQ83 -> Flag if any | AR90: =IF((1-AE90/AE91)>$B$11,AE90,#N/A) -> 
AD91: 2019 Target | AE91: 7890.218963 | AF91: =SUM($AE87:AF87) -> 15780.43793 | AG91: =SUM($AE87:AG87) -> 23670.65689 | AH91: =SUM($AE87:AH87) -> 31919.52217 | AI91: =SUM($AE87:AI87) -> 40168.38745 | AJ91: =SUM($AE87:AJ87) -> 48417.25273 | AK91: =SUM($AE87:AK87) -> 57383.41064 | AL91: =SUM($AE87:AL87) -> 66349.56856 | AM91: =SUM($AE87:AM87) -> 75315.72647 | AN91: =SUM($AE87:AN87) -> 86075.11596 | AO91: =SUM($AE87:AO87) -> 96834.50546 | AP91: =SUM($AE87:AP87) -> 107593.895 | AQ91: Historical Year Performance | AR91: =INDEX(Targets!Q$49:Q$88,MATCH(Charts!$AQ92,Targets!$A$49:$A$88,0)) -> 5187 | AS91: =INDEX(Targets!R$49:R$88,MATCH(Charts!$AQ92,Targets!$A$49:$A$88,0)) -> 9913 | AT91: =INDEX(Targets!S$49:S$88,MATCH(Charts!$AQ92,Targets!$A$49:$A$88,0)) -> 15851 | AU91: =INDEX(Targets!T$49:T$88,MATCH(Charts!$AQ92,Targets!$A$49:$A$88,0)) -> 23640 | AV91: =INDEX(Targets!U$49:U$88,MATCH(Charts!$AQ92,Targets!$A$49:$A$88,0)) -> 29665 | AW91: =INDEX(Targets!V$49:V$88,MATCH(Charts!$AQ92,Targets!$A$49:$A$88,0)) -> 47846 | AX91: =INDEX(Targets!W$49:W$88,MATCH(Charts!$AQ92,Targets!$A$49:$A$88,0)) -> 54704 | AY91: =INDEX(Targets!X$49:X$88,MATCH(Charts!$AQ92,Targets!$A$49:$A$88,0)) -> 62845 | AZ91: =INDEX(Targets!Y$49:Y$88,MATCH(Charts!$AQ92,Targets!$A$49:$A$88,0)) -> 67697 | BA91: =INDEX(Targets!Z$49:Z$88,MATCH(Charts!$AQ92,Targets!$A$49:$A$88,0)) -> 73278 | BB91: =INDEX(Targets!AA$49:AA$88,MATCH(Charts!$AQ92,Targets!$A$49:$A$88,0)) -> 80973 | BC91: =INDEX(Targets!AB$49:AB$88,MATCH(Charts!$AQ92,Targets!$A$49:$A$88,0)) -> 88183
AD92: Previous Year performance | AE92: 7208.353701 | AF92: =SUM($AE88:AF88) -> 12294.37366 | AG92: =SUM($AE88:AG88) -> 19891.87446 | AH92: =SUM($AE88:AH88) -> 29291.79809 | AI92: =SUM($AE88:AI88) -> 35800.70975 | AJ92: =SUM($AE88:AJ88) -> 44694.15577 | AK92: =SUM($AE88:AK88) -> 55386.65197 | AL92: =SUM($AE88:AL88) -> 62078.80447 | AM92: =SUM($AE88:AM88) -> 72855.2345 | AN92: =SUM($AE88:AN88) -> 83423.31397 | AO92: =SUM($AE88:AO88) -> 99866.60198 | AP92: =SUM($AE88:AP88) -> 115616.8879 | AQ92: =$B$10&$B$82 -> FY1395Afghanistan Revenue Department
AC93: =A83 -> Figure 10: | AD93: =FY1398_YTD_Actual!$A$1 -> Actual | AE93: =IF(INDEX(FY1398_YTD_Actual!B$3:B$19,MATCH($B$83,FY1398_YTD_Actual!$A$3:$A$19,0))=0,#N/A,INDEX(FY1398_YTD_Actual!B$3:B$19,MATCH($B$83,FY1398_YTD_Actual!$A$3:$A$19,0))) -> 2757.395804 | AF93: =IF(INDEX(FY1398_YTD_Actual!C$3:C$19,MATCH($B$83,FY1398_YTD_Actual!$A$3:$A$19,0))=0,#N/A,INDEX(FY1398_YTD_Actual!C$3:C$19,MATCH($B$83,FY1398_YTD_Actual!$A$3:$A$19,0))) -> 1665.116948 | AG93: =IF(INDEX(FY1398_YTD_Actual!D$3:D$19,MATCH($B$83,FY1398_YTD_Actual!$A$3:$A$19,0))=0,#N/A,INDEX(FY1398_YTD_Actual!D$3:D$19,MATCH($B$83,FY1398_YTD_Actual!$A$3:$A$19,0))) -> 1709.504585 | AH93: =IF(INDEX(FY1398_YTD_Actual!E$3:E$19,MATCH($B$83,FY1398_YTD_Actual!$A$3:$A$19,0))=0,#N/A,INDEX(FY1398_YTD_Actual!E$3:E$19,MATCH($B$83,FY1398_YTD_Actual!$A$3:$A$19,0))) -> 2889.147523 | AI93: =IF(INDEX(FY1398_YTD_Actual!F$3:F$19,MATCH($B$83,FY1398_YTD_Actual!$A$3:$A$19,0))=0,#N/A,INDEX(FY1398_YTD_Actual!F$3:F$19,MATCH($B$83,FY1398_YTD_Actual!$A$3:$A$19,0))) -> 1401.835546 | AJ93: =IF(INDEX(FY1398_YTD_Actual!G$3:G$19,MATCH($B$83,FY1398_YTD_Actual!$A$3:$A$19,0))=0,#N/A,INDEX(FY1398_YTD_Actual!G$3:G$19,MATCH($B$83,FY1398_YTD_Actual!$A$3:$A$19,0))) -> 2559.948049 | AK93: =IF(INDEX(FY1398_YTD_Actual!H$3:H$19,MATCH($B$83,FY1398_YTD_Actual!$A$3:$A$19,0))=0,#N/A,INDEX(FY1398_YTD_Actual!H$3:H$19,MATCH($B$83,FY1398_YTD_Actual!$A$3:$A$19,0))) -> 2486.043823 | AL93: =IF(INDEX(FY1398_YTD_Actual!I$3:I$19,MATCH($B$83,FY1398_YTD_Actual!$A$3:$A$19,0))=0,#N/A,INDEX(FY1398_YTD_Actual!I$3:I$19,MATCH($B$83,FY1398_YTD_Actual!$A$3:$A$19,0))) -> 940.9853993 | AM93: =IF(INDEX(FY1398_YTD_Actual!J$3:J$19,MATCH($B$83,FY1398_YTD_Actual!$A$3:$A$19,0))=0,#N/A,INDEX(FY1398_YTD_Actual!J$3:J$19,MATCH($B$83,FY1398_YTD_Actual!$A$3:$A$19,0))) -> 2271.690229 | AN93: =IF(INDEX(FY1398_YTD_Actual!K$3:K$19,MATCH($B$83,FY1398_YTD_Actual!$A$3:$A$19,0))=0,#N/A,INDEX(FY1398_YTD_Actual!K$3:K$19,MATCH($B$83,FY1398_YTD_Actual!$A$3:$A$19,0))) -> 4131.951392 | AO93: =IF(INDEX(FY1398_YTD_Actual!L$3:L$19,MATCH($B$83,FY1398_YTD_Actual!$A$3:$A$19,0))=0,#N/A,INDEX(FY1398_YTD_Actual!L$3:L$19,MATCH($B$83,FY1398_YTD_Actual!$A$3:$A$19,0))) -> 1835.219881 | AP93: =IF(INDEX(FY1398_YTD_Actual!M$3:M$19,MATCH($B$83,FY1398_YTD_Actual!$A$3:$A$19,0))=0,#N/A,INDEX(FY1398_YTD_Actual!M$3:M$19,MATCH($B$83,FY1398_YTD_Actual!$A$3:$A$19,0))) -> 
AC94: =AD94&$B$83 -> 2019 TargetLTO | AD94: =Targets!$C$94 -> 2019 Target | AE94: =INDEX(Targets!C$3:C$41,MATCH(Charts!$AC94,Targets!$A$3:$A$41,0)) -> 2266.499741 | AF94: =INDEX(Targets!D$3:D$41,MATCH(Charts!$AC94,Targets!$A$3:$A$41,0)) -> 2266.499741 | AG94: =INDEX(Targets!E$3:E$41,MATCH(Charts!$AC94,Targets!$A$3:$A$41,0)) -> 2266.499741 | AH94: =INDEX(Targets!F$3:F$41,MATCH(Charts!$AC94,Targets!$A$3:$A$41,0)) -> 2369.522456 | AI94: =INDEX(Targets!G$3:G$41,MATCH(Charts!$AC94,Targets!$A$3:$A$41,0)) -> 2369.522456 | AJ94: =INDEX(Targets!H$3:H$41,MATCH(Charts!$AC94,Targets!$A$3:$A$41,0)) -> 2369.522456 | AK94: =INDEX(Targets!I$3:I$41,MATCH(Charts!$AC94,Targets!$A$3:$A$41,0)) -> 2575.567887 | AL94: =INDEX(Targets!J$3:J$41,MATCH(Charts!$AC94,Targets!$A$3:$A$41,0)) -> 2575.567887 | AM94: =INDEX(Targets!K$3:K$41,MATCH(Charts!$AC94,Targets!$A$3:$A$41,0)) -> 2575.567887 | AN94: =INDEX(Targets!L$3:L$41,MATCH(Charts!$AC94,Targets!$A$3:$A$41,0)) -> 3090.681465 | AO94: =INDEX(Targets!M$3:M$41,MATCH(Charts!$AC94,Targets!$A$3:$A$41,0)) -> 3090.681465 | AP94: =INDEX(Targets!N$3:N$41,MATCH(Charts!$AC94,Targets!$A$3:$A$41,0)) -> 3090.681465
AC95: =AD95&$B$83 -> Previous Year performanceLTO | AD95: =Targets!$C$95 -> Previous Year performance | AE95: =INDEX(Targets!C$3:C$41,MATCH(Charts!$AC95,Targets!$A$3:$A$41,0)) -> 2900.85481 | AF95: =INDEX(Targets!D$3:D$41,MATCH(Charts!$AC95,Targets!$A$3:$A$41,0)) -> 790.300629 | AG95: =INDEX(Targets!E$3:E$41,MATCH(Charts!$AC95,Targets!$A$3:$A$41,0)) -> 1595.75158 | AH95: =INDEX(Targets!F$3:F$41,MATCH(Charts!$AC95,Targets!$A$3:$A$41,0)) -> 2773.51705 | AI95: =INDEX(Targets!G$3:G$41,MATCH(Charts!$AC95,Targets!$A$3:$A$41,0)) -> 874.0127404 | AJ95: =INDEX(Targets!H$3:H$41,MATCH(Charts!$AC95,Targets!$A$3:$A$41,0)) -> 2934.519556 | AK95: =INDEX(Targets!I$3:I$41,MATCH(Charts!$AC95,Targets!$A$3:$A$41,0)) -> 2717.592181 | AL95: =INDEX(Targets!J$3:J$41,MATCH(Charts!$AC95,Targets!$A$3:$A$41,0)) -> 904.2728918 | AM95: =INDEX(Targets!K$3:K$41,MATCH(Charts!$AC95,Targets!$A$3:$A$41,0)) -> 4545.277415 | AN95: =INDEX(Targets!L$3:L$41,MATCH(Charts!$AC95,Targets!$A$3:$A$41,0)) -> 4227.548233 | AO95: =INDEX(Targets!M$3:M$41,MATCH(Charts!$AC95,Targets!$A$3:$A$41,0)) -> 3892.012986 | AP95: =INDEX(Targets!N$3:N$41,MATCH(Charts!$AC95,Targets!$A$3:$A$41,0)) -> 3062.792088
AD96: Cummulative
AD97: =AD93 -> Actual | AE97: 2757.395804 | AF97: =SUM($AE93:AF93) -> 4422.512751 | AG97: =SUM($AE93:AG93) -> 6132.017336 | AH97: =SUM($AE93:AH93) -> 9021.164859 | AI97: =SUM($AE93:AI93) -> 10423.00041 | AJ97: =SUM($AE93:AJ93) -> 12982.94845 | AK97: =SUM($AE93:AK93) -> 15468.99228 | AL97: =SUM($AE93:AL93) -> 16409.97768 | AM97: =SUM($AE93:AM93) -> 18681.6679 | AN97: =SUM($AE93:AN93) -> 22813.6193 | AO97: =SUM($AE93:AO93) -> 24648.83918 | AP97: =SUM($AE93:AP93) ->  | AQ97: =AQ90 -> Flag if any | AR97: =IF((1-AE97/AE98)>$B$11,AE97,#N/A) ->  | AY97: 16409.97768 | AZ97: 18681.6679 | BB97: 24648.83918
AD98: 2019 Target | AE98: 2266.499741 | AF98: =SUM($AE94:AF94) -> 4532.999482 | AG98: =SUM($AE94:AG94) -> 6799.499223 | AH98: =SUM($AE94:AH94) -> 9169.021679 | AI98: =SUM($AE94:AI94) -> 11538.54414 | AJ98: =SUM($AE94:AJ94) -> 13908.06659 | AK98: =SUM($AE94:AK94) -> 16483.63448 | AL98: =SUM($AE94:AL94) -> 19059.20237 | AM98: =SUM($AE94:AM94) -> 21634.77025 | AN98: =SUM($AE94:AN94) -> 24725.45172 | AO98: =SUM($AE94:AO94) -> 27816.13318 | AP98: =SUM($AE94:AP94) -> 30906.81465 | AQ98: Historical Year Performance | AR98: =INDEX(Targets!Q$49:Q$88,MATCH(Charts!$AQ99,Targets!$A$49:$A$88,0)) -> 2015 | AS98: =INDEX(Targets!R$49:R$88,MATCH(Charts!$AQ99,Targets!$A$49:$A$88,0)) -> 2795 | AT98: =INDEX(Targets!S$49:S$88,MATCH(Charts!$AQ99,Targets!$A$49:$A$88,0)) -> 3682 | AU98: =INDEX(Targets!T$49:T$88,MATCH(Charts!$AQ99,Targets!$A$49:$A$88,0)) -> 5951 | AV98: =INDEX(Targets!U$49:U$88,MATCH(Charts!$AQ99,Targets!$A$49:$A$88,0)) -> 7239 | AW98: =INDEX(Targets!V$49:V$88,MATCH(Charts!$AQ99,Targets!$A$49:$A$88,0)) -> 8203 | AX98: =INDEX(Targets!W$49:W$88,MATCH(Charts!$AQ99,Targets!$A$49:$A$88,0)) -> 10332 | AY98: =INDEX(Targets!X$49:X$88,MATCH(Charts!$AQ99,Targets!$A$49:$A$88,0)) -> 11960 | AZ98: =INDEX(Targets!Y$49:Y$88,MATCH(Charts!$AQ99,Targets!$A$49:$A$88,0)) -> 12642 | BA98: =INDEX(Targets!Z$49:Z$88,MATCH(Charts!$AQ99,Targets!$A$49:$A$88,0)) -> 15237 | BB98: =INDEX(Targets!AA$49:AA$88,MATCH(Charts!$AQ99,Targets!$A$49:$A$88,0)) -> 16722 | BC98: =INDEX(Targets!AB$49:AB$88,MATCH(Charts!$AQ99,Targets!$A$49:$A$88,0)) -> 18363
AD99: Previous Year performance | AE99: 2900.85481 | AF99: =SUM($AE95:AF95) -> 3691.155439 | AG99: =SUM($AE95:AG95) -> 5286.907019 | AH99: =SUM($AE95:AH95) -> 8060.424069 | AI99: =SUM($AE95:AI95) -> 8934.436809 | AJ99: =SUM($AE95:AJ95) -> 11868.95637 | AK99: =SUM($AE95:AK95) -> 14586.54855 | AL99: =SUM($AE95:AL95) -> 15490.82144 | AM99: =SUM($AE95:AM95) -> 20036.09885 | AN99: =SUM($AE95:AN95) -> 24263.64709 | AO99: =SUM($AE95:AO95) -> 28155.66007 | AP99: =SUM($AE95:AP95) -> 31218.45216 | AQ99: =$B$10&$B$83 -> FY1395LTO
AC100: =A84 -> Figure 11: | AD100: =FY1398_YTD_Actual!$A$1 -> Actual | AE100: =IF(INDEX(FY1398_YTD_Actual!B$3:B$19,MATCH($B$84,FY1398_YTD_Actual!$A$3:$A$19,0))=0,#N/A,INDEX(FY1398_YTD_Actual!B$3:B$19,MATCH($B$84,FY1398_YTD_Actual!$A$3:$A$19,0))) -> 1046.534685 | AF100: =IF(INDEX(FY1398_YTD_Actual!C$3:C$19,MATCH($B$84,FY1398_YTD_Actual!$A$3:$A$19,0))=0,#N/A,INDEX(FY1398_YTD_Actual!C$3:C$19,MATCH($B$84,FY1398_YTD_Actual!$A$3:$A$19,0))) -> 1056.175829 | AG100: =IF(INDEX(FY1398_YTD_Actual!D$3:D$19,MATCH($B$84,FY1398_YTD_Actual!$A$3:$A$19,0))=0,#N/A,INDEX(FY1398_YTD_Actual!D$3:D$19,MATCH($B$84,FY1398_YTD_Actual!$A$3:$A$19,0))) -> 1362.792479 | AH100: =IF(INDEX(FY1398_YTD_Actual!E$3:E$19,MATCH($B$84,FY1398_YTD_Actual!$A$3:$A$19,0))=0,#N/A,INDEX(FY1398_YTD_Actual!E$3:E$19,MATCH($B$84,FY1398_YTD_Actual!$A$3:$A$19,0))) -> 1444.229951 | AI100: =IF(INDEX(FY1398_YTD_Actual!F$3:F$19,MATCH($B$84,FY1398_YTD_Actual!$A$3:$A$19,0))=0,#N/A,INDEX(FY1398_YTD_Actual!F$3:F$19,MATCH($B$84,FY1398_YTD_Actual!$A$3:$A$19,0))) -> 1138.777265 | AJ100: =IF(INDEX(FY1398_YTD_Actual!G$3:G$19,MATCH($B$84,FY1398_YTD_Actual!$A$3:$A$19,0))=0,#N/A,INDEX(FY1398_YTD_Actual!G$3:G$19,MATCH($B$84,FY1398_YTD_Actual!$A$3:$A$19,0))) -> 1355.381423 | AK100: =IF(INDEX(FY1398_YTD_Actual!H$3:H$19,MATCH($B$84,FY1398_YTD_Actual!$A$3:$A$19,0))=0,#N/A,INDEX(FY1398_YTD_Actual!H$3:H$19,MATCH($B$84,FY1398_YTD_Actual!$A$3:$A$19,0))) -> 1489.05382 | AL100: =IF(INDEX(FY1398_YTD_Actual!I$3:I$19,MATCH($B$84,FY1398_YTD_Actual!$A$3:$A$19,0))=0,#N/A,INDEX(FY1398_YTD_Actual!I$3:I$19,MATCH($B$84,FY1398_YTD_Actual!$A$3:$A$19,0))) -> 1061.489204 | AM100: =IF(INDEX(FY1398_YTD_Actual!J$3:J$19,MATCH($B$84,FY1398_YTD_Actual!$A$3:$A$19,0))=0,#N/A,INDEX(FY1398_YTD_Actual!J$3:J$19,MATCH($B$84,FY1398_YTD_Actual!$A$3:$A$19,0))) -> 868.2777498 | AN100: =IF(INDEX(FY1398_YTD_Actual!K$3:K$19,MATCH($B$84,FY1398_YTD_Actual!$A$3:$A$19,0))=0,#N/A,INDEX(FY1398_YTD_Actual!K$3:K$19,MATCH($B$84,FY1398_YTD_Actual!$A$3:$A$19,0))) -> 1545.295044 | AO100: =IF(INDEX(FY1398_YTD_Actual!L$3:L$19,MATCH($B$84,FY1398_YTD_Actual!$A$3:$A$19,0))=0,#N/A,INDEX(FY1398_YTD_Actual!L$3:L$19,MATCH($B$84,FY1398_YTD_Actual!$A$3:$A$19,0))) -> 740.0254792 | AP100: =IF(INDEX(FY1398_YTD_Actual!M$3:M$19,MATCH($B$84,FY1398_YTD_Actual!$A$3:$A$19,0))=0,#N/A,INDEX(FY1398_YTD_Actual!M$3:M$19,MATCH($B$84,FY1398_YTD_Actual!$A$3:$A$19,0))) -> 
AC101: =AD101&$B$84 -> 2019 TargetMTO | AD101: =Targets!$C$94 -> 2019 Target | AE101: =INDEX(Targets!C$3:C$41,MATCH(Charts!$AC101,Targets!$A$3:$A$41,0)) -> 1182.826207 | AF101: =INDEX(Targets!D$3:D$41,MATCH(Charts!$AC101,Targets!$A$3:$A$41,0)) -> 1182.826207 | AG101: =INDEX(Targets!E$3:E$41,MATCH(Charts!$AC101,Targets!$A$3:$A$41,0)) -> 1182.826207 | AH101: =INDEX(Targets!F$3:F$41,MATCH(Charts!$AC101,Targets!$A$3:$A$41,0)) -> 1236.591034 | AI101: =INDEX(Targets!G$3:G$41,MATCH(Charts!$AC101,Targets!$A$3:$A$41,0)) -> 1236.591034 | AJ101: =INDEX(Targets!H$3:H$41,MATCH(Charts!$AC101,Targets!$A$3:$A$41,0)) -> 1236.591034 | AK101: =INDEX(Targets!I$3:I$41,MATCH(Charts!$AC101,Targets!$A$3:$A$41,0)) -> 1344.120689 | AL101: =INDEX(Targets!J$3:J$41,MATCH(Charts!$AC101,Targets!$A$3:$A$41,0)) -> 1344.120689 | AM101: =INDEX(Targets!K$3:K$41,MATCH(Charts!$AC101,Targets!$A$3:$A$41,0)) -> 1344.120689 | AN101: =INDEX(Targets!L$3:L$41,MATCH(Charts!$AC101,Targets!$A$3:$A$41,0)) -> 1612.944827 | AO101: =INDEX(Targets!M$3:M$41,MATCH(Charts!$AC101,Targets!$A$3:$A$41,0)) -> 1612.944827 | AP101: =INDEX(Targets!N$3:N$41,MATCH(Charts!$AC101,Targets!$A$3:$A$41,0)) -> 1612.944827
AC102: =AD102&$B$84 -> Previous Year performanceMTO | AD102: =Targets!$C$95 -> Previous Year performance | AE102: =INDEX(Targets!C$3:C$41,MATCH(Charts!$AC102,Targets!$A$3:$A$41,0)) -> 1184.170472 | AF102: =INDEX(Targets!D$3:D$41,MATCH(Charts!$AC102,Targets!$A$3:$A$41,0)) -> 866.4093103 | AG102: =INDEX(Targets!E$3:E$41,MATCH(Charts!$AC102,Targets!$A$3:$A$41,0)) -> 1348.015268 | AH102: =INDEX(Targets!F$3:F$41,MATCH(Charts!$AC102,Targets!$A$3:$A$41,0)) -> 1577.866636 | AI102: =INDEX(Targets!G$3:G$41,MATCH(Charts!$AC102,Targets!$A$3:$A$41,0)) -> 1198.439948 | AJ102: =INDEX(Targets!H$3:H$41,MATCH(Charts!$AC102,Targets!$A$3:$A$41,0)) -> 1303.157018 | AK102: =INDEX(Targets!I$3:I$41,MATCH(Charts!$AC102,Targets!$A$3:$A$41,0)) -> 1564.382102 | AL102: =INDEX(Targets!J$3:J$41,MATCH(Charts!$AC102,Targets!$A$3:$A$41,0)) -> 1415.182864 | AM102: =INDEX(Targets!K$3:K$41,MATCH(Charts!$AC102,Targets!$A$3:$A$41,0)) -> 1094.731388 | AN102: =INDEX(Targets!L$3:L$41,MATCH(Charts!$AC102,Targets!$A$3:$A$41,0)) -> 1991.548825 | AO102: =INDEX(Targets!M$3:M$41,MATCH(Charts!$AC102,Targets!$A$3:$A$41,0)) -> 1881.18302 | AP102: =INDEX(Targets!N$3:N$41,MATCH(Charts!$AC102,Targets!$A$3:$A$41,0)) -> 2267.969966
AD103: Cummulative
AD104: =AD100 -> Actual | AE104: 1046.534685 | AF104: =SUM($AE100:AF100) -> 2102.710514 | AG104: =SUM($AE100:AG100) -> 3465.502993 | AH104: =SUM($AE100:AH100) -> 4909.732945 | AI104: =SUM($AE100:AI100) -> 6048.51021 | AJ104: =SUM($AE100:AJ100) -> 7403.891633 | AK104: =SUM($AE100:AK100) -> 8892.945454 | AL104: =SUM($AE100:AL100) -> 9954.434658 | AM104: =SUM($AE100:AM100) -> 10822.71241 | AN104: =SUM($AE100:AN100) -> 12368.00745 | AO104: =SUM($AE100:AO100) -> 13108.03293 | AP104: =SUM($AE100:AP100) ->  | AQ104: =AQ97 -> Flag if any | AR104: =IF((1-AE104/AE105)>$B$11,AE104,#N/A) -> 1046.534685 | AS104: 2102.710514
AD105: 2019 Target | AE105: 1182.826207 | AF105: =SUM($AE101:AF101) -> 2365.652413 | AG105: =SUM($AE101:AG101) -> 3548.47862 | AH105: =SUM($AE101:AH101) -> 4785.069654 | AI105: =SUM($AE101:AI101) -> 6021.660689 | AJ105: =SUM($AE101:AJ101) -> 7258.251723 | AK105: =SUM($AE101:AK101) -> 8602.372413 | AL105: =SUM($AE101:AL101) -> 9946.493102 | AM105: =SUM($AE101:AM101) -> 11290.61379 | AN105: =SUM($AE101:AN101) -> 12903.55862 | AO105: =SUM($AE101:AO101) -> 14516.50345 | AP105: =SUM($AE101:AP101) -> 16129.44827 | AQ105: Historical Year Performance | AR105: =INDEX(Targets!Q$49:Q$88,MATCH(Charts!$AQ106,Targets!$A$49:$A$88,0)) -> 703 | AS105: =INDEX(Targets!R$49:R$88,MATCH(Charts!$AQ106,Targets!$A$49:$A$88,0)) -> 1492 | AT105: =INDEX(Targets!S$49:S$88,MATCH(Charts!$AQ106,Targets!$A$49:$A$88,0)) -> 2435 | AU105: =INDEX(Targets!T$49:T$88,MATCH(Charts!$AQ106,Targets!$A$49:$A$88,0)) -> 3606 | AV105: =INDEX(Targets!U$49:U$88,MATCH(Charts!$AQ106,Targets!$A$49:$A$88,0)) -> 4545 | AW105: =INDEX(Targets!V$49:V$88,MATCH(Charts!$AQ106,Targets!$A$49:$A$88,0)) -> 5573 | AX105: =INDEX(Targets!W$49:W$88,MATCH(Charts!$AQ106,Targets!$A$49:$A$88,0)) -> 6796 | AY105: =INDEX(Targets!X$49:X$88,MATCH(Charts!$AQ106,Targets!$A$49:$A$88,0)) -> 7977 | AZ105: =INDEX(Targets!Y$49:Y$88,MATCH(Charts!$AQ106,Targets!$A$49:$A$88,0)) -> 8889 | BA105: =INDEX(Targets!Z$49:Z$88,MATCH(Charts!$AQ106,Targets!$A$49:$A$88,0)) -> 10070 | BB105: =INDEX(Targets!AA$49:AA$88,MATCH(Charts!$AQ106,Targets!$A$49:$A$88,0)) -> 11443 | BC105: =INDEX(Targets!AB$49:AB$88,MATCH(Charts!$AQ106,Targets!$A$49:$A$88,0)) -> 13089
AD106: Previous Year performance | AE106: 1184.170472 | AF106: =SUM($AE102:AF102) -> 2050.579782 | AG106: =SUM($AE102:AG102) -> 3398.59505 | AH106: =SUM($AE102:AH102) -> 4976.461686 | AI106: =SUM($AE102:AI102) -> 6174.901634 | AJ106: =SUM($AE102:AJ102) -> 7478.058652 | AK106: =SUM($AE102:AK102) -> 9042.440754 | AL106: =SUM($AE102:AL102) -> 10457.62362 | AM106: =SUM($AE102:AM102) -> 11552.35501 | AN106: =SUM($AE102:AN102) -> 13543.90383 | AO106: =SUM($AE102:AO102) -> 15425.08685 | AP106: =SUM($AE102:AP102) -> 17693.05682 | AQ106: =$B$10&$B$84 -> FY1395MTO
AC107: =A85 -> Figure 12: | AD107: =FY1398_YTD_Actual!$A$1 -> Actual | AE107: =IF(INDEX(FY1398_YTD_Actual!B$3:B$19,MATCH($B$85,FY1398_YTD_Actual!$A$3:$A$19,0))=0,#N/A,INDEX(FY1398_YTD_Actual!B$3:B$19,MATCH($B$85,FY1398_YTD_Actual!$A$3:$A$19,0))) -> 181.331598 | AF107: =IF(INDEX(FY1398_YTD_Actual!C$3:C$19,MATCH($B$85,FY1398_YTD_Actual!$A$3:$A$19,0))=0,#N/A,INDEX(FY1398_YTD_Actual!C$3:C$19,MATCH($B$85,FY1398_YTD_Actual!$A$3:$A$19,0))) -> 166.095397 | AG107: =IF(INDEX(FY1398_YTD_Actual!D$3:D$19,MATCH($B$85,FY1398_YTD_Actual!$A$3:$A$19,0))=0,#N/A,INDEX(FY1398_YTD_Actual!D$3:D$19,MATCH($B$85,FY1398_YTD_Actual!$A$3:$A$19,0))) -> 420.232954 | AH107: =IF(INDEX(FY1398_YTD_Actual!E$3:E$19,MATCH($B$85,FY1398_YTD_Actual!$A$3:$A$19,0))=0,#N/A,INDEX(FY1398_YTD_Actual!E$3:E$19,MATCH($B$85,FY1398_YTD_Actual!$A$3:$A$19,0))) -> 404.80215 | AI107: =IF(INDEX(FY1398_YTD_Actual!F$3:F$19,MATCH($B$85,FY1398_YTD_Actual!$A$3:$A$19,0))=0,#N/A,INDEX(FY1398_YTD_Actual!F$3:F$19,MATCH($B$85,FY1398_YTD_Actual!$A$3:$A$19,0))) -> 226.774294 | AJ107: =IF(INDEX(FY1398_YTD_Actual!G$3:G$19,MATCH($B$85,FY1398_YTD_Actual!$A$3:$A$19,0))=0,#N/A,INDEX(FY1398_YTD_Actual!G$3:G$19,MATCH($B$85,FY1398_YTD_Actual!$A$3:$A$19,0))) -> 196.335392 | AK107: =IF(INDEX(FY1398_YTD_Actual!H$3:H$19,MATCH($B$85,FY1398_YTD_Actual!$A$3:$A$19,0))=0,#N/A,INDEX(FY1398_YTD_Actual!H$3:H$19,MATCH($B$85,FY1398_YTD_Actual!$A$3:$A$19,0))) -> 234.88208 | AL107: =IF(INDEX(FY1398_YTD_Actual!I$3:I$19,MATCH($B$85,FY1398_YTD_Actual!$A$3:$A$19,0))=0,#N/A,INDEX(FY1398_YTD_Actual!I$3:I$19,MATCH($B$85,FY1398_YTD_Actual!$A$3:$A$19,0))) -> 197.203236 | AM107: =IF(INDEX(FY1398_YTD_Actual!J$3:J$19,MATCH($B$85,FY1398_YTD_Actual!$A$3:$A$19,0))=0,#N/A,INDEX(FY1398_YTD_Actual!J$3:J$19,MATCH($B$85,FY1398_YTD_Actual!$A$3:$A$19,0))) -> 261.720703 | AN107: =IF(INDEX(FY1398_YTD_Actual!K$3:K$19,MATCH($B$85,FY1398_YTD_Actual!$A$3:$A$19,0))=0,#N/A,INDEX(FY1398_YTD_Actual!K$3:K$19,MATCH($B$85,FY1398_YTD_Actual!$A$3:$A$19,0))) -> 338.837406 | AO107: =IF(INDEX(FY1398_YTD_Actual!L$3:L$19,MATCH($B$85,FY1398_YTD_Actual!$A$3:$A$19,0))=0,#N/A,INDEX(FY1398_YTD_Actual!L$3:L$19,MATCH($B$85,FY1398_YTD_Actual!$A$3:$A$19,0))) -> 235 | AP107: =IF(INDEX(FY1398_YTD_Actual!M$3:M$19,MATCH($B$85,FY1398_YTD_Actual!$A$3:$A$19,0))=0,#N/A,INDEX(FY1398_YTD_Actual!M$3:M$19,MATCH($B$85,FY1398_YTD_Actual!$A$3:$A$19,0))) -> 
AC108: =AD108&$B$85 -> 2019 TargetSTO | AD108: =Targets!$C$94 -> 2019 Target | AE108: =INDEX(Targets!C$3:C$41,MATCH(Charts!$AC108,Targets!$A$3:$A$41,0)) -> 256.5613439 | AF108: =INDEX(Targets!D$3:D$41,MATCH(Charts!$AC108,Targets!$A$3:$A$41,0)) -> 256.5613439 | AG108: =INDEX(Targets!E$3:E$41,MATCH(Charts!$AC108,Targets!$A$3:$A$41,0)) -> 256.5613439 | AH108: =INDEX(Targets!F$3:F$41,MATCH(Charts!$AC108,Targets!$A$3:$A$41,0)) -> 268.2232232 | AI108: =INDEX(Targets!G$3:G$41,MATCH(Charts!$AC108,Targets!$A$3:$A$41,0)) -> 268.2232232 | AJ108: =INDEX(Targets!H$3:H$41,MATCH(Charts!$AC108,Targets!$A$3:$A$41,0)) -> 268.2232232 | AK108: =INDEX(Targets!I$3:I$41,MATCH(Charts!$AC108,Targets!$A$3:$A$41,0)) -> 291.5469817 | AL108: =INDEX(Targets!J$3:J$41,MATCH(Charts!$AC108,Targets!$A$3:$A$41,0)) -> 291.5469817 | AM108: =INDEX(Targets!K$3:K$41,MATCH(Charts!$AC108,Targets!$A$3:$A$41,0)) -> 291.5469817 | AN108: =INDEX(Targets!L$3:L$41,MATCH(Charts!$AC108,Targets!$A$3:$A$41,0)) -> 349.8563781 | AO108: =INDEX(Targets!M$3:M$41,MATCH(Charts!$AC108,Targets!$A$3:$A$41,0)) -> 349.8563781 | AP108: =INDEX(Targets!N$3:N$41,MATCH(Charts!$AC108,Targets!$A$3:$A$41,0)) -> 349.8563781
AC109: =AD109&$B$85 -> Previous Year performanceSTO | AD109: =Targets!$C$95 -> Previous Year performance | AE109: =INDEX(Targets!C$3:C$41,MATCH(Charts!$AC109,Targets!$A$3:$A$41,0)) -> 214.013912 | AF109: =INDEX(Targets!D$3:D$41,MATCH(Charts!$AC109,Targets!$A$3:$A$41,0)) -> 195.848448 | AG109: =INDEX(Targets!E$3:E$41,MATCH(Charts!$AC109,Targets!$A$3:$A$41,0)) -> 339.948553 | AH109: =INDEX(Targets!F$3:F$41,MATCH(Charts!$AC109,Targets!$A$3:$A$41,0)) -> 268.804639 | AI109: =INDEX(Targets!G$3:G$41,MATCH(Charts!$AC109,Targets!$A$3:$A$41,0)) -> 207.974096 | AJ109: =INDEX(Targets!H$3:H$41,MATCH(Charts!$AC109,Targets!$A$3:$A$41,0)) -> 182.802892 | AK109: =INDEX(Targets!I$3:I$41,MATCH(Charts!$AC109,Targets!$A$3:$A$41,0)) -> 313.872153 | AL109: =INDEX(Targets!J$3:J$41,MATCH(Charts!$AC109,Targets!$A$3:$A$41,0)) -> 227.622608 | AM109: =INDEX(Targets!K$3:K$41,MATCH(Charts!$AC109,Targets!$A$3:$A$41,0)) -> 216.16086 | AN109: =INDEX(Targets!L$3:L$41,MATCH(Charts!$AC109,Targets!$A$3:$A$41,0)) -> 354.97694 | AO109: =INDEX(Targets!M$3:M$41,MATCH(Charts!$AC109,Targets!$A$3:$A$41,0)) -> 400.293721 | AP109: =INDEX(Targets!N$3:N$41,MATCH(Charts!$AC109,Targets!$A$3:$A$41,0)) -> 0
AD110: Cummulative
AD111: =AD107 -> Actual | AE111: 181.331598 | AF111: =SUM($AE107:AF107) -> 347.426995 | AG111: =SUM($AE107:AG107) -> 767.659949 | AH111: =SUM($AE107:AH107) -> 1172.462099 | AI111: =SUM($AE107:AI107) -> 1399.236393 | AJ111: =SUM($AE107:AJ107) -> 1595.571785 | AK111: =SUM($AE107:AK107) -> 1830.453865 | AL111: =SUM($AE107:AL107) -> 2027.657101 | AM111: =SUM($AE107:AM107) -> 2289.377804 | AN111: =SUM($AE107:AN107) -> 2628.21521 | AO111: =SUM($AE107:AO107) -> 2863.21521 | AP111: =SUM($AE107:AP107) ->  | AQ111: =AQ104 -> Flag if any | AR111: =IF((1-AE111/AE112)>$B$11,AE111,#N/A) -> 181.331598 | AS111: 347.426995
AD112: 2019 Target | AE112: 256.5613439 | AF112: =SUM($AE108:AF108) -> 513.1226879 | AG112: =SUM($AE108:AG108) -> 769.6840318 | AH112: =SUM($AE108:AH108) -> 1037.907255 | AI112: =SUM($AE108:AI108) -> 1306.130478 | AJ112: =SUM($AE108:AJ108) -> 1574.353701 | AK112: =SUM($AE108:AK108) -> 1865.900683 | AL112: =SUM($AE108:AL108) -> 2157.447665 | AM112: =SUM($AE108:AM108) -> 2448.994647 | AN112: =SUM($AE108:AN108) -> 2798.851025 | AO112: =SUM($AE108:AO108) -> 3148.707403 | AP112: =SUM($AE108:AP108) -> 3498.563781 | AQ112: Historical Year Performance | AR112: =INDEX(Targets!Q$49:Q$88,MATCH(Charts!$AQ113,Targets!$A$49:$A$88,0)) -> 160 | AS112: =INDEX(Targets!R$49:R$88,MATCH(Charts!$AQ113,Targets!$A$49:$A$88,0)) -> 358 | AT112: =INDEX(Targets!S$49:S$88,MATCH(Charts!$AQ113,Targets!$A$49:$A$88,0)) -> 727 | AU112: =INDEX(Targets!T$49:T$88,MATCH(Charts!$AQ113,Targets!$A$49:$A$88,0)) -> 1018 | AV112: =INDEX(Targets!U$49:U$88,MATCH(Charts!$AQ113,Targets!$A$49:$A$88,0)) -> 1199 | AW112: =INDEX(Targets!V$49:V$88,MATCH(Charts!$AQ113,Targets!$A$49:$A$88,0)) -> 1398 | AX112: =INDEX(Targets!W$49:W$88,MATCH(Charts!$AQ113,Targets!$A$49:$A$88,0)) -> 1556 | AY112: =INDEX(Targets!X$49:X$88,MATCH(Charts!$AQ113,Targets!$A$49:$A$88,0)) -> 1766 | AZ112: =INDEX(Targets!Y$49:Y$88,MATCH(Charts!$AQ113,Targets!$A$49:$A$88,0)) -> 1952 | BA112: =INDEX(Targets!Z$49:Z$88,MATCH(Charts!$AQ113,Targets!$A$49:$A$88,0)) -> 2174 | BB112: =INDEX(Targets!AA$49:AA$88,MATCH(Charts!$AQ113,Targets!$A$49:$A$88,0)) -> 2443 | BC112: =INDEX(Targets!AB$49:AB$88,MATCH(Charts!$AQ113,Targets!$A$49:$A$88,0)) -> 2757
AD113: Previous Year performance | AE113: 214.013912 | AF113: =SUM($AE109:AF109) -> 409.86236 | AG113: =SUM($AE109:AG109) -> 749.810913 | AH113: =SUM($AE109:AH109) -> 1018.615552 | AI113: =SUM($AE109:AI109) -> 1226.589648 | AJ113: =SUM($AE109:AJ109) -> 1409.39254 | AK113: =SUM($AE109:AK109) -> 1723.264693 | AL113: =SUM($AE109:AL109) -> 1950.887301 | AM113: =SUM($AE109:AM109) -> 2167.048161 | AN113: =SUM($AE109:AN109) -> 2522.025101 | AO113: =SUM($AE109:AO109) -> 2922.318822 | AP113: =SUM($AE109:AP109) -> 2922.318822 | AQ113: =$B$10&$B$85 -> FY1395STO

Sheet Targets
C1: =B2 -> 2019 Target | R1: 22 | S1: 23 | T1: 25 | U1: 30
B2: =C94 -> 2019 Target | C2: M1 | D2: M2 | E2: M3 | F2: M4 | G2: M5 | H2: M6 | I2: M7 | J2: M8 | K2: M9 | L2: M10 | M2: M11 | N2: M12 | O2: Total | R2: Q1 | S2: Q2 | T2: Q3 | U2: Q4 | V2: Budget Target
A3: =$B$2&B3 -> 2019 TargetCustoms Department | B3: =B94 -> Customs Department | C3: =SUM(C4:C9) -> 5896.932688 | D3: =SUM(D4:D9) -> 5896.932688 | E3: 5896.932688 | F3: 6164.975083 | G3: 6164.975083 | H3: 6164.975083 | I3: 6701.059873 | J3: 6701.059873 | K3: 6701.059873 | L3: 8041.271847 | M3: 8041.271847 | N3: 8041.271847 | O3: =SUM(C3:N3) -> 80412.71847 | R3: =$V3*R$1/100 -> 17690.79806 | S3: =$V3*S$1/100 -> 18494.92525 | T3: 20103.17962 | U3: 24123.81554 | V3: 80412.71847
A4: =$B$2&B4 -> 2019 TargetHerat Customs Office | B4: =B95 -> Herat Customs Office | C4: =$R4/3 -> 1600.362429 | D4: =$R4/3 -> 1600.362429 | E4: 1600.362429 | F4: =$S4/3 -> 1673.106176 | G4: =$S4/3 -> 1673.106176 | H4: 1673.106176 | I4: =$T4/3 -> 1818.593669 | J4: =$T4/3 -> 1818.593669 | K4: 1818.593669 | L4: =$U4/3 -> 2182.312403 | M4: =$U4/3 -> 2182.312403 | N4: 2182.312403 | O4: 21823.12403 | R4: =$V4*R$1/100 -> 4801.087287 | S4: 5019.318527 | T4: 5455.781008 | U4: 6546.937209 | V4: 21823.12403
A5: 2019 TargetNangarhar Customs Office | B5: Nangarhar Customs Office | C5: =$R5/3 -> 1271.852509 | D5: 1271.852509 | E5: 1271.852509 | F5: =$S5/3 -> 1329.663986 | G5: 1329.663986 | H5: 1329.663986 | I5: =$T5/3 -> 1445.286942 | J5: 1445.286942 | K5: 1445.286942 | L5: =$U5/3 -> 1734.34433 | M5: 1734.34433 | N5: 1734.34433 | O5: 17343.4433 | R5: 3815.557526 | S5: 3988.991959 | T5: 4335.860825 | U5: 5203.03299 | V5: 17343.4433
A6: 2019 TargetBalkh Customs Office | B6: Balkh Customs Office | C6: 923.2762158 | D6: 923.2762158 | E6: 923.2762158 | F6: 965.2433165 | G6: 965.2433165 | H6: 965.2433165 | I6: 1049.177518 | J6: 1049.177518 | K6: 1049.177518 | L6: 1259.013022 | M6: 1259.013022 | N6: 1259.013022 | O6: 12590.13022 | R6: 2769.828647 | S6: 2895.72995 | T6: 3147.532554 | U6: 3777.039065 | V6: 12590.13022
A7: 2019 TargetKandahar Customs Office | B7: Kandahar Customs Office | C7: 546.301001 | D7: 546.301001 | E7: 546.301001 | F7: 571.1328647 | G7: 571.1328647 | H7: 571.1328647 | I7: 620.796592 | J7: 620.796592 | K7: 620.796592 | L7: 744.9559104 | M7: 744.9559104 | N7: 744.9559104 | O7: 7449.559104 | R7: 1638.903003 | S7: 1713.398594 | T7: 1862.389776 | U7: 2234.867731 | V7: 7449.559104
A8: 2019 TargetNimroz Customs Office | B8: Nimroz Customs Office | C8: 530.1782891 | D8: 530.1782891 | E8: 530.1782891 | F8: 554.2773022 | G8: 554.2773022 | H8: 554.2773022 | I8: 602.4753285 | J8: 602.4753285 | K8: 602.4753285 | L8: 722.9703942 | M8: 722.9703942 | N8: 722.9703942 | O8: 7229.703942 | R8: 1590.534867 | S8: 1662.831907 | T8: 1807.425986 | U8: 2168.911183 | V8: 7229.703942
A9: 2019 TargetOther Customs Offices | B9: Other Customs Offices | C9: 1024.962245 | D9: 1024.962245 | E9: 1024.962245 | F9: 1071.551437 | G9: 1071.551437 | H9: 1071.551437 | I9: 1164.729823 | J9: 1164.729823 | K9: 1164.729823 | L9: 1397.675788 | M9: 1397.675788 | N9: 1397.675788 | O9: 13976.75788 | R9: 3074.886734 | S9: 3214.654312 | T9: 3494.18947 | U9: 4193.027364 | V9: =V3-SUM(V4:V8) -> 13976.75788
A10: 2019 TargetAfghanistan Revenue Department | B10: Afghanistan Revenue Department | C10: =SUM(C11:C15) -> 7890.218963 | D10: =SUM(D11:D15) -> 7890.218963 | E10: 7890.218963 | F10: 8248.86528 | G10: 8248.86528 | H10: 8248.86528 | I10: 8966.157913 | J10: 8966.157913 | K10: 8966.157913 | L10: 10759.3895 | M10: 10759.3895 | N10: 10759.3895 | O10: 107593.895
A11: 2019 TargetMustofiats | B11: Mustofiats | C11: =$R11/3 -> 1425.747694 | D11: 1425.747694 | E11: 1425.747694 | F11: =$S11/3 -> 1490.554408 | G11: 1490.554408 | H11: 1490.554408 | I11: =$T11/3 -> 1620.167835 | J11: 1620.167835 | K11: 1620.167835 | L11: =$U11/3 -> 1944.201402 | M11: 1944.201402 | N11: 1944.201402 | O11: 19442.01402 | R11: 4277.243083 | S11: 4471.663224 | T11: 4860.503504 | U11: 5832.604205 | V11: 19442.01402
A12: 2019 TargetLTO | B12: LTO | C12: 2266.499741 | D12: 2266.499741 | E12: 2266.499741 | F12: 2369.522456 | G12: 2369.522456 | H12: 2369.522456 | I12: 2575.567887 | J12: 2575.567887 | K12: 2575.567887 | L12: 3090.681465 | M12: 3090.681465 | N12: 3090.681465 | O12: 30906.81465 | R12: 6799.499223 | S12: 7108.567369 | T12: 7726.703662 | U12: 9272.044394 | V12: 30906.81465
A13: 2019 TargetMTO | B13: MTO | C13: 1182.826207 | D13: 1182.826207 | E13: 1182.826207 | F13: 1236.591034 | G13: 1236.591034 | H13: 1236.591034 | I13: 1344.120689 | J13: 1344.120689 | K13: 1344.120689 | L13: 1612.944827 | M13: 1612.944827 | N13: 1612.944827 | O13: 16129.44827 | R13: 3548.47862 | S13: 3709.773103 | T13: 4032.362068 | U13: 4838.834482 | V13: 16129.44827
A14: 2019 TargetSTO | B14: STO | C14: 256.5613439 | D14: 256.5613439 | E14: 256.5613439 | F14: 268.2232232 | G14: 268.2232232 | H14: 268.2232232 | I14: 291.5469817 | J14: 291.5469817 | K14: 291.5469817 | L14: 349.8563781 | M14: 349.8563781 | N14: 349.8563781 | O14: 3498.563781 | R14: 769.6840318 | S14: 804.6696696 | T14: 874.6409452 | U14: 1049.569134 | V14: 3498.563781
A15: 2019 TargetMinistries | B15: =B106 -> Ministries | C15: 2758.583977 | D15: 2758.583977 | E15: 2758.583977 | F15: 2883.974158 | G15: 2883.974158 | H15: 2883.974158 | I15: 3134.75452 | J15: 3134.75452 | K15: 3134.75452 | L15: 3761.705424 | M15: 3761.705424 | N15: 3761.705424 | O15: 37617.05424 | R15: 8275.751932 | S15: 8651.922474 | T15: 9404.263559 | U15: 11285.11627 | V15: 37617.05424
A16: 2019 TargetTotal Revenues | B16: Total Revenues | C16: =C3+C10 -> 13787.15165 | D16: =D3+D10 -> 13787.15165 | E16: 13787.15165 | F16: 14413.84036 | G16: 14413.84036 | H16: 14413.84036 | I16: 15667.21779 | J16: 15667.21779 | K16: 15667.21779 | L16: 18800.66134 | M16: 18800.66134 | N16: 18800.66134 | O16: 188006.6134
A17: 2019 TargetTax Revenues | B17: Tax Revenues | C17: 6071.980265 | D17: 6071.980265 | E17: 6071.980265 | F17: 6347.979368 | G17: 6347.979368 | H17: 6347.979368 | I17: 6899.977574 | J17: 6899.977574 | K17: 6899.977574 | L17: 8279.973088 | M17: 8279.973088 | N17: 8279.973088 | O17: =SUM(C17:N17) -> 82799.73088 | R17: 18215.94079 | S17: 19043.9381 | T17: 20699.93272 | U17: 24839.91927 | V17: =$O$16*O39/$O$42 -> 82799.73088
A18: 2019 TargetCustoms Revenues | B18: Customs Revenues | C18: 2559.586264 | D18: 2559.586264 | E18: 2559.586264 | F18: 2675.931095 | G18: 2675.931095 | H18: 2675.931095 | I18: 2908.620755 | J18: 2908.620755 | K18: 2908.620755 | L18: 3490.344906 | M18: 3490.344906 | N18: 3490.344906 | O18: 34903.44906 | R18: 7678.758793 | S18: 8027.793284 | T18: 8725.862265 | U18: 10471.03472 | V18: =$O$16*O40/$O$42 -> 34903.44906
A19: 2019 TargetNon-tax Revenues | B19: =B110 -> Non-tax Revenues | C19: 5155.585122 | D19: 5155.585122 | E19: 5155.585122 | F19: 5389.9299 | G19: 5389.9299 | H19: 5389.9299 | I19: 5858.619457 | J19: 5858.619457 | K19: 5858.619457 | L19: 7030.343348 | M19: 7030.343348 | N19: 7030.343348 | O19: 70303.43348 | R19: 15466.75537 | S19: 16169.7897 | T19: 17575.85837 | U19: 21091.03004 | V19: 70303.43348
B20: Total Revenues | C20: =SUM(C17:C19) -> 13787.15165 | D20: =SUM(D17:D19) -> 13787.15165 | E20: 13787.15165 | F20: 14413.84036 | G20: 14413.84036 | H20: 14413.84036 | I20: 15667.21779 | J20: 15667.21779 | K20: 15667.21779 | L20: 18800.66134 | M20: 18800.66134 | N20: 18800.66134 | O20: =SUM(C20:N20) -> 188006.6134
B22: Check | C22: =C16-C20 -> 0 | D22: =D16-D20 -> 0 | E22: 0 | F22: 0 | G22: 0 | H22: 0 | I22: 0 | J22: 0 | K22: 0 | L22: 0 | M22: 0 | N22: 0 | O22: 0
C23: Previous Year performance (FY1397)
B24: =C95 -> Previous Year performance | C24: M1 | D24: M2 | E24: M3 | F24: M4 | G24: M5 | H24: M6 | I24: M7 | J24: M8 | K24: M9 | L24: M10 | M24: M11 | N24: M12 | O24: Total
A25: =$B$24&B25 -> Previous Year performanceCustoms Department | B25: =B3 -> Customs Department | C25: =SUM(C26:C31) -> 6140.413238 | D25: =SUM(D26:D31) -> 5913.22327 | E25: =SUM(E26:E31) -> 6053.092942 | F25: =SUM(F26:F31) -> 5286.745736 | G25: =SUM(G26:G31) -> 6298.255079 | H25: =SUM(H26:H31) -> 5888.72474 | I25: =SUM(I26:I31) -> 4975.888846 | J25: =SUM(J26:J31) -> 6347.029213 | K25: =SUM(K26:K31) -> 6641.710773 | L25: =SUM(L26:L31) -> 6059.101046 | M25: =SUM(M26:M31) -> 7031.291373 | N25: =SUM(N26:N31) -> 7309.40952 | O25: =SUM(C25:N25) -> 73944.88578
A26: Previous Year performanceHerat Customs Office | B26: Herat Customs Office | C26: 1633.915314 | D26: 1774.08312 | E26: 1355.560981 | F26: 1118.033342 | G26: 1716.169371 | H26: 1760.612705 | I26: 2030.082532 | J26: 2000.715219 | K26: 1558.996058 | L26: 1556.687852 | M26: 2175.235004 | N26: 2105.208059 | O26: 20785.29956
A27: Previous Year performanceNangarhar Customs Office | B27: Nangarhar Customs Office | C27: 1082.80051 | D27: 1136.998269 | E27: 1220.108724 | F27: 1288.295966 | G27: 1559.555858 | H27: 1506.529001 | I27: 1462.75823 | J27: 1346.366633 | K27: 1242.180881 | L27: 1617.166052 | M27: 1344.05514 | N27: 1638.66228 | O27: 16445.47754
A28: Previous Year performanceBalkh Customs Office | B28: Balkh Customs Office | C28: 1092.813065 | D28: 857.166936 | E28: 1310.432634 | F28: 1015.273751 | G28: 919.09435 | H28: 824.273193 | I28: 713.06732 | J28: 1131.883166 | K28: 966.191288 | L28: 939.247103 | M28: 1156.912519 | N28: 1041.631525 | O28: 11967.98685
A29: Previous Year performanceKandahar Customs Office | B29: Kandahar Customs Office | C29: 588.899082 | D29: 495.208596 | E29: 553.028891 | F29: 576.223402 | G29: 594.85601 | H29: 453.905417 | I29: -746.644278 | J29: 446.099946 | K29: 1642.61147 | L29: 630.525036 | M29: 866.703117 | N29: 967.026556 | O29: 7068.443245
A30: Previous Year performanceNimroz Customs Office | B30: Nimroz Customs Office | C30: 788.976806 | D30: 699.240386 | E30: 504.671532 | F30: 382.174175 | G30: 623.322963 | H30: 656.666207 | I30: 664.798065 | J30: 563.897327 | K30: 387.673545 | L30: 445.899062 | M30: 515.997566 | N30: 0 | O30: 6233.317634
A31: Previous Year performanceOther Customs Offices | B31: Other Customs Offices | C31: 953.008461 | D31: 950.525963 | E31: 1109.29018 | F31: 906.7451 | G31: 885.256527 | H31: 686.738217 | I31: 851.826977 | J31: 858.066922 | K31: 844.057531 | L31: 869.575941 | M31: 972.388027 | N31: 1556.8811 | O31: 11444.36095
A32: Previous Year performanceAfghanistan Revenue Department | B32: Afghanistan Revenue Department | C32: =SUM(C33:C37) -> 7208.353701 | D32: =SUM(D33:D37) -> 5086.01996 | E32: =SUM(E33:E37) -> 7597.5008 | F32: =SUM(F33:F37) -> 9399.923626 | G32: =SUM(G33:G37) -> 6508.91166 | H32: =SUM(H33:H37) -> 8893.446019 | I32: =SUM(I33:I37) -> 10692.4962 | J32: =SUM(J33:J37) -> 6692.152503 | K32: =SUM(K33:K37) -> 10776.43003 | L32: =SUM(L33:L37) -> 10568.07946 | M32: =SUM(M33:M37) -> 16443.28802 | N32: =SUM(N33:N37) -> 15750.28594 | O32: 115616.8879
A33: Previous Year performanceMustofiats | B33: Mustofiats | C33: 308.509622 | D33: 286.242671 | E33: 539.159761 | F33: 431.432169 | G33: 398.802867 | H33: 388.04638 | I33: 1558.992485 | J33: 570.3491106 | K33: -846.148442 | L33: 559.218669 | M33: 635.138778 | N33: 897.77905 | O33: 5727.523121
A34: Previous Year performanceLTO | B34: LTO | C34: 2900.85481 | D34: 790.300629 | E34: 1595.75158 | F34: 2773.51705 | G34: 874.0127404 | H34: 2934.519556 | I34: 2717.592181 | J34: 904.2728918 | K34: 4545.277415 | L34: 4227.548233 | M34: 3892.012986 | N34: 3062.792088 | O34: 31218.45216
A35: Previous Year performanceMTO | B35: MTO | C35: 1184.170472 | D35: 866.4093103 | E35: 1348.015268 | F35: 1577.866636 | G35: 1198.439948 | H35: 1303.157018 | I35: 1564.382102 | J35: 1415.182864 | K35: 1094.731388 | L35: 1991.548825 | M35: 1881.18302 | N35: 2267.969966 | O35: 17693.05682
A36: Previous Year performanceSTO | B36: STO | C36: 214.013912 | D36: 195.848448 | E36: 339.948553 | F36: 268.804639 | G36: 207.974096 | H36: 182.802892 | I36: 313.872153 | J36: 227.622608 | K36: 216.16086 | L36: 354.97694 | M36: 400.293721 | N36: 0 | O36: 2922.318822
A37: Previous Year performanceMinistries | B37: Ministries | C37: 2600.804885 | D37: 2947.218902 | E37: 3774.625638 | F37: 4348.303132 | G37: 3829.682008 | H37: 4084.920173 | I37: 4537.657278 | J37: 3574.725029 | K37: 5766.408814 | L37: 3434.786795 | M37: 9634.659512 | N37: 9521.744839 | O37: 58055.53701
A38: Previous Year performanceTotal Revenues | B38: Total Revenues | C38: =C25+C32 -> 13348.76694 | D38: =D25+D32 -> 10999.24323 | E38: 13650.59374 | F38: 14686.66936 | G38: 12807.16674 | H38: 14782.17076 | I38: 15668.38505 | J38: 13039.18172 | K38: 17418.14081 | L38: 16627.18051 | M38: 23474.57939 | N38: 23059.69546 | O38: 189561.7737
A39: Previous Year performanceTax Revenues | B39: Tax Revenues | C39: 7276.370557 | D39: 4537.255813 | E39: 6193.796967 | F39: 6975.289812 | G39: 5079.682374 | H39: 7126.997264 | I39: 7308.975625 | J39: 5616.289003 | K39: 6442.2178 | L39: 8720.222202 | M39: 9552.850289 | N39: 8654.68915 | O39: =SUM(C39:N39) -> 83484.63686
A40: Previous Year performanceCustoms Revenues | B40: Customs Revenues | C40: 2767.147681 | D40: 2745.11485 | E40: 2852.411152 | F40: 2650.673459 | G40: 3065.464372 | H40: 2690.8434 | I40: 3127.610377 | J40: 3097.243378 | K40: 2529.925416 | L40: 2881.704204 | M40: 3301.100888 | N40: 3482.925564 | O40: 35192.16474
A41: Previous Year performanceNon-tax Revenues | B41: Non-tax Revenues | C41: 3305.248701 | D41: 3716.872568 | E41: 4604.385623 | F41: 5060.706091 | G41: 4662.019993 | H41: 4964.330095 | I41: 5231.799043 | J41: 4325.649334 | K41: 8445.997592 | L41: 5025.254103 | M41: 10620.62821 | N41: 10922.08075 | O41: 70884.9721
B42: Total Revenues | C42: =SUM(C39:C41) -> 13348.76694 | D42: =SUM(D39:D41) -> 10999.24323 | E42: =SUM(E39:E41) -> 13650.59374 | F42: =SUM(F39:F41) -> 14686.66936 | G42: =SUM(G39:G41) -> 12807.16674 | H42: =SUM(H39:H41) -> 14782.17076 | I42: =SUM(I39:I41) -> 15668.38505 | J42: =SUM(J39:J41) -> 13039.18172 | K42: =SUM(K39:K41) -> 17418.14081 | L42: =SUM(L39:L41) -> 16627.18051 | M42: =SUM(M39:M41) -> 23474.57939 | N42: =SUM(N39:N41) -> 23059.69546 | O42: 189561.7737
B44: Check | C44: =C38-C42 -> 0 | D44: =D38-D42 -> 0 | E44: 0 | F44: 0 | G44: 0 | H44: 0 | I44: 0 | J44: 0 | K44: 0 | L44: 0 | M44: 0 | N44: 0
G47: FY 1396 Performance
B48: FY1396 | C48: M1 | D48: M2 | E48: M3 | F48: M4 | G48: M5 | H48: M6 | I48: M7 | J48: M8 | K48: M9 | L48: M10 | M48: M11 | N48: M12 | O48: Total
A49: =$B$48&B49 -> FY1396Customs Department | B49: =B25 -> Customs Department | C49: =SUM(C50:C55) -> 6085 | D49: =SUM(D50:D55) -> 4941 | E49: 4181 | F49: 5642 | G49: 7377 | H49: 7446 | I49: 5800 | J49: 6807 | K49: 5766 | L49: 6087 | M49: 5945 | N49: 7514 | O49: =SUM(C49:N49) -> 73591 | Q49: =C49 -> 6085 | R49: =SUM($C49:D49) -> 11026 | S49: =SUM($C49:E49) -> 15207 | T49: =SUM($C49:F49) -> 20849 | U49: =SUM($C49:G49) -> 28226 | V49: =SUM($C49:H49) -> 35672 | W49: =SUM($C49:I49) -> 41472 | X49: =SUM($C49:J49) -> 48279 | Y49: =SUM($C49:K49) -> 54045 | Z49: =SUM($C49:L49) -> 60132 | AA49: =SUM($C49:M49) -> 66077 | AB49: =SUM($C49:N49) -> 73591
A50: =$B$48&B50 -> FY1396Herat Customs Office | B50: =B26 -> Herat Customs Office | C50: 1599 | D50: 1005 | E50: 666 | F50: 1249 | G50: 1972 | H50: 2264 | I50: 1850 | J50: 1858 | K50: 2358 | L50: 1733 | M50: 1821 | N50: 1782 | O50: 20157 | Q50: =C50 -> 1599 | R50: =SUM($C50:D50) -> 2604 | S50: =SUM($C50:E50) -> 3270 | T50: =SUM($C50:F50) -> 4519 | U50: =SUM($C50:G50) -> 6491 | V50: =SUM($C50:H50) -> 8755 | W50: =SUM($C50:I50) -> 10605 | X50: =SUM($C50:J50) -> 12463 | Y50: =SUM($C50:K50) -> 14821 | Z50: =SUM($C50:L50) -> 16554 | AA50: =SUM($C50:M50) -> 18375 | AB50: =SUM($C50:N50) -> 20157
A51: FY1396Nangarhar Customs Office | B51: =B27 -> Nangarhar Customs Office | C51: 1294 | D51: 1205 | E51: 48 | F51: 1419 | G51: 1332 | H51: 1282 | I51: 972 | J51: 1229 | K51: 1244 | L51: 1239 | M51: 1314 | N51: 1371 | O51: 13949 | Q51: 1294 | R51: =SUM($C51:D51) -> 2499 | S51: =SUM($C51:E51) -> 2547 | T51: =SUM($C51:F51) -> 3966 | U51: =SUM($C51:G51) -> 5298 | V51: =SUM($C51:H51) -> 6580 | W51: =SUM($C51:I51) -> 7552 | X51: =SUM($C51:J51) -> 8781 | Y51: =SUM($C51:K51) -> 10025 | Z51: =SUM($C51:L51) -> 11264 | AA51: =SUM($C51:M51) -> 12578 | AB51: =SUM($C51:N51) -> 13949
A52: FY1396Balkh Customs Office | B52: Balkh Customs Office | C52: 1095 | D52: 914 | E52: 830 | F52: 979 | G52: 995 | H52: 906 | I52: 1015 | J52: 1154 | K52: 846 | L52: 930 | M52: 734 | N52: 1548 | O52: 11946 | Q52: 1095 | R52: =SUM($C52:D52) -> 2009 | S52: =SUM($C52:E52) -> 2839 | T52: =SUM($C52:F52) -> 3818 | U52: =SUM($C52:G52) -> 4813 | V52: =SUM($C52:H52) -> 5719 | W52: =SUM($C52:I52) -> 6734 | X52: =SUM($C52:J52) -> 7888 | Y52: =SUM($C52:K52) -> 8734 | Z52: =SUM($C52:L52) -> 9664 | AA52: =SUM($C52:M52) -> 10398 | AB52: =SUM($C52:N52) -> 11946
A53: FY1396Kandahar Customs Office | B53: Kandahar Customs Office | C53: 631 | D53: 469 | E53: 102 | F53: 558 | G53: 473 | H53: 509 | I53: 427 | J53: 492 | K53: 358 | L53: 528 | M53: 519 | N53: 689 | O53: 5755 | Q53: 631 | R53: =SUM($C53:D53) -> 1100 | S53: =SUM($C53:E53) -> 1202 | T53: =SUM($C53:F53) -> 1760 | U53: =SUM($C53:G53) -> 2233 | V53: =SUM($C53:H53) -> 2742 | W53: =SUM($C53:I53) -> 3169 | X53: =SUM($C53:J53) -> 3661 | Y53: =SUM($C53:K53) -> 4019 | Z53: =SUM($C53:L53) -> 4547 | AA53: =SUM($C53:M53) -> 5066 | AB53: =SUM($C53:N53) -> 5755
A54: FY1396Nimroz Customs Office | B54: Nimroz Customs Office | C54: 693 | D54: 705 | E54: 909 | F54: 575 | G54: 1460 | H54: 1340 | I54: 755 | J54: 825 | K54: 701 | L54: 673 | M54: 638 | N54: 576 | O54: 9850 | Q54: 693 | R54: =SUM($C54:D54) -> 1398 | S54: =SUM($C54:E54) -> 2307 | T54: =SUM($C54:F54) -> 2882 | U54: =SUM($C54:G54) -> 4342 | V54: =SUM($C54:H54) -> 5682 | W54: =SUM($C54:I54) -> 6437 | X54: =SUM($C54:J54) -> 7262 | Y54: =SUM($C54:K54) -> 7963 | Z54: =SUM($C54:L54) -> 8636 | AA54: =SUM($C54:M54) -> 9274 | AB54: =SUM($C54:N54) -> 9850
A55: FY1396Other Customs Offices | B55: Other Customs Offices | C55: 773 | D55: 643 | E55: 1626 | F55: 862 | G55: 1145 | H55: 1145 | I55: 781 | J55: 1249 | K55: 259 | L55: 984 | M55: 919 | N55: 1548 | O55: 11934 | Q55: 773 | R55: =SUM($C55:D55) -> 1416 | S55: =SUM($C55:E55) -> 3042 | T55: =SUM($C55:F55) -> 3904 | U55: =SUM($C55:G55) -> 5049 | V55: =SUM($C55:H55) -> 6194 | W55: =SUM($C55:I55) -> 6975 | X55: =SUM($C55:J55) -> 8224 | Y55: =SUM($C55:K55) -> 8483 | Z55: =SUM($C55:L55) -> 9467 | AA55: =SUM($C55:M55) -> 10386 | AB55: =SUM($C55:N55) -> 11934
A56: FY1396Afghanistan Revenue Department | B56: Afghanistan Revenue Department | C56: =SUM(C57:C61) -> 6078 | D56: =SUM(D57:D61) -> 4715 | E56: 7871 | F56: 8372 | G56: 7820 | H56: 6004 | I56: 8084 | J56: 7193 | K56: 5812 | L56: 8930 | M56: 8359 | N56: 16257 | O56: 95495 | Q56: 6078 | R56: =SUM($C56:D56) -> 10793 | S56: =SUM($C56:E56) -> 18664 | T56: =SUM($C56:F56) -> 27036 | U56: =SUM($C56:G56) -> 34856 | V56: =SUM($C56:H56) -> 40860 | W56: =SUM($C56:I56) -> 48944 | X56: =SUM($C56:J56) -> 56137 | Y56: =SUM($C56:K56) -> 61949 | Z56: =SUM($C56:L56) -> 70879 | AA56: =SUM($C56:M56) -> 79238 | AB56: =SUM($C56:N56) -> 95495
A57: FY1396Mustofiats | B57: Mustofiats | C57: 995 | D57: 854 | E57: 2220 | F57: 1576 | G57: 1517 | H57: 1536 | I57: 1366 | J57: 1408 | K57: 1152 | L57: 1570 | M57: 2468 | N57: 1303 | O57: 17965 | Q57: 995 | R57: =SUM($C57:D57) -> 1849 | S57: =SUM($C57:E57) -> 4069 | T57: =SUM($C57:F57) -> 5645 | U57: =SUM($C57:G57) -> 7162 | V57: =SUM($C57:H57) -> 8698 | W57: =SUM($C57:I57) -> 10064 | X57: =SUM($C57:J57) -> 11472 | Y57: =SUM($C57:K57) -> 12624 | Z57: =SUM($C57:L57) -> 14194 | AA57: =SUM($C57:M57) -> 16662 | AB57: =SUM($C57:N57) -> 17965
A58: FY1396LTO | B58: LTO | C58: 2418 | D58: 655 | E58: 1788 | F58: 2959 | G58: 1676 | H58: 1053 | I58: 3378 | J58: 1374 | K58: 1106 | L58: 2810 | M58: 1310 | N58: 1138 | O58: 21665 | Q58: 2418 | R58: =SUM($C58:D58) -> 3073 | S58: =SUM($C58:E58) -> 4861 | T58: =SUM($C58:F58) -> 7820 | U58: =SUM($C58:G58) -> 9496 | V58: =SUM($C58:H58) -> 10549 | W58: =SUM($C58:I58) -> 13927 | X58: =SUM($C58:J58) -> 15301 | Y58: =SUM($C58:K58) -> 16407 | Z58: =SUM($C58:L58) -> 19217 | AA58: =SUM($C58:M58) -> 20527 | AB58: =SUM($C58:N58) -> 21665
A59: FY1396MTO | B59: MTO | C59: 890 | D59: 860 | E59: 1279 | F59: 1273 | G59: 1206 | H59: 1346 | I59: 1327 | J59: 1146 | K59: 925 | L59: 1363 | M59: 1135 | N59: 1718 | O59: 14468 | Q59: 890 | R59: =SUM($C59:D59) -> 1750 | S59: =SUM($C59:E59) -> 3029 | T59: =SUM($C59:F59) -> 4302 | U59: =SUM($C59:G59) -> 5508 | V59: =SUM($C59:H59) -> 6854 | W59: =SUM($C59:I59) -> 8181 | X59: =SUM($C59:J59) -> 9327 | Y59: =SUM($C59:K59) -> 10252 | Z59: =SUM($C59:L59) -> 11615 | AA59: =SUM($C59:M59) -> 12750 | AB59: =SUM($C59:N59) -> 14468
A60: FY1396STO | B60: STO | C60: 204 | D60: 181 | E60: 454 | F60: 298 | G60: 266 | H60: 220 | I60: 166 | J60: 368 | K60: 171 | L60: 246 | M60: 321 | N60: 433 | O60: 3328 | Q60: 204 | R60: =SUM($C60:D60) -> 385 | S60: =SUM($C60:E60) -> 839 | T60: =SUM($C60:F60) -> 1137 | U60: =SUM($C60:G60) -> 1403 | V60: =SUM($C60:H60) -> 1623 | W60: =SUM($C60:I60) -> 1789 | X60: =SUM($C60:J60) -> 2157 | Y60: =SUM($C60:K60) -> 2328 | Z60: =SUM($C60:L60) -> 2574 | AA60: =SUM($C60:M60) -> 2895 | AB60: =SUM($C60:N60) -> 3328
A61: FY1396Ministries | B61: Ministries | C61: 1571 | D61: 2165 | E61: 2130 | F61: 2266 | G61: 3155 | H61: 1849 | I61: 1847 | J61: 2897 | K61: 2458 | L61: 2941 | M61: 3125 | N61: 11665 | O61: 38069 | Q61: 1571 | R61: =SUM($C61:D61) -> 3736 | S61: =SUM($C61:E61) -> 5866 | T61: =SUM($C61:F61) -> 8132 | U61: =SUM($C61:G61) -> 11287 | V61: =SUM($C61:H61) -> 13136 | W61: =SUM($C61:I61) -> 14983 | X61: =SUM($C61:J61) -> 17880 | Y61: =SUM($C61:K61) -> 20338 | Z61: =SUM($C61:L61) -> 23279 | AA61: =SUM($C61:M61) -> 26404 | AB61: =SUM($C61:N61) -> 38069
A62: FY1396Total Revenues | B62: Total Revenues | C62: =C49+C56 -> 12163 | D62: =D49+D56 -> 9656 | E62: 12052 | F62: 14014 | G62: 15197 | H62: 13450 | I62: 13884 | J62: 14000 | K62: 11578 | L62: 15017 | M62: 14304 | N62: 23771 | O62: 169086 | Q62: 12163 | R62: =SUM($C62:D62) -> 21819 | S62: =SUM($C62:E62) -> 33871 | T62: =SUM($C62:F62) -> 47885 | U62: =SUM($C62:G62) -> 63082 | V62: =SUM($C62:H62) -> 76532 | W62: =SUM($C62:I62) -> 90416 | X62: =SUM($C62:J62) -> 104416 | Y62: =SUM($C62:K62) -> 115994 | Z62: =SUM($C62:L62) -> 131011 | AA62: =SUM($C62:M62) -> 145315 | AB62: =SUM($C62:N62) -> 169086
A63: FY1396Tax Revenues | B63: Tax Revenues | C63: 6504 | D63: 4027 | E63: 5911 | F63: 7348 | G63: 6654 | H63: 6196 | I63: 7714 | J63: 6178 | K63: 4822 | L63: 7485 | M63: 6230 | N63: 6547 | O63: =SUM(C63:N63) -> 75616 | Q63: 6504 | R63: =SUM($C63:D63) -> 10531 | S63: =SUM($C63:E63) -> 16442 | T63: =SUM($C63:F63) -> 23790 | U63: =SUM($C63:G63) -> 30444 | V63: =SUM($C63:H63) -> 36640 | W63: =SUM($C63:I63) -> 44354 | X63: =SUM($C63:J63) -> 50532 | Y63: =SUM($C63:K63) -> 55354 | Z63: =SUM($C63:L63) -> 62839 | AA63: =SUM($C63:M63) -> 69069 | AB63: =SUM($C63:N63) -> 75616
A64: FY1396Customs Revenues | B64: Customs Revenues | C64: 2934 | D64: 2431 | E64: 2066 | F64: 2768 | G64: 3791 | H64: 3661 | I64: 2869 | J64: 3332 | K64: 2779 | L64: 2898 | M64: 3014 | N64: 3383 | O64: 35926 | Q64: 2934 | R64: =SUM($C64:D64) -> 5365 | S64: =SUM($C64:E64) -> 7431 | T64: =SUM($C64:F64) -> 10199 | U64: =SUM($C64:G64) -> 13990 | V64: =SUM($C64:H64) -> 17651 | W64: =SUM($C64:I64) -> 20520 | X64: =SUM($C64:J64) -> 23852 | Y64: =SUM($C64:K64) -> 26631 | Z64: =SUM($C64:L64) -> 29529 | AA64: =SUM($C64:M64) -> 32543 | AB64: =SUM($C64:N64) -> 35926
A65: FY1396Non-tax Revenues | B65: Non-tax Revenues | C65: 2725 | D65: 3198 | E65: 4075 | F65: 3898 | G65: 4752 | H65: 3593 | I65: 3301 | J65: 4490 | K65: 3977 | L65: 4634 | M65: 5060 | N65: 13841 | O65: 57544 | Q65: 2725 | R65: =SUM($C65:D65) -> 5923 | S65: =SUM($C65:E65) -> 9998 | T65: =SUM($C65:F65) -> 13896 | U65: =SUM($C65:G65) -> 18648 | V65: =SUM($C65:H65) -> 22241 | W65: =SUM($C65:I65) -> 25542 | X65: =SUM($C65:J65) -> 30032 | Y65: =SUM($C65:K65) -> 34009 | Z65: =SUM($C65:L65) -> 38643 | AA65: =SUM($C65:M65) -> 43703 | AB65: =SUM($C65:N65) -> 57544
B66: Total Revenues | C66: =SUM(C63:C65) -> 12163 | D66: =SUM(D63:D65) -> 9656 | E66: 12052 | F66: 14014 | G66: 15197 | H66: 13450 | I66: 13884 | J66: 14000 | K66: 11578 | L66: 15017 | M66: 14304 | N66: 23771 | O66: 169086
B68: Check | C68: =C62-C66 -> 0 | D68: =D62-D66 -> 0 | E68: 0 | F68: 0 | G68: 0 | H68: 0 | I68: 0 | J68: 0 | K68: 0 | L68: 0 | M68: 0 | N68: 0
G70: FY 1395 Performance
B71: FY1395 | C71: M1 | D71: M2 | E71: M3 | F71: M4 | G71: M5 | H71: M6 | I71: M7 | J71: M8 | K71: M9 | L71: M10 | M71: M11 | N71: M12 | O71: Total
A72: =$B$71&B72 -> FY1395Customs Department | B72: =B49 -> Customs Department | C72: =SUM(C73:C78) -> 5263 | D72: =SUM(D73:D78) -> 5444 | E72: 5691 | F72: 5117 | G72: 5431 | H72: 5235 | I72: 4533 | J72: 5300 | K72: 4715 | L72: 5348 | M72: 6066 | N72: 7170 | O72: =SUM(C72:N72) -> 65313 | Q72: =C72 -> 5263 | R72: =SUM($C72:D72) -> 10707 | S72: =SUM($C72:E72) -> 16398 | T72: =SUM($C72:F72) -> 21515 | U72: =SUM($C72:G72) -> 26946 | V72: =SUM($C72:H72) -> 32181 | W72: =SUM($C72:I72) -> 36714 | X72: =SUM($C72:J72) -> 42014 | Y72: =SUM($C72:K72) -> 46729 | Z72: =SUM($C72:L72) -> 52077 | AA72: =SUM($C72:M72) -> 58143 | AB72: =SUM($C72:N72) -> 65313
A73: =$B$71&B73 -> FY1395Herat Customs Office | B73: =B50 -> Herat Customs Office | C73: 1426 | D73: 1464 | E73: 1497 | F73: 1143 | G73: 1270 | H73: 1325 | I73: 1251 | J73: 1422 | K73: 1239 | L73: 1381 | M73: 1910 | N73: 1775 | O73: 17103 | Q73: =C73 -> 1426 | R73: =SUM($C73:D73) -> 2890 | S73: =SUM($C73:E73) -> 4387 | T73: =SUM($C73:F73) -> 5530 | U73: =SUM($C73:G73) -> 6800 | V73: =SUM($C73:H73) -> 8125 | W73: =SUM($C73:I73) -> 9376 | X73: =SUM($C73:J73) -> 10798 | Y73: =SUM($C73:K73) -> 12037 | Z73: =SUM($C73:L73) -> 13418 | AA73: =SUM($C73:M73) -> 15328 | AB73: =SUM($C73:N73) -> 17103
A74: FY1395Nangarhar Customs Office | B74: =B51 -> Nangarhar Customs Office | C74: 913 | D74: 1166 | E74: 1134 | F74: 851 | G74: 881 | H74: 965 | I74: 991 | J74: 1101 | K74: 1051 | L74: 1072 | M74: 1217 | N74: 992 | O74: 12334 | Q74: 913 | R74: =SUM($C74:D74) -> 2079 | S74: =SUM($C74:E74) -> 3213 | T74: =SUM($C74:F74) -> 4064 | U74: =SUM($C74:G74) -> 4945 | V74: =SUM($C74:H74) -> 5910 | W74: =SUM($C74:I74) -> 6901 | X74: =SUM($C74:J74) -> 8002 | Y74: =SUM($C74:K74) -> 9053 | Z74: =SUM($C74:L74) -> 10125 | AA74: =SUM($C74:M74) -> 11342 | AB74: =SUM($C74:N74) -> 12334
A75: FY1395Balkh Customs Office | B75: =B52 -> Balkh Customs Office | C75: 783 | D75: 842 | E75: 763 | F75: 1090 | G75: 815 | H75: 843 | I75: 727 | J75: 738 | K75: 583 | L75: 820 | M75: 1161 | N75: 1064 | O75: 10229 | Q75: 783 | R75: =SUM($C75:D75) -> 1625 | S75: =SUM($C75:E75) -> 2388 | T75: =SUM($C75:F75) -> 3478 | U75: =SUM($C75:G75) -> 4293 | V75: =SUM($C75:H75) -> 5136 | W75: =SUM($C75:I75) -> 5863 | X75: =SUM($C75:J75) -> 6601 | Y75: =SUM($C75:K75) -> 7184 | Z75: =SUM($C75:L75) -> 8004 | AA75: =SUM($C75:M75) -> 9165 | AB75: =SUM($C75:N75) -> 10229
A76: FY1395Kandahar Customs Office | B76: =B53 -> Kandahar Customs Office | C76: 454 | D76: 327 | E76: 465 | F76: 469 | G76: 450 | H76: 417 | I76: 450 | J76: 475 | K76: 271 | L76: 565 | M76: 451 | N76: 527 | O76: 5321 | Q76: 454 | R76: =SUM($C76:D76) -> 781 | S76: =SUM($C76:E76) -> 1246 | T76: =SUM($C76:F76) -> 1715 | U76: =SUM($C76:G76) -> 2165 | V76: =SUM($C76:H76) -> 2582 | W76: =SUM($C76:I76) -> 3032 | X76: =SUM($C76:J76) -> 3507 | Y76: =SUM($C76:K76) -> 3778 | Z76: =SUM($C76:L76) -> 4343 | AA76: =SUM($C76:M76) -> 4794 | AB76: =SUM($C76:N76) -> 5321
A77: FY1395Nimroz Customs Office | B77: =B54 -> Nimroz Customs Office | C77: 32 | D77: 26 | E77: 32 | F77: 18 | G77: 22 | H77: 26 | I77: 14 | J77: 32 | K77: 40 | L77: 34 | M77: 46 | N77: 34 | O77: 356 | Q77: 32 | R77: =SUM($C77:D77) -> 58 | S77: =SUM($C77:E77) -> 90 | T77: =SUM($C77:F77) -> 108 | U77: =SUM($C77:G77) -> 130 | V77: =SUM($C77:H77) -> 156 | W77: =SUM($C77:I77) -> 170 | X77: =SUM($C77:J77) -> 202 | Y77: =SUM($C77:K77) -> 242 | Z77: =SUM($C77:L77) -> 276 | AA77: =SUM($C77:M77) -> 322 | AB77: =SUM($C77:N77) -> 356
A78: FY1395Other Customs Offices | B78: Other Customs Offices | C78: 1655 | D78: 1619 | E78: 1800 | F78: 1546 | G78: 1993 | H78: 1659 | I78: 1100 | J78: 1532 | K78: 1531 | L78: 1476 | M78: 1281 | N78: 2778 | O78: 19970 | Q78: 1655 | R78: =SUM($C78:D78) -> 3274 | S78: =SUM($C78:E78) -> 5074 | T78: =SUM($C78:F78) -> 6620 | U78: =SUM($C78:G78) -> 8613 | V78: =SUM($C78:H78) -> 10272 | W78: =SUM($C78:I78) -> 11372 | X78: =SUM($C78:J78) -> 12904 | Y78: =SUM($C78:K78) -> 14435 | Z78: =SUM($C78:L78) -> 15911 | AA78: =SUM($C78:M78) -> 17192 | AB78: =SUM($C78:N78) -> 19970
A79: FY1395Afghanistan Revenue Department | B79: Afghanistan Revenue Department | C79: =SUM(C80:C84) -> 5187 | D79: =SUM(D80:D84) -> 4726 | E79: 5938 | F79: 7789 | G79: 6025 | H79: 18181 | I79: 6858 | J79: 8141 | K79: 4852 | L79: 5581 | M79: 7695 | N79: 7210 | O79: 88183 | Q79: 5187 | R79: =SUM($C79:D79) -> 9913 | S79: =SUM($C79:E79) -> 15851 | T79: =SUM($C79:F79) -> 23640 | U79: =SUM($C79:G79) -> 29665 | V79: =SUM($C79:H79) -> 47846 | W79: =SUM($C79:I79) -> 54704 | X79: =SUM($C79:J79) -> 62845 | Y79: =SUM($C79:K79) -> 67697 | Z79: =SUM($C79:L79) -> 73278 | AA79: =SUM($C79:M79) -> 80973 | AB79: =SUM($C79:N79) -> 88183
A80: FY1395Mustofiats | B80: Mustofiats | C80: 664 | D80: 1194 | E80: 1467 | F80: 1366 | G80: 1264 | H80: 1131 | I80: 1257 | J80: 1242 | K80: 1270 | L80: 1529 | M80: 1982 | N80: 1354 | O80: 15720 | Q80: 664 | R80: =SUM($C80:D80) -> 1858 | S80: =SUM($C80:E80) -> 3325 | T80: =SUM($C80:F80) -> 4691 | U80: =SUM($C80:G80) -> 5955 | V80: =SUM($C80:H80) -> 7086 | W80: =SUM($C80:I80) -> 8343 | X80: =SUM($C80:J80) -> 9585 | Y80: =SUM($C80:K80) -> 10855 | Z80: =SUM($C80:L80) -> 12384 | AA80: =SUM($C80:M80) -> 14366 | AB80: =SUM($C80:N80) -> 15720
A81: FY1395LTO | B81: LTO | C81: 2015 | D81: 780 | E81: 887 | F81: 2269 | G81: 1288 | H81: 964 | I81: 2129 | J81: 1628 | K81: 682 | L81: 2595 | M81: 1485 | N81: 1641 | O81: 18363 | Q81: 2015 | R81: =SUM($C81:D81) -> 2795 | S81: =SUM($C81:E81) -> 3682 | T81: =SUM($C81:F81) -> 5951 | U81: =SUM($C81:G81) -> 7239 | V81: =SUM($C81:H81) -> 8203 | W81: =SUM($C81:I81) -> 10332 | X81: =SUM($C81:J81) -> 11960 | Y81: =SUM($C81:K81) -> 12642 | Z81: =SUM($C81:L81) -> 15237 | AA81: =SUM($C81:M81) -> 16722 | AB81: =SUM($C81:N81) -> 18363
A82: FY1395MTO | B82: MTO | C82: 703 | D82: 789 | E82: 943 | F82: 1171 | G82: 939 | H82: 1028 | I82: 1223 | J82: 1181 | K82: 912 | L82: 1181 | M82: 1373 | N82: 1646 | O82: 13089 | Q82: 703 | R82: =SUM($C82:D82) -> 1492 | S82: =SUM($C82:E82) -> 2435 | T82: =SUM($C82:F82) -> 3606 | U82: =SUM($C82:G82) -> 4545 | V82: =SUM($C82:H82) -> 5573 | W82: =SUM($C82:I82) -> 6796 | X82: =SUM($C82:J82) -> 7977 | Y82: =SUM($C82:K82) -> 8889 | Z82: =SUM($C82:L82) -> 10070 | AA82: =SUM($C82:M82) -> 11443 | AB82: =SUM($C82:N82) -> 13089
A83: FY1395STO | B83: STO | C83: 160 | D83: 198 | E83: 369 | F83: 291 | G83: 181 | H83: 199 | I83: 158 | J83: 210 | K83: 186 | L83: 222 | M83: 269 | N83: 314 | O83: 2757 | Q83: 160 | R83: =SUM($C83:D83) -> 358 | S83: =SUM($C83:E83) -> 727 | T83: =SUM($C83:F83) -> 1018 | U83: =SUM($C83:G83) -> 1199 | V83: =SUM($C83:H83) -> 1398 | W83: =SUM($C83:I83) -> 1556 | X83: =SUM($C83:J83) -> 1766 | Y83: =SUM($C83:K83) -> 1952 | Z83: =SUM($C83:L83) -> 2174 | AA83: =SUM($C83:M83) -> 2443 | AB83: =SUM($C83:N83) -> 2757
A84: FY1395Ministries | B84: Ministries | C84: 1645 | D84: 1765 | E84: 2272 | F84: 2692 | G84: 2353 | H84: 14859 | I84: 2091 | J84: 3880 | K84: 1802 | L84: 54 | M84: 2586 | N84: 2255 | O84: 38254 | Q84: 1645 | R84: =SUM($C84:D84) -> 3410 | S84: =SUM($C84:E84) -> 5682 | T84: =SUM($C84:F84) -> 8374 | U84: =SUM($C84:G84) -> 10727 | V84: =SUM($C84:H84) -> 25586 | W84: =SUM($C84:I84) -> 27677 | X84: =SUM($C84:J84) -> 31557 | Y84: =SUM($C84:K84) -> 33359 | Z84: =SUM($C84:L84) -> 33413 | AA84: =SUM($C84:M84) -> 35999 | AB84: =SUM($C84:N84) -> 38254
A85: FY1395Total Revenues | B85: Total Revenues | C85: =C72+C79 -> 10450 | D85: =D72+D79 -> 10170 | E85: 11629 | F85: 12906 | G85: 11456 | H85: 23416 | I85: 11391 | J85: 13441 | K85: 9567 | L85: 10929 | M85: 13761 | N85: 14380 | O85: 153496 | Q85: 10450 | R85: =SUM($C85:D85) -> 20620 | S85: =SUM($C85:E85) -> 32249 | T85: =SUM($C85:F85) -> 45155 | U85: =SUM($C85:G85) -> 56611 | V85: =SUM($C85:H85) -> 80027 | W85: =SUM($C85:I85) -> 91418 | X85: =SUM($C85:J85) -> 104859 | Y85: =SUM($C85:K85) -> 114426 | Z85: =SUM($C85:L85) -> 125355 | AA85: =SUM($C85:M85) -> 139116 | AB85: =SUM($C85:N85) -> 153496
A86: FY1395Tax Revenues | B86: Tax Revenues | C86: 5377 | D86: 4608 | E86: 5346 | F86: 6443 | G86: 5152 | H86: 4866 | I86: 6078 | J86: 5862 | K86: 4275 | L86: 7013 | M86: 6383 | N86: 8095 | O86: =SUM(C86:N86) -> 69498 | Q86: 5377 | R86: =SUM($C86:D86) -> 9985 | S86: =SUM($C86:E86) -> 15331 | T86: =SUM($C86:F86) -> 21774 | U86: =SUM($C86:G86) -> 26926 | V86: =SUM($C86:H86) -> 31792 | W86: =SUM($C86:I86) -> 37870 | X86: =SUM($C86:J86) -> 43732 | Y86: =SUM($C86:K86) -> 48007 | Z86: =SUM($C86:L86) -> 55020 | AA86: =SUM($C86:M86) -> 61403 | AB86: =SUM($C86:N86) -> 69498
A87: FY1395Customs Revenues | B87: Customs Revenues | C87: 2512 | D87: 2547 | E87: 2706 | F87: 2520 | G87: 2869 | H87: 2647 | I87: 2222 | J87: 2635 | K87: 2424 | L87: 2731 | M87: 2958 | N87: 2495 | O87: 31266 | Q87: 2512 | R87: =SUM($C87:D87) -> 5059 | S87: =SUM($C87:E87) -> 7765 | T87: =SUM($C87:F87) -> 10285 | U87: =SUM($C87:G87) -> 13154 | V87: =SUM($C87:H87) -> 15801 | W87: =SUM($C87:I87) -> 18023 | X87: =SUM($C87:J87) -> 20658 | Y87: =SUM($C87:K87) -> 23082 | Z87: =SUM($C87:L87) -> 25813 | AA87: =SUM($C87:M87) -> 28771 | AB87: =SUM($C87:N87) -> 31266
A88: FY1395Non-tax Revenues | B88: Non-tax Revenues | C88: 2561 | D88: 3015 | E88: 3577 | F88: 3943 | G88: 3435 | H88: 15903 | I88: 3091 | J88: 4944 | K88: 2868 | L88: 1185 | M88: 4420 | N88: 3790 | O88: 52732 | Q88: 2561 | R88: =SUM($C88:D88) -> 5576 | S88: =SUM($C88:E88) -> 9153 | T88: =SUM($C88:F88) -> 13096 | U88: =SUM($C88:G88) -> 16531 | V88: =SUM($C88:H88) -> 32434 | W88: =SUM($C88:I88) -> 35525 | X88: =SUM($C88:J88) -> 40469 | Y88: =SUM($C88:K88) -> 43337 | Z88: =SUM($C88:L88) -> 44522 | AA88: =SUM($C88:M88) -> 48942 | AB88: =SUM($C88:N88) -> 52732
B89: Total Revenues | C89: =SUM(C86:C88) -> 10450 | D89: =SUM(D86:D88) -> 10170 | E89: 11629 | F89: 12906 | G89: 11456 | H89: 23416 | I89: 11391 | J89: 13441 | K89: 9567 | L89: 10929 | M89: 13761 | N89: 14380 | O89: 153496
B91: Check | C91: =C85-C89 -> 0 | D91: =D85-D89 -> 0 | E91: 0 | F91: 0 | G91: 0 | H91: 0 | I91: 0 | J91: 0 | K91: 0 | L91: 0 | M91: 0 | N91: 0
B93: Lists
A94: Collectorates | B94: Customs Department | C94: 2019 Target
B95: Herat Customs Office | C95: Previous Year performance
B96: Nangarhar Customs Office | C96: Previous 5 Years performance
B97: Balkh Customs Office | C97: Actual
B98: Kandahar Customs Office
B99: Nimroz Customs Office | C99: FY1395
B100: Other Customs Offices | C100: FY1396
B101: Afghanistan Revenue Department
B102: Mustofiats
B103: LTO
B104: MTO
B105: STO
B106: Ministries
B107: Total Revenues
A108: Tax Types | B108: Tax Revenues
B109: Customs Revenues
B110: Non-tax Revenues
B113: AFMIS
B114: RMIS

Sheet Sheet1
H12: 12425.5056 | J12: 3275.930306 | L12: 4452.991065 | M12: 3624.493002 | N12: 6688.46643 | O12: 3624.491472 | P12: 6688.46643 | Q12: 1465.661614
H13: -1.019998308e-06 | J13: -9.999985195e-07 | L13: -0.196076 | M13: -0.00153 | N13: -14.579121 | O13: 0.001530000001 | P13: -3.000000106e-05 | Q13: -9.39354
H14: =SUM(H12:H13) -> 12425.50559 | J14: =SUM(J12:J13) -> 3275.930306 | L14: =SUM(L12:L13) -> 4452.794989 | M14: 3624.491472 | N14: 6673.887309 | O14: 3624.493002 | P14: 6688.4664 | Q14: 1456.268074
I19: 12423.60543 | J19: 3274.678542 | K19: 4493.12636 | L19: 6689.925369 | M19: 2949.643237
I20: -1.019998308e-06 | J20: -1.000000339e-06 | K20: -0.196076 | L20: -2.999999742e-05 | M20: -0.02203
I21: =SUM(I19:I20) -> 12423.60542 | J21: =SUM(J19:J20) -> 3274.678541 | K21: =SUM(K19:K20) -> 4492.930284 | L21: =SUM(L19:L20) -> 6689.925339 | M21: =SUM(M19:M20) -> 2949.621207
